{"text_format":"1","workbook":"xlsx","n_sheets":1,"sheets":["aslpractice"],"not_rendered":{"charts":0,"images":0,"macros":1,"external_links":0,"defined_names":0,"comments":0,"pivot_tables":0},"unopened":[],"bounds":{"document_bytes":16777216,"sheet_cells":100000,"rows_first":2000,"rows_last":500,"rows_between":2000,"halvings":0,"cell_chars":16384,"cell_head_chars":4096},"cells_cut":0,"cells_raw":0,"read":"whole","date_system":"1900"}

{"sheet":"aslpractice","index":0,"n_rows":2495,"n_cols":13,"rows_kept":2495,"cut":false,"hidden":false,"merged":[]}
["1",null,"dup check",null,null,null,null,null,null,null,"@",null," your keys, you lose before?"]
["2",{"$f":"IF(A2=A1,1,0)","v":0},{"$f":"IF(SUM(B:B)>=1,1,0)","v":0},null,null,null,null,"ASL Practice",null,null,"@, the @ part of an email address",null,"\"again, name you?\" (what is your name again?)"]
["3",{"$f":"IF(A3=A2,1,0)","v":0},null,null,"total signs practiced:",null,null,null,null,null,"abandon",null,"\"asl teacher you?\" (are you a teacher?)"]
["4",0,null,null,{"$f":"COUNTA(A:A)","v":191},null,null,null,null,null,"abandon for a long time",null,"\"city you live?\" (what city do you live in?)"]
["5",0,null,null,null,null,null,null,null,null,"abc's",null,"\"deaf you?\" (are you deaf?)"]
["6",0,null,null,null,null,null,null,null,null,"abdomen",null,"\"family deaf?\" (is anyone in your family deaf?)"]
["7",0,null,null,"random letter selection",null,null,null,null,null,"about",null,"\"from where you?\" (\"where are you from?\")"]
["8",0,null,null,{"$f":"CHOOSE(RANDBETWEEN(1,26),\"a\",\"b\",\"c\",\"d\",\"e\",\"f\",\"g\",\"h\",\"i\",\"j\",\"k\",\"l\",\"m\",\"n\",\"o\",\"p\",\"q\",\"r\",\"s\",\"t\",\"u\",\"v\",\"w\",\"x\",\"y\",\"z\")","v":"a"},null,null,null,null,null,"about, regarding",null,"\"he who?\" (\"who is he/she?\")"]
["9",0,null,null,null,null,null,null,null,null,"above",null,"\"hearing you?\" (are you a hearing person?)"]
["a",0,null,null,"random selection of learned signs",null,null,null,null,null,"abuse",null,"\"how sign \"f-i-n-e\"?\" (\"how do you sign the word 'fine'?\")"]
["again",0,null,null,{"$f":"INDEX(A:A,RANDBETWEEN(1,COUNTA(A:A)))","v":"day"},null,null,null,null,null,"accent",null,"\"how sign t-h-a-n-k-s?\" (how do you sign \"thanks?\")"]
["all done/finished",0,null,null,null,null,null,null,null,null,"accept",null,"\"how you sign \"a-l-l\"?\" (how do you sign \"all?\")"]
["angry",0,null,null,null,null,null,null,null,null,"accident",null,"\"name you?\" (what is your name?)"]
["animal",0,null,null,"from Bill Vicars","total",null,null,null,null,"accident, crash",null,"\"nice meet-you\" (it is nice to meet you.)"]
["apple",0,null,null,"random sign",{"$f":"COUNTA(K:K)","v":2495},null,null,null,null,"accompany-[see with]",null,"\"pants\", spell (spell the word \"pants.\")"]
["asl",0,null,null,{"$f":"INDEX(K:K,RANDBETWEEN(1,COUNTA(K:K)))","v":"wrench, tool"},null,null,null,null,null,"accompany-me, go-with",null,"\"s/he student s/he?\" [point at teacher] (is she or he a student?)"]
["aunt",0,null,null,null,null,null,null,null,null,"accountant",null,"\"scotland\"-[plaid] you finish touch you? (have you been to scotland?)"]
["b",0,null,null,"random phrase",{"$f":"COUNTA(M:M)","v":1009},null,null,null,null,"acquaintance",null,"\"student you?\" (are you a student?)"]
["baby",0,null,null,{"$f":"INDEX(M:M,RANDBETWEEN(1,COUNTA(M:M)))","v":"your first car, what-color?"},null,null,null,null,null,"acquire",null,"\"student, he/she ?\" [point at other student] (is she or he a student?)"]
["bad",0,null,null,null,null,null,null,null,null,"across",null,"\"they learn sign?\" (are they learning sign language?)"]
["bath",0,null,null,null,null,null,null,null,null,"act",null,"\"this your?\" [point at any object] (is this yours?)"]
["bathroom",0,null,null,null,null,null,null,null,null,"active",null,"\"want more children you?\" (do you want more children?)"]
["big/large",0,null,null,"Notes",null,null,null,null,null,"actor",null,"\"where ____\" [spell the name of a person in the room]"]
["bird",0,null,null,"emote, facial expressions, mouth",null,null,null,null,null,"add",null,"\"who he/she?\" (who is he/she?)"]
["bored",0,null,null,"K and P same shape",null,null,null,null,null,"addict",null,"\"you children, how-many?\" (how many children do you have?)"]
["brush teeth",0,null,null,"use forearm to turn the J, not draw a pretty J",null,null,null,null,null,"addicted",null,"\"you go school you?\" (do you go to school?)"]
["bug",0,null,null,"G and Q same shape",null,null,null,null,null,"address",null,"\"you learn sign, where?\" (where are you learning sign?)"]
["busy",0,null,null,"when finger spelling don't move hand forward and back, just spell in place",null,null,null,null,null,"add-to",null,"\"you learn sign, why ?\" (why are you learning sign?)"]
["bye",0,null,null,"Say ALL, can sign two L's, or one L and move hand to left in L shape (ie. Double up on letter)",null,null,null,null,null,"add-to, in addition to",null,"\"you like learn sign?\" (do you like learning sign?)"]
["c",0,null,null,null,null,null,null,null,null,"administration-[see manager]",null,"\"you like your work?\" (do you like your work?)"]
["candy",0,null,null,null,null,null,null,null,null,"adopt",null,"\"you live here?\" (do you live here?)"]
["car/drive",0,null,null,null,null,null,null,null,null,"adopt-[see take-up]",null,"\"you name?\" (you are named what?) also see: (what is your name?)"]
["cat",0,null,null,null,null,null,null,null,null,"adult",null,"\"you need bathroom?\" (do you need to go to the bathroom?)"]
["cents",0,null,null,null,null,null,null,null,null,"advertise",null,"\"you think i sign bad?\" (do you think i sign bad?)"]
["cereal",0,null,null,null,null,null,null,null,null,"advise/advice-[see counsel]",null,"\"you think i sign good?\" (do you think i sign well?)"]
["cheese",0,null,null,null,null,null,null,null,null,"afraid, scared",null,"\"you understand he/she?\" (do you understand him/her?)"]
["church",0,null,null,null,null,null,null,null,null,"afraid-[scared]",null,"\"you work where?\" (where do you work?)"]
["clothes",0,null,null,null,null,null,null,null,null,"africa",null,"\"your house big?\" (is your house big?)"]
["coat",0,null,null,null,null,null,null,null,null,"after",null,"\"your house small?\" (is your house small?)"]
["cold",0,null,null,null,null,null,null,null,null,"after, across",null,"\"your house, bathroom how-many?\" (how many bathrooms do you have in your house?)"]
["color",0,null,null,null,null,null,null,null,null,"afternoon",null,"\"your teacher name 'huh'?\" (what is your teacher's name?)"]
["come",0,null,null,null,null,null,null,null,null,"afternoon, every-afternoon",null,"\"your teacher, who?\" (who is your teacher?)"]
["confused",0,null,null,null,null,null,null,null,null,"afternoon-[every afternoon]",null,".you look-like your dad?"]
["cookie",0,null,null,null,null,null,null,null,null,"again, repeat",null,"_____ sit where? (spell the name of a student.)"]
["cool (temperature)",0,null,null,null,null,null,null,null,null,"again-[repeat]",null,"5-dollar, don't-mind lend me?"]
["cost",0,null,null,null,null,null,null,null,null,"against-[opposed/anti/con]",null,"5-dollar, don't-mind lend me? (would you mind lending me $5?)"]
["cow",0,null,null,null,null,null,null,null,null,"agent",null,"afternoon work you?"]
["cup",0,null,null,null,null,null,null,null,null,"aggressive",null,"afternoon work you? (do you work in the afternoon?)"]
["d",0,null,null,null,null,null,null,null,null,"agree",null,"again, name you?"]
["dad",0,null,null,null,null,null,null,null,null,"aid, assistant",null,"airplane before you?"]
["day",0,null,null,null,null,null,null,null,null,"aide",null,"airplane before you? (have you ever been on an airplane before?)"]
["deaf",0,null,null,null,null,null,null,null,null,"air",null,"algebra, can you explain me?"]
["divorced",0,null,null,null,null,null,null,null,null,"airplane",null,"altogether, how-many sign you know?"]
["dollars",0,null,null,null,null,null,null,null,null,"alcohol",null,"ambulance, before you? (have you ever been in an ambulance?)"]
["drink",0,null,null,null,null,null,null,null,null,"alcoholic",null,"ambulance, past you?"]
["e",0,null,null,null,null,null,null,null,null,"algebra",null,"any your family deaf? (is anyone in your family deaf?)"]
["egg",0,null,null,null,null,null,null,null,null,"all",null,"apple, green, you like eat?"]
["embarassed",0,null,null,null,null,null,null,null,null,"all done/finished",null,"apple, green, you like eat? (do you like to eat green apples?)"]
["encouragement",0,null,null,null,null,null,null,null,null,"all, #all",null,"apple, red, you like eat you?"]
["excited",0,null,null,null,null,null,null,null,null,"allergy",null,"apple, red, you like eat you? (do you like to eat red apples?)"]
["exhausted",0,null,null,null,null,null,null,null,null,"alligator",null,"a-s-l class, you past take ?"]
["f",0,null,null,null,null,null,null,null,null,"all-over/-dom-[see field]",null,"a-s-l class, you past take ? (have you ever taken an asl class?)"]
["family",0,null,null,null,null,null,null,null,null,"allow-[permit]",null,"asl teacher you?"]
["fast",0,null,null,null,null,null,null,null,null,"almost",null,"aunt you, how-many?"]
["fine",0,null,null,null,null,null,null,null,null,"almost-[see easy]",null,"autumn, wind-[light], cool, you like cl:1-\"go for a stroll\"? (do you like going for a stroll in a cool autumn breeze?)"]
["frustrated",0,null,null,null,null,null,null,null,null,"aloha",null,"autumn, wind-[light], cool, you like cl:-go for a stroll?"]
["full",{"$f":"IF(A67=A66,1,0)","v":0},null,null,null,null,null,null,null,null,"alone-[see single]",null,"backpack, you have?"]
["g",0,null,null,null,null,null,null,null,null,"a-lot",null,"backpack, you have? (do you have a backpack?) other version: (2)"]
["good",0,null,null,null,null,null,null,null,null,"a-lot, much",null,"banana pie you like?"]
["grandma",0,null,null,null,null,null,null,null,null,"alphabet",null,"bath, shower, you prefer which?"]
["grandpa",0,null,null,null,null,null,null,null,null,"alright",null,"bath, shower, you prefer which? (which do you prefer, taking a bath or taking a shower?)"]
["great",0,null,null,null,null,null,null,null,null,"also",null,"before class, you where?"]
["h",0,null,null,null,null,null,null,null,null,"altogether,total, sum",null,"before meet new person you like brush-teeth?"]
["hamburger",0,null,null,null,null,null,null,null,null,"altogether-[total, sum]",null,"before test you feel nervous you?"]
["happy",0,null,null,null,null,null,null,null,null,"always",null,"before test you worry?"]
["hard of hearing",0,null,null,null,null,null,null,null,null,"am (not asl)",null,"before test, you study all-night?"]
["hearing person",0,null,null,null,null,null,null,null,null,"ambulance",null,"before-[prior-to] class, where you? (where were you before class?)"]
["hello",0,null,null,null,null,null,null,null,null,"ambulance-[see light]",null,"before-[prior-to] meet new person you like brush-teeth?"]
["help",0,null,null,null,null,null,null,null,null,"america",null,"before-[prior-to] test you feel nervous you? (do you get nervous before a test?)"]
["here",0,null,null,null,null,null,null,null,null,"american",null,"before[prior-to] test you worry?"]
["home",0,null,null,null,null,null,null,null,null,"american: native american",null,"before-[prior-to] test, you study all-night?"]
["horse",0,null,null,null,null,null,null,null,null,"amish",null,"bicycle, have you?"]
["hot",0,null,null,null,null,null,null,null,null,"amount",null,"bicycle, have you? (do you have a bike?)"]
["hotdog",0,null,null,null,null,null,null,null,null,"an (not asl)",null,"bird like eat fish?"]
["how",0,null,null,null,null,null,null,null,null,"and",null,"bird like eat fish? (do birds like to eat fish?)"]
["how are you",0,null,null,null,null,null,null,null,null,"angel",null,"board you think heteacher should write more?"]
["how much",0,null,null,null,null,null,null,null,null,"angry",null,"boat, before you?"]
["hungry",0,null,null,null,null,null,null,null,null,"animal",null,"boat, before you? (have you been on a boat before?)"]
["hurt",0,null,null,null,null,null,null,null,null,"animals",null,"b-o-b sit where?"]
["i",0,null,null,null,null,null,null,null,null,"annually",null,"book you like read, what-kind?"]
["i love you",0,null,null,null,null,null,null,null,null,"answer",null,"book you like read, what-kind? (what type of books do you like to read?)"]
["in",0,null,null,null,null,null,null,null,null,"ant",null,"book you think interesting, what-name?"]
["j",0,null,null,null,null,null,null,null,null,"anthropology",null,"book you think interesting, what-name? (what is the name of a book that you think is interesting.)"]
["jealous",0,null,null,null,null,null,null,null,null,"anxious",null,"book you think wonderful, name?"]
["k",0,null,null,null,null,null,null,null,null,"anxious, restless",null,"book you think wonderful, name? (name a book that you think is wonderful.)"]
["l",0,null,null,null,null,null,null,null,null,"any",null,"boss fire worker, why?"]
["language",0,null,null,null,null,null,null,null,null,"apartment",null,"boss fire worker, why? (why do bosses fire employees?)"]
["learn",0,null,null,null,null,null,null,null,null,"ape",null,"box bring car don't-mind?"]
["like (i like)",0,null,null,null,null,null,null,null,null,"appear",null,"bread with butter you like?"]
["little",0,null,null,null,null,null,null,null,null,"applause",null,"bread, new, you like smell?"]
["lonely",0,null,null,null,null,null,null,null,null,"apple",null,"brother you how-many?"]
["loving",0,null,null,null,null,null,null,null,null,"apply",null,"brother-in-law you have, how-many?"]
["m",0,null,null,null,null,null,null,null,null,"apply, application",null,"brother-in-law you have, how-many? (how-many brothers-in-law do you have?)"]
["married",0,null,null,null,null,null,null,null,null,"apply, volunteer",null,"bus, you ride-in school, you?"]
["meet",0,null,null,null,null,null,null,null,null,"appointment",null,"bus, you ride-in school, you? (do you ride the bus to school?)"]
["mom",0,null,null,null,null,null,null,null,null,"appreciate",null,"button sew know how you?"]
["money",0,null,null,null,null,null,null,null,null,"approximately",null,"buy wine, must how-old?"]
["more",0,null,null,null,null,null,null,null,null,"are (not asl)",null,"buzz-cut before you?"]
["n",0,null,null,null,null,null,null,null,null,"area",null,"buzz-cut before you? (have you ever had a buzz-cut hair-style?)"]
["name",0,null,null,null,null,null,null,null,null,"argue",null,"cafeteria where?"]
["neighborhood",0,null,null,null,null,null,null,null,null,"arizona",null,"cake, you like what-kind?"]
["nervous",{"$f":"IF(A112=A110,1,0)","v":0},null,null,null,null,null,null,null,null,"army",null,"can deaf go college free?"]
["nice to meet you",0,null,null,null,null,null,null,null,null,"army, military",null,"can keep secret you?"]
["nice/clean",0,null,null,null,null,null,null,null,null,"around-[see approximately]",null,"can you drive you?"]
["no",0,null,null,null,null,null,null,null,null,"arrive",null,"can you manage your-self business?"]
["nothing",0,null,null,null,null,null,null,null,null,"art-[see draw]",null,"can you manage your-self business? (can you run your own business?)"]
["now (current)",0,null,null,null,null,null,null,null,null,"arthritis",null,"candy, you like what-kind?"]
["o",0,null,null,null,null,null,null,null,null,"article, column",null,"candy, you like what-kind? (what type of candy do you like?)"]
["out",0,null,null,null,null,null,null,null,null,"article/column-[see cl:c]",null,"car accident-crash happen why?"]
["p",0,null,null,null,null,null,null,null,null,"article-[column]",null,"car cl:3/cl:3-\"crash\" how-many time you? (how many times have you been in a car wreck?)"]
["pants",0,null,null,null,null,null,null,null,null,"ask",null,"car cl3:-crash how-many time you?"]
["past (before)",0,null,null,null,null,null,null,null,null,"ask-[ask-to, inquire, request]",null,"car have? how-many doors?"]
["pig",0,null,null,null,null,null,null,null,null,"assault",null,"car have? how-many doors? (do you have a car?--if so--how many doors?)"]
["please",0,null,null,null,null,null,null,null,null,"assignment",null,"car machine-[engine], you know how f-i-x?"]
["proud",0,null,null,null,null,null,null,null,null,"associate",null,"cat like eat bird?"]
["q",0,null,null,null,null,null,null,null,null,"asterisk",null,"cat like eat bird? (do cats like to eat birds?)"]
["question mark",0,null,null,null,null,null,null,null,null,"asthma",null,"cereal, you like what-kind?"]
["r",0,null,null,null,null,null,null,null,null,"at",null,"cereal, you like what-kind? (what kind of cereal do you like?)"]
["ray (of light)",0,null,null,null,null,null,null,null,null,"atlanta",null,"cereal, you like what-kind? (what type of cereal do you like?)"]
["ready",0,null,null,null,null,null,null,null,null,"atm",null,"c-h-e-s-s, you like play?"]
["s",{"$f":"IF(A131=A130,1,0)","v":0},null,null,null,null,null,null,null,null,"attention",null,"children you?"]
["sad",0,null,null,null,null,null,null,null,null,"audience",null,"children you? (\"do you have children?\")"]
["same as always",0,null,null,null,null,null,null,null,null,"aunt",null,"children, how-many you?"]
["school",0,null,null,null,null,null,null,null,null,"australia",null,"city you live, address?"]
["see you later",0,null,null,null,null,null,null,null,null,"autism",null,"city you live? (in what city do you live?)"]
["sheep",0,null,null,null,null,null,null,null,null,"autumn",null,"class finish, #back home you?"]
["shirt",0,null,null,null,null,null,null,null,null,"autumn, fall",null,"class finish, #back home you? (are you going back home after class?)"]
["shoes",0,null,null,null,null,null,null,null,null,"average",null,"clothes dirty, should put where?"]
["short",0,null,null,null,null,null,null,null,null,"avocado",null,"clothes dirty, should put where? (where should we put dirty clothes?"]
["sign language",0,null,null,null,null,null,null,null,null,"away",null,"cold pizza, you like?"]
["signing",0,null,null,null,null,null,null,null,null,"awesome",null,"cold pizza, you like? (do you like cold pizza?)"]
["sleep",0,null,null,null,null,null,null,null,null,"awful-[terrible]",null,"cold weather, you like?"]
["slow",0,null,null,null,null,null,null,null,null,"awkward-[clumsy]",null,"cold weather, you like? (do you like cold weather?)"]
["small",0,null,null,null,null,null,null,null,null,"baby",null,"college student always broke-[financially], why ?"]
["socks",0,null,null,null,null,null,null,null,null,"baby (4)",null,"college student always broke-[financially], why?"]
["sorry",0,null,null,null,null,null,null,null,null,"babysitter",null,"college, you graduate when?"]
["so-so",0,null,null,null,null,null,null,null,null,"bachelor",null,"college, you graduate when? (when did you / or will you graduate from college?)"]
["spoon",0,null,null,null,null,null,null,null,null,"back, #back",null,"computer program you use, which?"]
["stop",0,null,null,null,null,null,null,null,null,"back-[#back]",null,"cook class, you past take?"]
["store",0,null,null,null,null,null,null,null,null,"backpack",null,"cook class, you past take? (have you ever taken a cooking class?)"]
["strong",0,null,null,null,null,null,null,null,null,"back-stab",null,"cookie, you like what-kind?"]
["student",0,null,null,null,null,null,null,null,null,"bad",null,"cookie, you like what-kind? (what kind of cookies do you like?)"]
["surprised",0,null,null,null,null,null,null,null,null,"bag",null,"cousin himself strange you have?"]
["t",0,null,null,null,null,null,null,null,null,"bake",null,"cousin, how-many you?"]
["tall",0,null,null,null,null,null,null,null,null,"bald",null,"deaf [bodyshift-\"or\"] hearing you? (are you deaf or hearing?)"]
["teach",0,null,null,null,null,null,null,null,null,"ball",null,"deaf [bodyshift] hearing you?"]
["teacher",0,null,null,null,null,null,null,null,null,"balloon",null,"deaf center, you know where you?"]
["temperature",0,null,null,null,null,null,null,null,null,"baltimore",null,"deaf college student sometimes use note-taker, why?"]
["thank you",0,null,null,null,null,null,null,null,null,"banana",null,"deaf college student sometimes use note-taker, why? (why do deaf college students sometimes use note-takers?)"]
["this",0,null,null,null,null,null,null,null,null,"bandage",null,"deaf prefer kitchen, why?"]
["time",0,null,null,null,null,null,null,null,null,"bandaid",null,"deaf you?"]
["tired",0,null,null,null,null,null,null,null,null,"bank, #bank",null,"deaf-school you?"]
["today (now + day)",0,null,null,null,null,null,null,null,null,"bank-[#bank-(lexicalized)]",null,"deaf-school you? (did you attend a residential school for the deaf?)"]
["u",0,null,null,null,null,null,null,null,null,"baptize",null,"diaper, you change before?"]
["uncle",0,null,null,null,null,null,null,null,null,"barber",null,"doctor appointment, you have?"]
["understand",0,null,null,null,null,null,null,null,null,"baseball",null,"doctor appointment, you have? (do you have a doctor's appointment?)"]
["underwear",0,null,null,null,null,null,null,null,null,"basement",null,"doctor earn more-than nurse, why?"]
["upset",0,null,null,null,null,null,null,null,null,"basket",null,"doctor l-a-b coat, color?"]
["v",0,null,null,null,null,null,null,null,null,"basketball",null,"doctor l-a-b coat, color? (what color is a doctor’s lab coat?)"]
["w",0,null,null,null,null,null,null,null,null,"bassoon",null,"dress you like use-[wear] you?"]
["want",0,null,null,null,null,null,null,null,null,"bat",null,"dress you like use-[wear] you? (do you like to wear dresses?)"]
["warm",0,null,null,null,null,null,null,null,null,"bathroom",null,"during summer vacation you study?"]
["wash (to clean)",0,null,null,null,null,null,null,null,null,"bathroom, toilet",null,"during test you copy friend paper you?"]
["water",0,null,null,null,null,null,null,null,null,"bathtub",null,"eat finish, cup, dish, put s-i-n-k you?"]
["what",0,null,null,null,null,null,null,null,null,"battery",null,"eat finish, cup, dish, put s-i-n-k you? (when you are done eating, do you put your dishes in the sink?)"]
["what's up",0,null,null,null,null,null,null,null,null,"battery, electric",null,"egg, you like cook how?"]
["when",0,null,null,null,null,null,null,null,null,"be-[ \"be verbs\"]",null,"eighteen take-away five equal what-[huh]?"]
["where",0,null,null,null,null,null,null,null,null,"beach",null,"eleven plus fourteen equal what-[huh]?"]
["who",0,null,null,null,null,null,null,null,null,"bear",null,"email, you give-up from-now-on for $200,000 you?"]
["why",0,null,null,null,null,null,null,null,null,"beard",null,"embarrass easy you?"]
["will (future)",0,null,null,null,null,null,null,null,null,"beat around the bush",null,"embarrass easy you? (do you embarrass easily?)"]
["with",0,null,null,null,null,null,null,null,null,"beat you",null,"english, you like study?"]
["work",0,null,null,null,null,null,null,null,null,"beautiful",null,"everyday you buy what?"]
["worried",0,null,null,null,null,null,null,null,null,"because",null,"everyday you buy what? [pop, candy, nothing, parking permit, lunch, ...]"]
["x",0,null,null,null,null,null,null,null,null,"become",null,"everyday you shower?"]
["y",0,null,null,null,null,null,null,null,null,"bed",null,"everyday you shower? (do you shower everyday?)"]
["year",0,null,null,null,null,null,null,null,null,"bed-\"go make your bed\"",null,"every-morning, you hurry shower, clothes, eat, take-off, go school you?"]
["yes",0,null,null,null,null,null,null,null,null,"bed: \"go to bed\"",null,"every-morning, you hurry-[rush] shower, clothes, eat, go-[take-off] school you?"]
["you",0,null,null,null,null,null,null,null,null,"bed: \"hit the sack\"",null,"every-saturday what-do you?"]
["your",0,null,null,null,null,null,null,null,null,"bedroom",null,"family deaf?"]
["z",0,null,null,null,null,null,null,null,null,"bee",null,"feel sick you?"]
[null,null,null,null,null,null,null,null,null,null,"beef",null,"feel sick you? (do you feel sick?)"]
[null,null,null,null,null,null,null,null,null,null,"been",null,"fish like eat bug?"]
[null,null,null,null,null,null,null,null,null,null,"been to (finish touch)",null,"fish like eat bug? (do fish like to eat bugs?)"]
[null,null,null,null,null,null,null,null,null,null,"beer",null,"five times-[worse] six equal what?"]
[null,null,null,null,null,null,null,null,null,null,"before",null,"flower garden dog dig, why?"]
[null,null,null,null,null,null,null,null,null,null,"before, prior-to",null,"flower grow-grow-[garden] dog dig, why?"]
[null,null,null,null,null,null,null,null,null,null,"begin / start",null,"flower you like what-kind?"]
[null,null,null,null,null,null,null,null,null,null,"behave",null,"flunk class past-[before] you?"]
[null,null,null,null,null,null,null,null,null,null,"behavior",null,"food enough you?"]
[null,null,null,null,null,null,null,null,null,null,"behind-[see with]",null,"food store, you live thereabouts?"]
[null,null,null,null,null,null,null,null,null,null,"believe",null,"food, strange, new, you like eat you?"]
[null,null,null,null,null,null,null,null,null,null,"bell",null,"for you sleep must dark?"]
[null,null,null,null,null,null,null,null,null,null,"bellybutton",null,"for you sleep must dark? (does it have to be dark for you to sleep?)"]
[null,null,null,null,null,null,null,null,null,null,"below",null,"french-toast, how make?"]
[null,null,null,null,null,null,null,null,null,null,"belt",null,"french-toast, how make? (how do you make french toast?)"]
[null,null,null,null,null,null,null,null,null,null,"bench",null,"from where you?"]
[null,null,null,null,null,null,null,null,null,null,"beneath-[see below]",null,"garage have?"]
[null,null,null,null,null,null,null,null,null,null,"berry",null,"girl this class straight-hair, how many?"]
[null,null,null,null,null,null,null,null,null,null,"best",null,"girl this class straight-hair, how-many? (how many girls in this class have straight hair?)"]
[null,null,null,null,null,null,null,null,null,null,"better",null,"grapes, you eat how often you?"]
[null,null,null,null,null,null,null,null,null,null,"between",null,"grapes, you eat how often you? (how often do you often eat grapes?)"]
[null,null,null,null,null,null,null,null,null,null,"bias",null,"green egg and h-a-m you like you?"]
[null,null,null,null,null,null,null,null,null,null,"biceps",null,"green egg and h-a-m you like you? (do you like green eggs and ham?)"]
[null,null,null,null,null,null,null,null,null,null,"bicycle, bike",null,"habit any you? [if so] what-huh?"]
[null,null,null,null,null,null,null,null,null,null,"bicycle-[bike, ride-bike]",null,"hair, long-hair, short-hair, which you think pretty?"]
[null,null,null,null,null,null,null,null,null,null,"big, large",null,"hair, long-hair, short-hair, which you think pretty? (which do you think is prettier, long hair or short hair?)"]
[null,null,null,null,null,null,null,null,null,null,"big/[small]",null,"hair, you prefer what-color?"]
[null,null,null,null,null,null,null,null,null,null,"binoculars",null,"hair-dryer you use?"]
[null,null,null,null,null,null,null,null,null,null,"bird",null,"happen you afraid, you white-[faced-\"pale\"]?"]
[null,null,null,null,null,null,null,null,null,null,"bird, chicken",null,"happen you afraid, you white-faced?"]
[null,null,null,null,null,null,null,null,null,null,"birth-[born]",null,"hat you have? what-kind?"]
[null,null,null,null,null,null,null,null,null,null,"birthday",null,"have pet you? [if so] name?"]
[null,null,null,null,null,null,null,null,null,null,"bite",null,"have pet you? [if so] name? (do you have a pet? what is its name?)"]
[null,null,null,null,null,null,null,null,null,null,"black",null,"he student he?"]
[null,null,null,null,null,null,null,null,null,null,"blackboard",null,"he who?"]
[null,null,null,null,null,null,null,null,null,null,"blame-[fault, see",null,"hearing you?"]
[null,null,null,null,null,null,null,null,null,null,"blanket",null,"hearing-aid battery, you not-yet change you?"]
[null,null,null,null,null,null,null,null,null,null,"block",null,"hearing-aid battery, you not-yet change you? (haven't you changed your hearing-aid battery yet?)"]
[null,null,null,null,null,null,null,null,null,null,"blood",null,"hearing-aid, who have?"]
[null,null,null,null,null,null,null,null,null,null,"blood: \"draw-blood\"",null,"hearing-aid, who have? (who has a hearing aid?)"]
[null,null,null,null,null,null,null,null,null,null,"blood-draw",null,"hey, name you?"]
[null,null,null,null,null,null,null,null,null,null,"blood-pressure",null,"hey, name you? (\"hey, what's your name?\")"]
[null,null,null,null,null,null,null,null,null,null,"blouse-[see shirt]",null,"hide and seek you like play?"]
[null,null,null,null,null,null,null,null,null,null,"blow-dry",null,"high-school, you graduate when?"]
[null,null,null,null,null,null,null,null,null,null,"blue",null,"high-school, you graduate when? (when did you graduate high school?)"]
[null,null,null,null,null,null,null,null,null,null,"blue-ray",null,"horse like eat fish?"]
[null,null,null,null,null,null,null,null,null,null,"bo staff",null,"horse like eat fish? (do horses like to eat fish?)"]
[null,null,null,null,null,null,null,null,null,null,"boat",null,"horse, you ride-on before?"]
[null,null,null,null,null,null,null,null,null,null,"body",null,"horse, you ride-on before? (have you ever ridden a horse before?)"]
[null,null,null,null,null,null,null,null,null,null,"body-parts",null,"horse, you want?"]
[null,null,null,null,null,null,null,null,null,null,"bodyshift, or",null,"horse, you want? (do you want a horse?)"]
[null,null,null,null,null,null,null,null,null,null,"bold",null,"hot weather, you like?"]
[null,null,null,null,null,null,null,null,null,null,"book",null,"hot weather, you like? (do you like hot weather?)"]
[null,null,null,null,null,null,null,null,null,null,"book-[open book, close book, bookstore]",null,"how often you laugh?"]
[null,null,null,null,null,null,null,null,null,null,"bookstore",null,"how sign f-i-n-e?"]
[null,null,null,null,null,null,null,null,null,null,"boots",null,"how sign s-c-i-e-n-t-i-s-t?"]
[null,null,null,null,null,null,null,null,null,null,"bored",null,"how sign s-c-i-e-n-t-i-s-t? (what is the sign for \"scientist?\")"]
[null,null,null,null,null,null,null,null,null,null,"bored, boring",null,"how sign t-h-a-n-k-s?"]
[null,null,null,null,null,null,null,null,null,null,"boring (private)",null,"how sign w-a-i-t?"]
[null,null,null,null,null,null,null,null,null,null,"born",null,"how sign w-a-i-t? (how do you do the sign \"wait?\")"]
[null,null,null,null,null,null,null,null,null,null,"borrow-[see loan]",null,"how you feel?"]
[null,null,null,null,null,null,null,null,null,null,"boss",null,"how you sign \"r-o-c-k-e-t\"? (how do you sign \"rocket?\")"]
[null,null,null,null,null,null,null,null,null,null,"boston",null,"how you sign a-l-l?"]
[null,null,null,null,null,null,null,null,null,null,"both",null,"how you sign l-e-f-t?"]
[null,null,null,null,null,null,null,null,null,null,"bother",null,"how you sign r-i-g-h-t?"]
[null,null,null,null,null,null,null,null,null,null,"bottle-[see cup]",null,"how you sign r-o-c-k-e-t?"]
[null,null,null,null,null,null,null,null,null,null,"bottom",null,"how you sign t-h-e-y?"]
[null,null,null,null,null,null,null,null,null,null,"bouquet",null,"how you sign t-h-e-y? (\"how do you sign 'they'?\")"]
[null,null,null,null,null,null,null,null,null,null,"bowel movement",null,"how you sign w-a-s-h?"]
[null,null,null,null,null,null,null,null,null,null,"bowl",null,"how you sign w-e?"]
[null,null,null,null,null,null,null,null,null,null,"bowling",null,"how you sign w-e? [spell \"we\"] (\"how do you sign the word 'we'?\")"]
[null,null,null,null,null,null,null,null,null,null,"bow-tie",null,"how you up-to-now?"]
[null,null,null,null,null,null,null,null,null,null,"box",null,"how you up-to-now? (\"how have you been doing?\")"]
[null,null,null,null,null,null,null,null,null,null,"box, room",null,"how-long you live index-there (how long have you lived there?)"]
[null,null,null,null,null,null,null,null,null,null,"boy, male",null,"how-long you live, address index-there?"]
[null,null,null,null,null,null,null,null,null,null,"boy-[male, man]",null,"how-many brother you? (how many brothers do you have?)"]
[null,null,null,null,null,null,null,null,null,null,"boyfriend",null,"how-many day equal one month? (how-many days are in a month?)"]
[null,null,null,null,null,null,null,null,null,null,"bra",null,"how-many hour equal one day? (how-many hours are in a day?)"]
[null,null,null,null,null,null,null,null,null,null,"bracelet",null,"how-many minute equal one-hour? (how-many minutes are in an hour?)"]
[null,null,null,null,null,null,null,null,null,null,"brain",null,"how-many month equal one year? (how-many months are in a year?)"]
[null,null,null,null,null,null,null,null,null,null,"branch",null,"how-many o-z equal 1 lb?"]
[null,null,null,null,null,null,null,null,null,null,"brave",null,"how-old you? (how old are you?)"]
[null,null,null,null,null,null,null,null,null,null,"brave, courage",null,"hungry you?"]
[null,null,null,null,null,null,null,null,null,null,"bread",null,"hungry you? (are you hungry?)"]
[null,null,null,null,null,null,null,null,null,null,"break",null,"i need brush-teeth?"]
[null,null,null,null,null,null,null,null,null,null,"break, broke",null,"if not go sign class, not chat deaf, your sign decline?"]
[null,null,null,null,null,null,null,null,null,null,"break-bone",null,"if teacher spell slow, you understand he?"]
[null,null,null,null,null,null,null,null,null,null,"break-down",null,"if-[suppose] teacher spell slow, you understand s/he?"]
[null,null,null,null,null,null,null,null,null,null,"breakfast",null,"internet s-i-t-e your favorite what?"]
[null,null,null,null,null,null,null,null,null,null,"breastfeed",null,"interpreter list, you have?"]
[null,null,null,null,null,null,null,null,null,null,"breathe",null,"interpreter list, you have? (do you have a list of interpreters?)"]
[null,null,null,null,null,null,null,null,null,null,"bridesmaid",null,"it depends"]
[null,null,null,null,null,null,null,null,null,null,"bridge",null,"it wall, what-color?"]
[null,null,null,null,null,null,null,null,null,null,"bright",null,"janitor this building, you know his/her name?"]
[null,null,null,null,null,null,null,null,null,null,"bright, clear",null,"job you apply before, how many?"]
[null,null,null,null,null,null,null,null,null,null,"bring, carry",null,"job you apply before, how-many? (how many jobs have you applied for previously?)"]
[null,null,null,null,null,null,null,null,null,null,"bring-[carry]",null,"know+ silver dollar cl:c-[index and thumb], you have you?"]
[null,null,null,null,null,null,null,null,null,null,"broke (financially)",null,"know+ silver dollar cl:c-[index and thumb], you have you? (are you familiar with silver dollars? do you have one?)"]
[null,null,null,null,null,null,null,null,null,null,"broke-(financially)",null,"last-year ticket how-many you?"]
[null,null,null,null,null,null,null,null,null,null,"brother",null,"last-year ticket how-many you? (how many tickets did you get last year?)"]
[null,null,null,null,null,null,null,null,null,null,"brother-[boy, male, man, same, right]",null,"late class always you?"]
[null,null,null,null,null,null,null,null,null,null,"brown",null,"late class always you? (are you always late to class?)"]
[null,null,null,null,null,null,null,null,null,null,"brown-2",null,"learn new thing you like?"]
[null,null,null,null,null,null,null,null,null,null,"bruise",null,"learn new thing you like? (do you like to learn new things?)"]
[null,null,null,null,null,null,null,null,null,null,"brush",null,"learn sign, need help you?"]
[null,null,null,null,null,null,null,null,null,null,"brush-teeth",null,"learn sign, need help you? (do you need help learning sign language?)"]
[null,null,null,null,null,null,null,null,null,null,"bs",null,"library, how often you go? (how often do you go to the library?)"]
[null,null,null,null,null,null,null,null,null,null,"budget: (less used variation)",null,"library, you go how often?"]
[null,null,null,null,null,null,null,null,null,null,"budget: (noun form)",null,"long-ago yourself little-girl [bodyshift] boy want grow-up future do-what?"]
[null,null,null,null,null,null,null,null,null,null,"budget: (verb form: budgeting)",null,"make cake, how-many teaspoon salt?"]
[null,null,null,null,null,null,null,null,null,null,"bug",null,"make snow+man, you like?"]
[null,null,null,null,null,null,null,null,null,null,"bug, insect",null,"make snow+man, you like? (do you like building snowmen?)"]
[null,null,null,null,null,null,null,null,null,null,"build",null,"make sugar cookie, you know how?"]
[null,null,null,null,null,null,null,null,null,null,"build, building",null,"man [bodyshift] woman, you think better driver who?"]
[null,null,null,null,null,null,null,null,null,null,"building",null,"milk, where from, how get?"]
[null,null,null,null,null,null,null,null,null,null,"bully",null,"milk, where from, how get? (how and/or where do we get milk?) [store / cow]"]
[null,null,null,null,null,null,null,null,null,null,"bum",null,"most farmer strong?"]
[null,null,null,null,null,null,null,null,null,null,"bunk-bed",null,"most farmer strong? (are most farmers strong?)"]
[null,null,null,null,null,null,null,null,null,null,"burrito",null,"most post-office worker thin, why?"]
[null,null,null,null,null,null,null,null,null,null,"bus",null,"most post-office worker thin, why? (why are most postal employees thin?)"]
[null,null,null,null,null,null,null,null,null,null,"bus, #bus",null,"most scientist smart?"]
[null,null,null,null,null,null,null,null,null,null,"business, busy",null,"motorcycle, have you?"]
[null,null,null,null,null,null,null,null,null,null,"business-[busy]",null,"motorcycle, have you? (do you have a motorcycle?)"]
[null,null,null,null,null,null,null,null,null,null,"busy, #busy",null,"movie, go tuesday night, good, why?"]
[null,null,null,null,null,null,null,null,null,null,"busy-[#busy-(lexicalized)]",null,"movie, go tuesday night, good, why? (why are tuesday nights a good time to go to the movies?)"]
[null,null,null,null,null,null,null,null,null,null,"but",null,"movie, you want watch?"]
[null,null,null,null,null,null,null,null,null,null,"but, different",null,"movie, your favorite what?"]
[null,null,null,null,null,null,null,null,null,null,"butter",null,"mustache, who have?"]
[null,null,null,null,null,null,null,null,null,null,"butterfly",null,"my shoes, you think ugly?"]
[null,null,null,null,null,null,null,null,null,null,"button",null,"my shoes, you think ugly? (do you think my shoes are ugly?)"]
[null,null,null,null,null,null,null,null,null,null,"buy",null,"name someone curly-hair (name someone who has curly hair.)"]
[null,null,null,null,null,null,null,null,null,null,"buy, purchase",null,"name someone curly-hair."]
[null,null,null,null,null,null,null,null,null,null,"buzz-cut",null,"name something dog chase."]
[null,null,null,null,null,null,null,null,null,null,"by",null,"name something dog chase. (what do dogs like to chase?) [car / cat / bike]"]
[null,null,null,null,null,null,null,null,null,null,"by a hair",null,"name something itself black white"]
[null,null,null,null,null,null,null,null,null,null,"by-a-hair-[close!]",null,"name something itself black white (name something that is black and white.)"]
[null,null,null,null,null,null,null,null,null,null,"cabinet, cupboard",null,"name you?"]
[null,null,null,null,null,null,null,null,null,null,"cabinet-[cupboard]",null,"necklace, gold, you have?"]
[null,null,null,null,null,null,null,null,null,null,"cafeteria ",null,"new car have you?"]
[null,null,null,null,null,null,null,null,null,null,"cafeteria-[restaurant, bachelor]",null,"new car have you? (do you have a new car?)"]
[null,null,null,null,null,null,null,null,null,null,"caffeine",null,"newspaper, you like read?"]
[null,null,null,null,null,null,null,null,null,null,"cake",null,"newspaper, you like read? (do you like to read the newspaper?)"]
[null,null,null,null,null,null,null,null,null,null,"calculus",null,"next-week you come school?"]
[null,null,null,null,null,null,null,null,null,null,"california-[gold]",null,"next-week you come school? (are you coming to school next week?)"]
[null,null,null,null,null,null,null,null,null,null,"call",null,"next-year school register finish you?"]
[null,null,null,null,null,null,null,null,null,null,"call, phone",null,"next-year school register finish you? (have you registered for school next year?)"]
[null,null,null,null,null,null,null,null,null,null,"calm-down-[see down]",null,"nice meet-you"]
[null,null,null,null,null,null,null,null,null,null,"camp-[tent]",null,"not bad"]
[null,null,null,null,null,null,null,null,null,null,"camper",null,"now-morning eat what?"]
[null,null,null,null,null,null,null,null,null,null,"camping",null,"now-morning eat what? (what did you have for breakfast?)"]
[null,null,null,null,null,null,null,null,null,null,"camping2",null,"old boyfriend picture you keep?"]
[null,null,null,null,null,null,null,null,null,null,"can-(container)-[see cup]",null,"old boy-friend, [or girlfriend], picture you keep? (do you keep pictures of your old boyfriends? [or girlfriends])"]
[null,null,null,null,null,null,null,null,null,null,"can, able",null,"old people weak?"]
[null,null,null,null,null,null,null,null,null,null,"can-[able, may, possible]",null,"old people weak? (are old people weak?)"]
[null,null,null,null,null,null,null,null,null,null,"can’t",null,"old you?"]
[null,null,null,null,null,null,null,null,null,null,"canada",null,"one day equal how-many hour?"]
[null,null,null,null,null,null,null,null,null,null,"cancel",null,"one minute have how-many s-e-c?"]
[null,null,null,null,null,null,null,null,null,null,"cancer",null,"one minute have how-many s-e-c? (how many seconds are in a minute?)"]
[null,null,null,null,null,null,null,null,null,null,"candidate-[see apply]",null,"one month equal how-many day?"]
[null,null,null,null,null,null,null,null,null,null,"candy",null,"one week have how-many days?"]
[null,null,null,null,null,null,null,null,null,null,"can't",null,"one week have how-many days? (how many days are in a week?)"]
[null,null,null,null,null,null,null,null,null,null,"car",null,"one year equal how-many month?"]
[null,null,null,null,null,null,null,null,null,null,"car or vehicle: \"group get into\"",null,"one-hour equal how-many minute?"]
[null,null,null,null,null,null,null,null,null,null,"car/[ drive]",null,"one-thousand divide ten equal what?"]
[null,null,null,null,null,null,null,null,null,null,"card",null,"oranges, you like eat?"]
[null,null,null,null,null,null,null,null,null,null,"card, check, envelope",null,"pants, spell"]
[null,null,null,null,null,null,null,null,null,null,"careful",null,"parking-lot supervisor earn a-lot?"]
[null,null,null,null,null,null,null,null,null,null,"careful-(version)",null,"past saturday you go-to-bed, what-time?"]
[null,null,null,null,null,null,null,null,null,null,"careless",null,"past saturday you go-to-bed, what-time? (what time did you go to bed last saturday?)"]
[null,null,null,null,null,null,null,null,null,null,"caribou",null,"past test this class you wrong how-many?"]
[null,null,null,null,null,null,null,null,null,null,"carpenter-[do woodwork]",null,"past test this class you wrong how-many? (how many did you miss on the previous test you took in this class?)"]
[null,null,null,null,null,null,null,null,null,null,"carpool",null,"past weekend do-what? (what did you do last weekend?)"]
[null,null,null,null,null,null,null,null,null,null,"cartoon",null,"past weekend what-do you?"]
[null,null,null,null,null,null,null,null,null,null,"cat",null,"past weekend what-do you? (what did you do last weekend?)"]
[null,null,null,null,null,null,null,null,null,null,"cat-[kitten]",null,"past weekend you what-do?"]
[null,null,null,null,null,null,null,null,null,null,"category",null,"past-[long-ago] yourself little-girl/boy want grow-up future do-what? (when you were a little girl/boy what did you want to be?)"]
[null,null,null,null,null,null,null,null,null,null,"caucasian",null,"people go church, which day?"]
[null,null,null,null,null,null,null,null,null,null,"cause",null,"people go church, which day? (\"on which day do people go to church.\")"]
[null,null,null,null,null,null,null,null,null,null,"cave",null,"people name, forget easy you?"]
[null,null,null,null,null,null,null,null,null,null,"cell-phone",null,"phone, can you?"]
[null,null,null,null,null,null,null,null,null,null,"cemetery",null,"phone, can you? (are you able to use the phone?)"]
[null,null,null,null,null,null,null,null,null,null,"center",null,"picture your family you have?"]
[null,null,null,null,null,null,null,null,null,null,"cents",null,"picture your family you have? (do you have a picture of your family?)"]
[null,null,null,null,null,null,null,null,null,null,"cents, 25-cents, quarter",null,"pie you think delicious, what-kind?"]
[null,null,null,null,null,null,null,null,null,null,"century",null,"pilot use s-u-n glasses, why?"]
[null,null,null,null,null,null,null,null,null,null,"cereal",null,"pilot use s-u-n glasses, why? (why do pilots use sunglasses?)"]
[null,null,null,null,null,null,null,null,null,null,"chain",null,"pizza [bodyshift] hamburger you prefer which?"]
[null,null,null,null,null,null,null,null,null,null,"chair",null,"pizza [bodyshift]-or hamburger you favorite-[prefer] which? (which would you rather have, pizza or a hamburger?)"]
[null,null,null,null,null,null,null,null,null,null,"chair-[see sit]",null,"pizza thin-[crust], thick-[crust], which prefer you?"]
[null,null,null,null,null,null,null,null,null,null,"champ or champion",null,"pizza thin-[crust], thick-[crust], you favorite-[prefer] which? (which do you prefer, thick or thin crust pizza?)"]
[null,null,null,null,null,null,null,null,null,null,"chance",null,"pizza, you like what-kind?"]
[null,null,null,null,null,null,null,null,null,null,"change",null,"pizza, you like what-kind? (what type of pizza do you like?)"]
[null,null,null,null,null,null,null,null,null,null,"change-[adapt, convert, coins]",null,"play, you like what-do?"]
[null,null,null,null,null,null,null,null,null,null,"character",null,"police he/she-help-you before how? (how have you been helped by a police officer?)"]
[null,null,null,null,null,null,null,null,null,null,"chase",null,"police he-help-you before how?"]
[null,null,null,null,null,null,null,null,null,null,"chat",null,"read [bodyshift] watch tv, you prefer which?"]
[null,null,null,null,null,null,null,null,null,null,"chat, chat-with",null,"read [bodyshift] watch-casual tv, you prefer which? (which would you rather do, read or watch tv?)"]
[null,null,null,null,null,null,null,null,null,null,"cheap/low cost",null,"recent you insult any-one?"]
[null,null,null,null,null,null,null,null,null,null,"cheat",null,"recent you insult any-one? (have you recently insulted anyone?)"]
[null,null,null,null,null,null,null,null,null,null,"check (envelope / card)",null,"recently increase you?"]
[null,null,null,null,null,null,null,null,null,null,"cheese",null,"research article, you like read?"]
[null,null,null,null,null,null,null,null,null,null,"chew",null,"research article, you like read? (do you like to read research articles?)"]
[null,null,null,null,null,null,null,null,null,null,"chicago",null,"research paper, you like write?"]
[null,null,null,null,null,null,null,null,null,null,"chicken",null,"research paper, you like write? (do you like to write research papers?)"]
[null,null,null,null,null,null,null,null,null,null,"chicken_nuggets",null,"restaurant you like eat, name?"]
[null,null,null,null,null,null,null,null,null,null,"child",null,"rocket all succeed?"]
[null,null,null,null,null,null,null,null,null,null,"children",null,"saturday night, i go party, want accompany-me?"]
[null,null,null,null,null,null,null,null,null,null,"chimney",null,"saturday night, i go party, want accompany-me? (i'm going to a party saturday night. do you want to go with me?)"]
[null,null,null,null,null,null,null,null,null,null,"china-[chinese, asian]",null,"saturday night, you have plan?"]
[null,null,null,null,null,null,null,null,null,null,"chip-in",null,"school finish, your mom pick-up you, what-time?"]
[null,null,null,null,null,null,null,null,null,null,"chips",null,"school finish, your mom pick-up you, what-time? (what time does your mom pick you up after school?)"]
[null,null,null,null,null,null,null,null,null,null,"chocolate",null,"scotland you finish touch you?"]
[null,null,null,null,null,null,null,null,null,null,"christ",null,"senior girl stuck-up, why?"]
[null,null,null,null,null,null,null,null,null,null,"christmas",null,"sew, you know how?"]
[null,null,null,null,null,null,null,null,null,null,"church",null,"shirt dots you have?"]
[null,null,null,null,null,null,null,null,null,null,"cigarette",null,"shirt, you have favorite?"]
[null,null,null,null,null,null,null,null,null,null,"circumstances",null,"shoe what-size you?"]
[null,null,null,null,null,null,null,null,null,null,"city",null,"shoes, you have how-many ?"]
[null,null,null,null,null,null,null,null,null,null,"city, town",null,"shoes, you have how-many ? (how many pairs of shoes do you have?)"]
[null,null,null,null,null,null,null,null,null,null,"cl:3",null,"shoes, you have, how-many ? (how many pairs of shoes do you have?)"]
[null,null,null,null,null,null,null,null,null,null,"cl:3 (classifier)",null,"shoes, you have, how-many?"]
[null,null,null,null,null,null,null,null,null,null,"cl:4-[\"line of people,\" \"curtains\"]",null,"show-me your favorite sign."]
[null,null,null,null,null,null,null,null,null,null,"cl:5-[scads of]",null,"sign with friend, you like?"]
[null,null,null,null,null,null,null,null,null,null,"cl:a",null,"sister how-many you?"]
[null,null,null,null,null,null,null,null,null,null,"cl:b-[roof, flat, wall]",null,"sleep-in, you like?"]
[null,null,null,null,null,null,null,null,null,null,"cl:c-[thick things, round pole-like things]",null,"sleep-in, you like? (do you like to sleep in?)"]
[null,null,null,null,null,null,null,null,null,null,"cl:c-thick",null,"soap you use, what-name?"]
[null,null,null,null,null,null,null,null,null,null,"cl:g-[thinness]",null,"soap you use, what-name? (what brand of soap do you use?)"]
[null,null,null,null,null,null,null,null,null,null,"cl:l(bent)-[large, big-headed/egoistic/conceited, check, card, square]",null,"some boss accept bad work, why?"]
[null,null,null,null,null,null,null,null,null,null,"cl:v-[stand, walk-to, lay down, toss-and-turn, dive, jump, skate board, scooter, get up]",null,"some cat like water?"]
[null,null,null,null,null,null,null,null,null,null,"clash: \"lock horns with\"",null,"some cat like water? (do some cats like water?) [note: some like swim in it: panthers. all like to drink it.]"]
[null,null,null,null,null,null,null,null,null,null,"class",null,"some deaf subscribe-[ssi] why?"]
[null,null,null,null,null,null,null,null,null,null,"class-[see family]",null,"some deaf subscribe-[ssi] why? (some deaf receive supplemental security income, why?)"]
[null,null,null,null,null,null,null,null,null,null,"classifiers",null,"something broke, you prefer hire mechanic, [bodyshift], f-i-x yourself, which?"]
[null,null,null,null,null,null,null,null,null,null,"clean",null,"something broke, you prefer hire mechanic, [bodyshift], f-i-x your-self, which? (if something is broke, do you prefer to hire a mechanic or do you prefer to fix it yourself?)"]
[null,null,null,null,null,null,null,null,null,null,"clean, clean-up",null,"soup, you know how make?"]
[null,null,null,null,null,null,null,null,null,null,"clear",null,"soup, you know how make? (do you know how to make soup?)"]
[null,null,null,null,null,null,null,null,null,null,"clever",null,"soup, you like pepper?"]
[null,null,null,null,null,null,null,null,null,null,"climb",null,"soup, you like pepper? (do you like pepper in your soup?)"]
[null,null,null,null,null,null,null,null,null,null,"clock",null,"soup, you like what-kind?"]
[null,null,null,null,null,null,null,null,null,null,"close",null,"soup, you like what-kind? (what kind of soup do you like?)"]
[null,null,null,null,null,null,null,null,null,null,"close-captioned",null,"spring, summer, fall, you like best which?"]
[null,null,null,null,null,null,null,null,null,null,"closet",null,"square-[board], you think he/she teacher should write more? (do you think the teacher should write on the board more often?)"]
[null,null,null,null,null,null,null,null,null,null,"close-the-window",null,"stepfather, meaning? (what does the sign \"stepfather\" mean?)"]
[null,null,null,null,null,null,null,null,null,null,"clothes",null,"stepfather, what-meaning?"]
[null,null,null,null,null,null,null,null,null,null,"clothes ",null,"stripes-[vertical], you face-[look] good you?"]
[null,null,null,null,null,null,null,null,null,null,"clothes-[dress]",null,"stripes-[vertical], you face-[look] good you? (do you look good in stripes?)"]
[null,null,null,null,null,null,null,null,null,null,"club-[#club-(lexicalized)]",null,"student fail class, why?"]
[null,null,null,null,null,null,null,null,null,null,"cluster",null,"student he ?"]
[null,null,null,null,null,null,null,null,null,null,"coat",null,"student you?"]
[null,null,null,null,null,null,null,null,null,null,"coat-[jacket]",null,"summer [bodyshift] winter, you like better which?"]
[null,null,null,null,null,null,null,null,null,null,"coat-animal",null,"summer [bodyshift]-or winter, you like better which? (which do you like better, summer or winter?)"]
[null,null,null,null,null,null,null,null,null,null,"cochlear implant",null,"summer vacation, you go-to-bed what-time?"]
[null,null,null,null,null,null,null,null,null,null,"coffee",null,"summer vacation, you go-to-bed what-time? (what time do you go to bed during summer vacation?)"]
[null,null,null,null,null,null,null,null,null,null,"coin",null,"summer vacation, you wake up what-time?"]
[null,null,null,null,null,null,null,null,null,null,"coins-[also see cl:f]",null,"summer vacation, you wake up what-time? (what time do you wake up during summer vacation?)"]
[null,null,null,null,null,null,null,null,null,null,"coke",null,"suppose eat egg, like ketchup you?"]
[null,null,null,null,null,null,null,null,null,null,"cold",null,"suppose eat egg, like ketchup you? (do you like ketchup on your eggs?)"]
[null,null,null,null,null,null,null,null,null,null,"cold-[refrigerator]",null,"suppose rain, cl:1-\"go out\" play, will sick you? (if you play in the rain, will you get sick?)"]
[null,null,null,null,null,null,null,null,null,null,"collect",null,"suppose rain, cl:-go out play, will sick you?"]
[null,null,null,null,null,null,null,null,null,null,"college",null,"suppose sick, you think go-to-bed help?"]
[null,null,null,null,null,null,null,null,null,null,"college-[university]",null,"suppose sick, you think go-to-bed help? (do you think bed rest will help when you are sick?)"]
[null,null,null,null,null,null,null,null,null,null,"color",null,"suppose teacher not come, wait 1/2 hour you?"]
[null,null,null,null,null,null,null,null,null,null,"coloring",null,"suppose teacher not come, wait 1/2-hour you? (would you wait a half-hour if the teacher doesn't come?)"]
[null,null,null,null,null,null,null,null,null,null,"comb",null,"suppose this class you fail, responsible who?"]
[null,null,null,null,null,null,null,null,null,null,"come",null,"suppose walk 4-hour, future-[will] tired you? (suppose you walk for four hours, would you be tired?)"]
[null,null,null,null,null,null,null,null,null,null,"come/[go]-[come on, go-there, go-to, attend]",null,"suppose walk -hour, will tired you?"]
[null,null,null,null,null,null,null,null,null,null,"come-on [see come/go]",null,"suppose you eat 3 hamburger, will full you? (if you eat three hamburgers will you be full?)"]
[null,null,null,null,null,null,null,null,null,null,"common sense",null,"suppose you eat three hamburger, will full you?"]
[null,null,null,null,null,null,null,null,null,null,"communication",null,"suppose you go bank, you prefer computer [bodyshift] true person teller?"]
[null,null,null,null,null,null,null,null,null,null,"commute",null,"suppose you go bank, you prefer computer o-r true person teller-fs"]
[null,null,null,null,null,null,null,null,null,null,"complain",null,"suppose you go church, pants [bodyshift] dress which you?"]
[null,null,null,null,null,null,null,null,null,null,"compliment",null,"suppose you go church, pants [bodyshift]-or dress which you? (if you go to church, do you wear pants or do you wear a dress?)"]
[null,null,null,null,null,null,null,null,null,null,"compromise",null,"suppose you go movie, you like eat popcorn?"]
[null,null,null,null,null,null,null,null,null,null,"computer",null,"suppose you go movie, you like eat popcorn? (do you like to eat popcorn at the movies?)"]
[null,null,null,null,null,null,null,null,null,null,"conclude",null,"suppose your dad divorce, marry new woman, she your what?"]
[null,null,null,null,null,null,null,null,null,null,"conflict",null,"suppose your dad divorce, marry new woman, she your what? (if your dad were divorced and re-married, what relationship would the new wife be to you?)"]
[null,null,null,null,null,null,null,null,null,null,"confrontation",null,"suppose your dog sick, you carry vet?"]
[null,null,null,null,null,null,null,null,null,null,"congratulations",null,"suppose your dog sick, you carry vet? (if your dog gets sick do you take it to the veterinarian?)"]
[null,null,null,null,null,null,null,null,null,null,"connect",null,"surprise test, you like?"]
[null,null,null,null,null,null,null,null,null,null,"constitution",null,"surprise test, you like? (do you like surprise tests?)"]
[null,null,null,null,null,null,null,null,null,null,"construction",null,"take-up asl for-for?"]
[null,null,null,null,null,null,null,null,null,null,"consume",null,"take-up asl for-for? (why are you taking asl?)"]
[null,null,null,null,null,null,null,null,null,null,"container",null,"teacher his wife, you know name?"]
[null,null,null,null,null,null,null,null,null,null,"contention",null,"teacher his/her wife/husband, you know name? (do you know the teacher's wife's/husband's name?)"]
[null,null,null,null,null,null,null,null,null,null,"continent (see country)",null,"teacher lights-flash, why?"]
[null,null,null,null,null,null,null,null,null,null,"continue",null,"teacher lights-flash, why? (why does the teacher flash the lights?)"]
[null,null,null,null,null,null,null,null,null,null,"control, manage",null,"tell-me about your teacher."]
[null,null,null,null,null,null,null,null,null,null,"convince",null,"tell-me how you feel."]
[null,null,null,null,null,null,null,null,null,null,"cook",null,"tell-me how you feel. (tell me how you feel.)"]
[null,null,null,null,null,null,null,null,null,null,"cookie",null,"tell-to-me about your teacher (tell me about your teacher.)"]
[null,null,null,null,null,null,null,null,null,null,"cool",null,"that table, color?"]
[null,null,null,null,null,null,null,null,null,null,"cool (spiffy)",null,"that table, color? (what color is that table?)"]
[null,null,null,null,null,null,null,null,null,null,"cool (temperature)",null,"they learn sign?"]
[null,null,null,null,null,null,null,null,null,null,"cool (version)",null,"this building have elevator?"]
[null,null,null,null,null,null,null,null,null,null,"cool: \"oh that's cool!\"",null,"this building, floors, how-many?"]
[null,null,null,null,null,null,null,null,null,null,"cope",null,"this city, bookstore, how-many?"]
[null,null,null,null,null,null,null,null,null,null,"copy",null,"this his/hers?"]
[null,null,null,null,null,null,null,null,null,null,"corn",null,"this his/hers? [point at any object] (is this his?)"]
[null,null,null,null,null,null,null,null,null,null,"corner",null,"this your?"]
[null,null,null,null,null,null,null,null,null,null,"cost, fee",null,"this your? "]
[null,null,null,null,null,null,null,null,null,null,"cost-[tax, fine, fee]",null,"this your? [point at any object.] (\"is this yours?\")"]
[null,null,null,null,null,null,null,null,null,null,"couch",null,"three dozen equal how-many?"]
[null,null,null,null,null,null,null,null,null,null,"cough",null,"tie you have? [if so] how-many?"]
[null,null,null,null,null,null,null,null,null,null,"counsel",null,"today you finish brush-teeth you?"]
[null,null,null,null,null,null,null,null,null,null,"count-[accountant]",null,"today you finish brush-teeth you? (did you brush your teeth today?)"]
[null,null,null,null,null,null,null,null,null,null,"count-on-[depend]",null,"today, teacher show-up what-time?"]
[null,null,null,null,null,null,null,null,null,null,"country",null,"today, your last class what?"]
[null,null,null,null,null,null,null,null,null,null,"court-[see if]",null,"today, your last class what? (what is your last class today?)"]
[null,null,null,null,null,null,null,null,null,null,"cousin",null,"tomorrow afternoon, you what-do?"]
[null,null,null,null,null,null,null,null,null,null,"cover-[shell]",null,"tomorrow breakfast you want pancake and sausage?"]
[null,null,null,null,null,null,null,null,null,null,"cow",null,"tomorrow breakfast you want pancake and sausage-[hotdog]? (would you like pancakes and sausage for breakfast tomorrow?)"]
[null,null,null,null,null,null,null,null,null,null,"cowboy",null,"tomorrow eat noon, you want soup and salad?"]
[null,null,null,null,null,null,null,null,null,null,"crack",null,"tomorrow eat noon, you want soup and salad? (would you like soup and salad for lunch tomorrow?)"]
[null,null,null,null,null,null,null,null,null,null,"crash",null,"tomorrow you #busy?"]
[null,null,null,null,null,null,null,null,null,null,"crawl",null,"tomorrow you go school?"]
[null,null,null,null,null,null,null,null,null,null,"crazy-[nuts, crazy-about]",null,"tomorrow you go school? (are you going to school tomorrow?)"]
[null,null,null,null,null,null,null,null,null,null,"create",null,"tomorrow you-help-me, don't-mind?"]
[null,null,null,null,null,null,null,null,null,null,"creator",null,"tomorrow, you #busy?"]
[null,null,null,null,null,null,null,null,null,null,"criticize",null,"toothpaste you, what-kind?"]
[null,null,null,null,null,null,null,null,null,null,"crochet",null,"topic you don't-care what?"]
[null,null,null,null,null,null,null,null,null,null,"crocodile",null,"topic you don't-care what? (what do you not care about?)"]
[null,null,null,null,null,null,null,null,null,null,"crosswalk",null,"topic you interested what?"]
[null,null,null,null,null,null,null,null,null,null,"cruel",null,"train travel, you like?"]
[null,null,null,null,null,null,null,null,null,null,"crush",null,"train travel, you like? (do you like to travel by train?)"]
[null,null,null,null,null,null,null,null,null,null,"cry",null,"t-r-i-g, you finish pass?"]
[null,null,null,null,null,null,null,null,null,null,"cry (4)",null,"true false test, you like?"]
[null,null,null,null,null,null,null,null,null,null,"cubby",null,"true false test, you like? (do you like true/false tests?)"]
[null,null,null,null,null,null,null,null,null,null,"culture",null,"twelve divide six equal what-[huh]?"]
[null,null,null,null,null,null,null,null,null,null,"cup",null,"uncle, how-many you?"]
[null,null,null,null,null,null,null,null,null,null,"cupcake",null,"up-to-now asl class you take-up how-many you?"]
[null,null,null,null,null,null,null,null,null,null,"curley-hair",null,"up-to-now, you move how-many time?"]
[null,null,null,null,null,null,null,null,null,null,"curly-hair",null,"u-s, president, who?"]
[null,null,null,null,null,null,null,null,null,null,"curtains",null,"u-s, president, who? (who is president of the united states?)"]
[null,null,null,null,null,null,null,null,null,null,"cushion",null,"waitress, how-much should t-i-p? (how much should you tip a waitress?)"]
[null,null,null,null,null,null,null,null,null,null,"cut costs",null,"waitress, you should tip how-much?"]
[null,null,null,null,null,null,null,null,null,null,"cut it out!",null,"want become interpreter you?"]
[null,null,null,null,null,null,null,null,null,null,"cute, sugar",null,"want become interpreter you? (do you want to be an interpreter?)"]
[null,null,null,null,null,null,null,null,null,null,"cute-[sugar]",null,"want go movie you?"]
[null,null,null,null,null,null,null,null,null,null,"dad",null,"want more children you?"]
[null,null,null,null,null,null,null,null,null,null,"dad, father",null,"warm cookie and milk, you like?"]
[null,null,null,null,null,null,null,null,null,null,"daily",null,"warm cookie and milk, you like? (do you like warm cookies and milk?)"]
[null,null,null,null,null,null,null,null,null,null,"dairy",null,"watch movie, you like close-caption?"]
[null,null,null,null,null,null,null,null,null,null,"dallas",null,"watch movie, you like close-caption? (do you like to watch close-captioned movies?)"]
[null,null,null,null,null,null,null,null,null,null,"dance",null,"water you drink everyday, cup how-many you?"]
[null,null,null,null,null,null,null,null,null,null,"dancer",null,"water you drink everyday, cup how-many you? (how many cups of water do you drink daily?)"]
[null,null,null,null,null,null,null,null,null,null,"dandelion",null,"water, milk, pop, beer, you prefer drink which you?"]
[null,null,null,null,null,null,null,null,null,null,"danger",null,"water, milk, pop, beer, you prefer drink which you? (which do you prefer to drink, water, milk, pop, or beer?)"]
[null,null,null,null,null,null,null,null,null,null,"dark",null,"week-[every] meeting how-many you?"]
[null,null,null,null,null,null,null,null,null,null,"date",null,"week-[every] meeting how-many you? (each week, how many meetings do you go to?)"]
[null,null,null,null,null,null,null,null,null,null,"daughter",null,"wet-wipes you keep car?"]
[null,null,null,null,null,null,null,null,null,null,"daughter-[see baby]",null,"wet-wipes you keep car? (do you keep wet wipes in your car?)"]
[null,null,null,null,null,null,null,null,null,null,"day",null,"what cost cent-25?"]
[null,null,null,null,null,null,null,null,null,null,"day, 3 days",null,"what-kind people you like?"]
[null,null,null,null,null,null,null,null,null,null,"day, all-day",null,"what-kind people you like? (what type of people do you like?)"]
[null,null,null,null,null,null,null,null,null,null,"days of the week",null,"what-kind toothpaste you? (what kind of toothpaste do you use?)"]
[null,null,null,null,null,null,null,null,null,null,"dead",null,"where b-o-b?"]
[null,null,null,null,null,null,null,null,null,null,"deaf",null,"which computer program you use? (which computer program or programs do you use?)"]
[null,null,null,null,null,null,null,null,null,null,"deafhood",null,"which you like best, spring, summer, fall? (which do you like best, spring, summer, or fall?)"]
[null,null,null,null,null,null,null,null,null,null,"deafness",null,"who he?"]
[null,null,null,null,null,null,null,null,null,null,"deaf-school",null,"who hurt your feel?"]
[null,null,null,null,null,null,null,null,null,null,"dear",null,"who this room have glasses?"]
[null,null,null,null,null,null,null,null,null,null,"debt: \"go in the hole\"",null,"who this room have glasses? (who in this room has glasses?)"]
[null,null,null,null,null,null,null,null,null,null,"deceive",null,"who you think better driver, woman, bodyshift-or man? (who do you think makes a better teacher, a woman or a man?)"]
[null,null,null,null,null,null,null,null,null,null,"decide-[determine]",null,"why deaf prefer kitchen? (why do deaf people tend to gather in the kitchen?) [good light.]"]
[null,null,null,null,null,null,null,null,null,null,"decimal",null,"winter here snow?"]
[null,null,null,null,null,null,null,null,null,null,"decline",null,"winter here snow? (does it snow here in the winter?)"]
[null,null,null,null,null,null,null,null,null,null,"decline, deteriorate",null,"wish have yourself helicopter you?"]
[null,null,null,null,null,null,null,null,null,null,"decorate",null,"wish have your-self helicopter you? (do you wish you had your own helicopter?)"]
[null,null,null,null,null,null,null,null,null,null,"decrease",null,"work you? sick day vacation you can how-many?"]
[null,null,null,null,null,null,null,null,null,null,"decrease, lose weight",null,"work you? sick day vacation you can how-many? (if you work, how many days of sick-leave do you get?)"]
[null,null,null,null,null,null,null,null,null,null,"deer",null,"wristwatch, who give-you?"]
[null,null,null,null,null,null,null,null,null,null,"delicious",null,"yesterday night eat what?"]
[null,null,null,null,null,null,null,null,null,null,"dentist",null,"yesterday night eat what? (what did you have for dinner yesterday?)"]
[null,null,null,null,null,null,null,null,null,null,"deny",null,"yesterday you shower?"]
[null,null,null,null,null,null,null,null,null,null,"depend",null,"yesterday you wake-up, what-time?"]
[null,null,null,null,null,null,null,null,null,null,"deplete",null,"yesterday you wake-up, what-time? (what time did you wake up yesterday?)"]
[null,null,null,null,null,null,null,null,null,null,"deplete-[see gone]",null,"yesterday, how-many time you eat? (how-many times did you eat yesterday?)"]
[null,null,null,null,null,null,null,null,null,null,"deposit",null,"yesterday, school finish after-[from-then-on] what-do you? (what did you do after school yesterday?)"]
[null,null,null,null,null,null,null,null,null,null,"depressed",null,"yesterday, school finish from-then-on you what-do?"]
[null,null,null,null,null,null,null,null,null,null,"desk-[see table]",null,"yesterday, you eat how-many time?"]
[null,null,null,null,null,null,null,null,null,null,"dessert",null,"you afraid high-(heights)?"]
[null,null,null,null,null,null,null,null,null,null,"destroy",null,"you afraid high-[heights]?"]
[null,null,null,null,null,null,null,null,null,null,"determined",null,"you afraid what?"]
[null,null,null,null,null,null,null,null,null,null,"detroit",null,"you afraid what? (what scares you?)"]
[null,null,null,null,null,null,null,null,null,null,"develop",null,"you can't understand he teacher, why?"]
[null,null,null,null,null,null,null,null,null,null,"diabetes",null,"you can't understand he/she teacher, why? (why can't you understand the teacher?)"]
[null,null,null,null,null,null,null,null,null,null,"diaper",null,"you change clothes, when?"]
[null,null,null,null,null,null,null,null,null,null,"dictionary",null,"you change clothes, when? (when do you change clothes?)"]
[null,null,null,null,null,null,null,null,null,null,"didn't",null,"you come here how?"]
[null,null,null,null,null,null,null,null,null,null,"die",null,"you divorced you?"]
[null,null,null,null,null,null,null,null,null,null,"diet",null,"you divorced you? (\"are you divorced?\")"]
[null,null,null,null,null,null,null,null,null,null,"different",null,"you don't-like candy?!?"]
[null,null,null,null,null,null,null,null,null,null,"difficult",null,"you don't-like candy?!? (don't you like candy?)"]
[null,null,null,null,null,null,null,null,null,null,"dig",null,"you draw good?"]
[null,null,null,null,null,null,null,null,null,null,"dinner",null,"you draw good? (do you draw well?)"]
[null,null,null,null,null,null,null,null,null,null,"dinosaur",null,"you drive here from home?"]
[null,null,null,null,null,null,null,null,null,null,"dirt",null,"you earn money how?"]
[null,null,null,null,null,null,null,null,null,null,"dirty",null,"you earn more-than 10 dollar hour?"]
[null,null,null,null,null,null,null,null,null,null,"dirty-minded",null,"you eat a-lot, regular, which?"]
[null,null,null,null,null,null,null,null,null,null,"disabled",null,"you eat a-lot, regular, which? (do you eat a lot, or do you eat a normal amount?)"]
[null,null,null,null,null,null,null,null,null,null,"disagree-[see opposite]",null,"you enjoy do-what?"]
[null,null,null,null,null,null,null,null,null,null,"disappear",null,"you enjoy do-what? (what do you enjoy doing?)"]
[null,null,null,null,null,null,null,null,null,null,"disappear, vanish",null,"you enjoy what-do?"]
[null,null,null,null,null,null,null,null,null,null,"discover",null,"you enjoy what-do? (what do you enjoy doing?)"]
[null,null,null,null,null,null,null,null,null,null,"discuss",null,"you favorite-[prefer] apple [bodyshift-\"or\"] oranges? (do you prefer apples or oranges?)"]
[null,null,null,null,null,null,null,null,null,null,"discuss (version)",null,"you favorite-[prefer], hamburger [body-shift-\"or\"] hotdog? (do you prefer hamburgers or hotdogs?)"]
[null,null,null,null,null,null,null,null,null,null,"discuss-bored (compound)",null,"you feel angry you?"]
[null,null,null,null,null,null,null,null,null,null,"discuss-bored (version)",null,"you feel anxious, when?"]
[null,null,null,null,null,null,null,null,null,null,"disdain",null,"you feel anxious, when? (when do you feel anxious?)"]
[null,null,null,null,null,null,null,null,null,null,"disgusted",null,"you feel frustrated when?"]
[null,null,null,null,null,null,null,null,null,null,"disgusting",null,"you feel frustrated when? (when do you feel frustrated?)"]
[null,null,null,null,null,null,null,null,null,null,"dish, plate",null,"you feel happy, when?"]
[null,null,null,null,null,null,null,null,null,null,"dish-[plate]",null,"you feel happy, when? (when do you feel happy?)"]
[null,null,null,null,null,null,null,null,null,null,"disneyland",null,"you feel stupid sometimes?"]
[null,null,null,null,null,null,null,null,null,null,"distance",null,"you feel want cry?"]
[null,null,null,null,null,null,null,null,null,null,"divide",null,"you finish watch movie \"__________?\" (have you seen the movie [spell a popular movie])"]
[null,null,null,null,null,null,null,null,null,null,"divorce",null,"you finish watch movie t-i-t-a-n-i-c?"]
[null,null,null,null,null,null,null,null,null,null,"dizzy",null,"you freshman, sophomore?"]
[null,null,null,null,null,null,null,null,null,null,"do, action",null,"you full?"]
[null,null,null,null,null,null,null,null,null,null,"do-[behavior/action]",null,"you full?-[flat hand under chin version] (are you full?)"]
[null,null,null,null,null,null,null,null,null,null,"doctor",null,"you gallaudet you?"]
[null,null,null,null,null,null,null,null,null,null,"doctor/[nurse]",null,"you gallaudet you? (did you go to gallaudet? / are you attending gallaudet?)"]
[null,null,null,null,null,null,null,null,null,null,"dog",null,"you go asl class, what-time?"]
[null,null,null,null,null,null,null,null,null,null,"doll",null,"you go asl class, what-time? (what time to you go to your asl class?)"]
[null,null,null,null,null,null,null,null,null,null,"dollar",null,"you go class on time always?"]
[null,null,null,null,null,null,null,null,null,null,"dolphin",null,"you go class on time always? (do you always go to class on time?)"]
[null,null,null,null,null,null,null,null,null,null,"done-(finish)",null,"you go dentist how often?"]
[null,null,null,null,null,null,null,null,null,null,"donkey-[stubborn]",null,"you go dentist how often? (how often do you go to the dentist?)"]
[null,null,null,null,null,null,null,null,null,null,"don't",null,"you go doctor, wait-[long], you sit-anxious you?"]
[null,null,null,null,null,null,null,null,null,null,"don't care",null,"you go doctor, wait-[long], you sit-anxious you? (do you get anxious when you wait a long time at the doctors office?)"]
[null,null,null,null,null,null,null,null,null,null,"don't care (ignore)",null,"you go school you?"]
[null,null,null,null,null,null,null,null,null,null,"don't care (version)",null,"you graduate soon you?"]
[null,null,null,null,null,null,null,null,null,null,"don't want",null,"you graduate soon you? (will you be graduating soon?)"]
[null,null,null,null,null,null,null,null,null,null,"don't-care",null,"you haircut, how often?"]
[null,null,null,null,null,null,null,null,null,null,"don't-forget",null,"you haircut, how often? (how often do you get your haircut?)"]
[null,null,null,null,null,null,null,null,null,null,"don't-have",null,"you happy?"]
[null,null,null,null,null,null,null,null,null,null,"don't-know",null,"you have baby?"]
[null,null,null,null,null,null,null,null,null,null,"don't-like",null,"you have dog and cat you?"]
[null,null,null,null,null,null,null,null,null,null,"don't-mind",null,"you have dog and cat you? (do you have a cat and a dog?)"]
[null,null,null,null,null,null,null,null,null,null,"don't-want",null,"you have excuse?"]
[null,null,null,null,null,null,null,null,null,null,"donut",null,"you have scarf?"]
[null,null,null,null,null,null,null,null,null,null,"door",null,"you have sister?"]
[null,null,null,null,null,null,null,null,null,null,"door-[open, open door, close door]",null,"you have sister? (\"do you have a sister?\")"]
[null,null,null,null,null,null,null,null,null,null,"dorm",null,"you have yourself office?"]
[null,null,null,null,null,null,null,null,null,null,"dots",null,"you have your-self office? (do you have your own office?)"]
[null,null,null,null,null,null,null,null,null,null,"doubt",null,"you how-tall (how tall are you?)"]
[null,null,null,null,null,null,null,null,null,null,"doubt2",null,"you how-tall?"]
[null,null,null,null,null,null,null,null,null,null,"dough",null,"you know where deaf center you? (do you know where the center for the deaf is?)"]
[null,null,null,null,null,null,null,null,null,null,"do-what? [#do-(lexicalized)]",null,"you learn sign, where?"]
[null,null,null,null,null,null,null,null,null,null,"down-[downstairs, calm-down]",null,"you learn sign, why ?"]
[null,null,null,null,null,null,null,null,null,null,"down-to-earth",null,"you leave-[go-away] this class, what-time?"]
[null,null,null,null,null,null,null,null,null,null,"dozen",null,"you leave-[go-away] this class, what-time? (what time will you leave this class?)"]
[null,null,null,null,null,null,null,null,null,null,"dr. pepper",null,"you like banana?"]
[null,null,null,null,null,null,null,null,null,null,"draw, art",null,"you like banana? (do you like bananas?)"]
[null,null,null,null,null,null,null,null,null,null,"draw-[art]",null,"you like chat phone?"]
[null,null,null,null,null,null,null,null,null,null,"drawer-[open drawer, close drawer]",null,"you like chat phone? (do you like to chat on the phone?)"]
[null,null,null,null,null,null,null,null,null,null,"draw-out",null,"you like chat-with deaf?"]
[null,null,null,null,null,null,null,null,null,null,"dream",null,"you like chat-with deaf? (do you like to chat with deaf people?)"]
[null,null,null,null,null,null,null,null,null,null,"dress",null,"you like color brown?"]
[null,null,null,null,null,null,null,null,null,null,"dresser",null,"you like color brown? (do you like the color brown?)"]
[null,null,null,null,null,null,null,null,null,null,"dresser, drawer",null,"you like cook?"]
[null,null,null,null,null,null,null,null,null,null,"dribble",null,"you like cook? (do you like to cook?)"]
[null,null,null,null,null,null,null,null,null,null,"drill",null,"you like cookies with milk?"]
[null,null,null,null,null,null,null,null,null,null,"drink",null,"you like cookies with milk? (do you like cookies and milk?)"]
[null,null,null,null,null,null,null,null,null,null,"dripping",null,"you like dance?"]
[null,null,null,null,null,null,null,null,null,null,"drive",null,"you like dance? (do you like to dance?)"]
[null,null,null,null,null,null,null,null,null,null,"drive-here",null,"you like fishing?"]
[null,null,null,null,null,null,null,null,null,null,"drive-to",null,"you like fishing? (do you like to fish?)"]
[null,null,null,null,null,null,null,null,null,null,"drop",null,"you like fool people?"]
[null,null,null,null,null,null,null,null,null,null,"drunk",null,"you like fool people? (do you like to fool people?)"]
[null,null,null,null,null,null,null,null,null,null,"drunk1",null,"you like go class early?"]
[null,null,null,null,null,null,null,null,null,null,"drunk2",null,"you like go play-field? (playground)"]
[null,null,null,null,null,null,null,null,null,null,"dry, dryer",null,"you like go playground?"]
[null,null,null,null,null,null,null,null,null,null,"dryer-[dry]",null,"you like learn sign?"]
[null,null,null,null,null,null,null,null,null,null,"duck",null,"you like learn sign? (do you like learning sign language?)"]
[null,null,null,null,null,null,null,null,null,null,"dull (boring)",null,"you like look-at yourself mirror?"]
[null,null,null,null,null,null,null,null,null,null,"dump",null,"you like math?"]
[null,null,null,null,null,null,null,null,null,null,"during, while",null,"you like meat?"]
[null,null,null,null,null,null,null,null,null,null,"during-[while]",null,"you like meet new people you?"]
[null,null,null,null,null,null,null,null,null,null,"duty-[obligation]",null,"you like meet new people you? (do you like to meet new people?)"]
[null,null,null,null,null,null,null,null,null,null,"dvd",null,"you like monday?"]
[null,null,null,null,null,null,null,null,null,null,"each",null,"you like monday? (do you like mondays?)"]
[null,null,null,null,null,null,null,null,null,null,"eagle",null,"you like mountain hike you?"]
[null,null,null,null,null,null,null,null,null,null,"ear",null,"you like play-cards you?"]
[null,null,null,null,null,null,null,null,null,null,"early",null,"you like red car?"]
[null,null,null,null,null,null,null,null,null,null,"earn",null,"you like red car? (do you like red cars?)"]
[null,null,null,null,null,null,null,null,null,null,"ears",null,"you like sign music-[songs] you?"]
[null,null,null,null,null,null,null,null,null,null,"earth-[planet]",null,"you like sign with who?"]
[null,null,null,null,null,null,null,null,null,null,"earth-quake-[planet]",null,"you like study outside?"]
[null,null,null,null,null,null,null,null,null,null,"east",null,"you like take-care-of plant you?"]
[null,null,null,null,null,null,null,null,null,null,"easter",null,"you like take-care-of plant you? (do you like gardening?)"]
[null,null,null,null,null,null,null,null,null,null,"easy",null,"you like washing-machine clothes?"]
[null,null,null,null,null,null,null,null,null,null,"easy-[almost]",null,"you like washing-machine clothes? (do you like doing laundry?)"]
[null,null,null,null,null,null,null,null,null,null,"eat, food",null,"you like your work?"]
[null,null,null,null,null,null,null,null,null,null,"eat-[food]",null,"you live a-p-t?"]
[null,null,null,null,null,null,null,null,null,null,"ebola",null,"you live basement apt?"]
[null,null,null,null,null,null,null,null,null,null,"egg",null,"you live basement apt? (do you live in a basement apartment?)"]
[null,null,null,null,null,null,null,null,null,null,"eighteen, 18",null,"you live big city past you? (have you ever lived in a big city?)"]
[null,null,null,null,null,null,null,null,null,null,"either",null,"you live dorm?"]
[null,null,null,null,null,null,null,null,null,null,"electricity",null,"you live here how-many year? (how many years have you lived here?)"]
[null,null,null,null,null,null,null,null,null,null,"elementary",null,"you live near school?"]
[null,null,null,null,null,null,null,null,null,null,"elephant",null,"you live where? (\"where do you live?\")"]
[null,null,null,null,null,null,null,null,null,null,"elevator",null,"you live, address big city past you?"]
[null,null,null,null,null,null,null,null,null,null,"eleven, 11",null,"you live, address here how-many year?"]
[null,null,null,null,null,null,null,null,null,null,"elis",null,"you live, address here?"]
[null,null,null,null,null,null,null,null,null,null,"email",null,"you live, address where ?"]
[null,null,null,null,null,null,null,null,null,null,"embarrassed",null,"you live, address where?"]
[null,null,null,null,null,null,null,null,null,null,"embassy",null,"you look-like your dad?"]
[null,null,null,null,null,null,null,null,null,null,"emergency",null,"you look-like your dad? (do you look like your dad?)"]
[null,null,null,null,null,null,null,null,null,null,"emotion",null,"you love who?"]
[null,null,null,null,null,null,null,null,null,null,"encore",null,"you mad, for-for? (why are you mad?)"]
[null,null,null,null,null,null,null,null,null,null,"encourage",null,"you mad, what-for?"]
[null,null,null,null,null,null,null,null,null,null,"end",null,"you married?"]
[null,null,null,null,null,null,null,null,null,null,"engineer",null,"you married? (\"are you married?\")"]
[null,null,null,null,null,null,null,null,null,null,"england-[english, british]",null,"you mischievous sometimes?"]
[null,null,null,null,null,null,null,null,null,null,"english",null,"you move-[to-here] when? (when did you move here?)"]
[null,null,null,null,null,null,null,null,null,null,"enjoy",null,"you move-here when?"]
[null,null,null,null,null,null,null,null,null,null,"enjoy-[appreciate]",null,"you name b-o-b, you?"]
[null,null,null,null,null,null,null,null,null,null,"enough",null,"you name b-o-b, you? (\"is your name bob?\")"]
[null,null,null,null,null,null,null,null,null,null,"enough-[good-enough, plenty]",null,"you name?"]
[null,null,null,null,null,null,null,null,null,null,"enter-[see in]",null,"you need bathroom?"]
[null,null,null,null,null,null,null,null,null,null,"enthusiastic",null,"you need go doctor?"]
[null,null,null,null,null,null,null,null,null,null,"environment",null,"you never eat candy you?"]
[null,null,null,null,null,null,null,null,null,null,"equal, fair, even",null,"you never eat candy you? (you never eat candy!?)"]
[null,null,null,null,null,null,null,null,null,null,"equal-[fair, level]",null,"you practice sign, why?"]
[null,null,null,null,null,null,null,null,null,null,"erase",null,"you practice sign, why? (why do you practice signing?)"]
[null,null,null,null,null,null,null,null,null,null,"errands",null,"you prefer apple [bodyshift] oranges?"]
[null,null,null,null,null,null,null,null,null,null,"establish-[set-up]",null,"you prefer car [bodyshift-\"or\"] truck? (do you prefer cars or trucks?)"]
[null,null,null,null,null,null,null,null,null,null,"esteem",null,"you prefer car [bodyshift] truck?"]
[null,null,null,null,null,null,null,null,null,null,"etcetera",null,"you prefer clothes bright, dark, which?"]
[null,null,null,null,null,null,null,null,null,null,"etched in memory",null,"you prefer hamburger [bodyshift] hotdog?"]
[null,null,null,null,null,null,null,null,null,null,"eternity",null,"you prefer live north [bodyshift] south?"]
[null,null,null,null,null,null,null,null,null,null,"euro",null,"you prefer live north or-[bodyshift] south?"]
[null,null,null,null,null,null,null,null,null,null,"europe",null,"you prefer live single  [bodyshift] roommate which?"]
[null,null,null,null,null,null,null,null,null,null,"evaporate",null,"you prefer live single-[alone] [bodyshift]-or roommate-[match] which?"]
[null,null,null,null,null,null,null,null,null,null,"every",null,"you prefer pizza [bodyshift] hamburger?"]
[null,null,null,null,null,null,null,null,null,null,"everyday",null,"you prefer pizza or hamburger? (would you rather have pizza or a hamburger?)"]
[null,null,null,null,null,null,null,null,null,null,"everywhere",null,"you prefer stove, microwave, which?"]
[null,null,null,null,null,null,null,null,null,null,"exact",null,"you prefer stove, microwave, which? (would you rather cook using a stove or a microwave?)"]
[null,null,null,null,null,null,null,null,null,null,"exact-[perfect]",null,"you proud about what?"]
[null,null,null,null,null,null,null,null,null,null,"exaggerate",null,"you proud about what? (what do you take pride in?)"]
[null,null,null,null,null,null,null,null,null,null,"exam",null,"you recent what-do?"]
[null,null,null,null,null,null,null,null,null,null,"example -[see show]",null,"you recent what-do? (what did you do recently?)"]
[null,null,null,null,null,null,null,null,null,null,"exceedingly",null,"you sad why?"]
[null,null,null,null,null,null,null,null,null,null,"exchange-[see trade]",null,"you school which day?"]
[null,null,null,null,null,null,null,null,null,null,"excited",null,"you school which day? (which days are you in school?)"]
[null,null,null,null,null,null,null,null,null,null,"excuse",null,"you search work you?"]
[null,null,null,null,null,null,null,null,null,null,"excuse-[lay-off/pardon/release/] (4)",null,"you search work you? (are you looking for work?)"]
[null,null,null,null,null,null,null,null,null,null,"exercise",null,"you sister how-many? (\"how-many sisters do you have?\")(also see: 2)"]
[null,null,null,null,null,null,null,null,null,null,"exit",null,"you sleep blanket how-many ?"]
[null,null,null,null,null,null,null,null,null,null,"expensive",null,"you sleep blanket how-many?"]
[null,null,null,null,null,null,null,null,null,null,"experience",null,"you sometimes feel lonely you?"]
[null,null,null,null,null,null,null,null,null,null,"experienced-(highly (b))",null,"you sometimes feel lonely you? (do you sometimes feel lonely?)"]
[null,null,null,null,null,null,null,null,null,null,"experienced-(highly)",null,"you sorry come class?"]
[null,null,null,null,null,null,null,null,null,null,"expert",null,"you start learn learn sign, when?"]
[null,null,null,null,null,null,null,null,null,null,"expire",null,"you start learn learn sign, when? (when did you start learning how to sign?)"]
[null,null,null,null,null,null,null,null,null,null,"explain, describe",null,"you think _______ earn too-much? [asl teacher, doctor, mechanic, etc.]"]
[null,null,null,null,null,null,null,null,null,null,"explain-[describe, directions]",null,"you think asl teacher earn too-much?"]
[null,null,null,null,null,null,null,null,null,null,"expose",null,"you think cat stuck-up?"]
[null,null,null,null,null,null,null,null,null,null,"exposure",null,"you think cat stuck-up? (do you think cats are stuck up?)"]
[null,null,null,null,null,null,null,null,null,null,"eyes",null,"you think children should change underwear daily?"]
[null,null,null,null,null,null,null,null,null,null,"face",null,"you think children should change underwear daily? (do you think children should change their underwear everyday?)"]
[null,null,null,null,null,null,null,null,null,null,"face, appearance, looks",null,"you think coffee taste good?"]
[null,null,null,null,null,null,null,null,null,null,"facebook",null,"you think cow good pet?"]
[null,null,null,null,null,null,null,null,null,null,"factory",null,"you think cow good pet? (do you think a cow would make a good pet?)"]
[null,null,null,null,null,null,null,null,null,null,"fail",null,"you think cute, who?"]
[null,null,null,null,null,null,null,null,null,null,"fairy",null,"you think cute, who? (who do you think is cute?)"]
[null,null,null,null,null,null,null,null,null,null,"fall",null,"you think find new address easy?"]
[null,null,null,null,null,null,null,null,null,null,"fall behind",null,"you think find new address easy? (do you think finding new addresses is easy?)"]
[null,null,null,null,null,null,null,null,null,null,"fall in love",null,"you think firemen brave?"]
[null,null,null,null,null,null,null,null,null,null,"fall in love (b)",null,"you think firemen brave? (do you think firemen are brave?)"]
[null,null,null,null,null,null,null,null,null,null,"fall-[see autumn, see cl:v]",null,"you think future you teach asl?"]
[null,null,null,null,null,null,null,null,null,null,"fall-in-love",null,"you think future you teach asl? (do you think that someday you will teach asl?)"]
[null,null,null,null,null,null,null,null,null,null,"false",null,"you think government pay good?"]
[null,null,null,null,null,null,null,null,null,null,"false, fake",null,"you think hard-of-hearing should marry deaf  [bodyshift] hearing?"]
[null,null,null,null,null,null,null,null,null,null,"familiar",null,"you think hard-of-hearing should marry deaf o-r hearing? (do you think hard-of-hearing people should marry deaf people or hearing people?)"]
[null,null,null,null,null,null,null,null,null,null,"family",null,"you think he teacher silly?"]
[null,null,null,null,null,null,null,null,null,null,"family-[class, group, team, category, cluster]",null,"you think he/she teacher silly? (do you think the teacher is silly?)"]
[null,null,null,null,null,null,null,null,null,null,"fancy",null,"you think i sign bad?"]
[null,null,null,null,null,null,null,null,null,null,"far",null,"you think i sign good?"]
[null,null,null,null,null,null,null,null,null,null,"far-(\"a\" hand, \"index finger)-[distant]",null,"you think life fair all people?"]
[null,null,null,null,null,null,null,null,null,null,"farm",null,"you think life fair all people? (do you think life is fair for all people?)"]
[null,null,null,null,null,null,null,null,null,null,"farm, farmer",null,"you think most dog friendly, mean, which?"]
[null,null,null,null,null,null,null,null,null,null,"fart",null,"you think most dog friendly, mean, which? (do you think most dogs are friendly or are they mean?)"]
[null,null,null,null,null,null,null,null,null,null,"fascinated",null,"you think most sell-agent friendly?"]
[null,null,null,null,null,null,null,null,null,null,"fast, quick",null,"you think parent should pay children for clean+ bedroom?"]
[null,null,null,null,null,null,null,null,null,null,"fast, speed",null,"you think person can fly without airplane?"]
[null,null,null,null,null,null,null,null,null,null,"fast: \"very fast\"",null,"you think salt bad for you?"]
[null,null,null,null,null,null,null,null,null,null,"fast-[quick, speed, immediately]",null,"you think salt bad for you? (do you think salt is bad for you?)"]
[null,null,null,null,null,null,null,null,null,null,"fat, obese",null,"you think school boring?"]
[null,null,null,null,null,null,null,null,null,null,"fat-[obese]",null,"you think school boring? (do you think school is boring?)"]
[null,null,null,null,null,null,null,null,null,null,"father",null,"you think school fun?"]
[null,null,null,null,null,null,null,null,null,null,"fault",null,"you think this class easy?"]
[null,null,null,null,null,null,null,null,null,null,"favorite-[prefer]",null,"you think this class easy? (do you think this class is easy?)"]
[null,null,null,null,null,null,null,null,null,null,"fear",null,"you think this class hard?"]
[null,null,null,null,null,null,null,null,null,null,"feather",null,"you think this class hard? (do you think this class is hard?)"]
[null,null,null,null,null,null,null,null,null,null,"fed up",null,"you think tonight freeze?"]
[null,null,null,null,null,null,null,null,null,null,"federal",null,"you think tonight freeze? (do you think it will freeze tonight?)"]
[null,null,null,null,null,null,null,null,null,null,"feeble-minded",null,"you together-steady someone?"]
[null,null,null,null,null,null,null,null,null,null,"feed, nourish",null,"you together-steady someone? (are you going steady with someone?)"]
[null,null,null,null,null,null,null,null,null,null,"feed-[nourish, spend]",null,"you understand he?"]
[null,null,null,null,null,null,null,null,null,null,"feel",null,"you use babysitter?"]
[null,null,null,null,null,null,null,null,null,null,"feel-good",null,"you use babysitter? (do you use a babysitter?)"]
[null,null,null,null,null,null,null,null,null,null,"feel-nothing",null,"you use deodorant you?"]
[null,null,null,null,null,null,null,null,null,null,"feet",null,"you use deodorant you? [mime rubbing deodorant under your arm] (do you use deodorant?)"]
[null,null,null,null,null,null,null,null,null,null,"fence",null,"you walk school you?"]
[null,null,null,null,null,null,null,null,null,null,"ferret",null,"you want baby?"]
[null,null,null,null,null,null,null,null,null,null,"few",null,"you want build yourself house?"]
[null,null,null,null,null,null,null,null,null,null,"few-[several]",null,"you want build your-self house? (do you want to build your own house?)"]
[null,null,null,null,null,null,null,null,null,null,"fiction",null,"you want go gallaudet future-[someday]?"]
[null,null,null,null,null,null,null,null,null,null,"field, ground, yard, area",null,"you want go gallaudet future-[someday]? (do you want to go to gallaudet university someday?)"]
[null,null,null,null,null,null,null,null,null,null,"field-[all-over, -dom, -hood, land, area, ground]",null,"you want go home now?"]
[null,null,null,null,null,null,null,null,null,null,"fight",null,"you want go home now? (do you want to go home now?)"]
[null,null,null,null,null,null,null,null,null,null,"figure-out",null,"you want go where?"]
[null,null,null,null,null,null,null,null,null,null,"file",null,"you want me sign fast?"]
[null,null,null,null,null,null,null,null,null,null,"filler-signs",null,"you want retire, how-old ?"]
[null,null,null,null,null,null,null,null,null,null,"finally, pah!",null,"you want retire, how-old?"]
[null,null,null,null,null,null,null,null,null,null,"find, pick-up",null,"you want stop learn sign?"]
[null,null,null,null,null,null,null,null,null,null,"find-[discover, pick-up]",null,"you wish yourself have secretary"]
[null,null,null,null,null,null,null,null,null,null,"fine",null,"you wish yourself have secretary (do you wish you had your own secretary?)"]
[null,null,null,null,null,null,null,null,null,null,"fine (defensive)",null,"you wish yourself lawyer?"]
[null,null,null,null,null,null,null,null,null,null,"fine (tepid)",null,"you wish your-self lawyer? (do you wish you were an attorney?)"]
[null,null,null,null,null,null,null,null,null,null,"fine (version)",null,"you work where?"]
[null,null,null,null,null,null,null,null,null,null,"fine/[cool, swell]",null,"you work where? (\"where do you work?\")"]
[null,null,null,null,null,null,null,null,null,null,"fingerspell",null,"you-meet my brother you?"]
[null,null,null,null,null,null,null,null,null,null,"fingerspelling-workshop",null,"you-meet my brother you? (\"have you met my brother? / did you meet my brother?\")"]
[null,null,null,null,null,null,null,null,null,null,"finish",null,"your _______, cost how-much? [fill in the blank]"]
[null,null,null,null,null,null,null,null,null,null,"finish touch (version)",null,"your __________ cost how-much-[cost]? [asl book, shoes, house, computer, etc.]"]
[null,null,null,null,null,null,null,null,null,null,"finish touch: \"been to\"",null,"your asl book cl:c-[thick]?"]
[null,null,null,null,null,null,null,null,null,null,"finish-(done)",null,"your asl book cl:c-[thick]? (is your asl book thick?)"]
[null,null,null,null,null,null,null,null,null,null,"finish: \"knock it off\"",null,"your asl book cost how-much?"]
[null,null,null,null,null,null,null,null,null,null,"fire",null,"your asl book, you lose before you?"]
[null,null,null,null,null,null,null,null,null,null,"fire-(terminate)-[excommunicate]",null,"your asl book, you lose before you? (have you ever lost your asl book?)"]
[null,null,null,null,null,null,null,null,null,null,"fire, flame",null,"your backpack have zip?"]
[null,null,null,null,null,null,null,null,null,null,"fire, terminante",null,"your backpack have zip? (does your backpack have a zipper?)"]
[null,null,null,null,null,null,null,null,null,null,"firefly",null,"your backpack heavy?"]
[null,null,null,null,null,null,null,null,null,null,"fireman",null,"your bathroom have t-u-b?"]
[null,null,null,null,null,null,null,null,null,null,"fireworks",null,"your bathroom have t-u-b? (does your bathroom have a tub?)"]
[null,null,null,null,null,null,null,null,null,null,"first",null,"your bedroom big?"]
[null,null,null,null,null,null,null,null,null,null,"fish",null,"your bedroom dirty little-bit?"]
[null,null,null,null,null,null,null,null,null,null,"fisherman",null,"your bedroom dirty little-bit? (is your bedroom a little bit dirty?)"]
[null,null,null,null,null,null,null,null,null,null,"fishing",null,"your bedroom have window?"]
[null,null,null,null,null,null,null,null,null,null,"five, 5",null,"your bedroom have window? (is there a window in your bedroom?)"]
[null,null,null,null,null,null,null,null,null,null,"fix, #fix",null,"your bedroom upstairs?"]
[null,null,null,null,null,null,null,null,null,null,"fix-[#fix]",null,"your bedroom upstairs? (is your bedroom upstairs?)"]
[null,null,null,null,null,null,null,null,null,null,"flash-lights",null,"your belt, color?"]
[null,null,null,null,null,null,null,null,null,null,"flash-lights, flashing lights",null,"your belt, color? (what color is your belt?)"]
[null,null,null,null,null,null,null,null,null,null,"flat-(tire) (surface)",null,"your boss name?"]
[null,null,null,null,null,null,null,null,null,null,"flattery",null,"your boss name? (what is your boss's name?)"]
[null,null,null,null,null,null,null,null,null,null,"flirt",null,"your boy/girl-friend name?"]
[null,null,null,null,null,null,null,null,null,null,"floor",null,"your boyfriend [or girlfriend] he/she jealous easy? (is your boyfriend [or girlfriend] the jealous type?)"]
[null,null,null,null,null,null,null,null,null,null,"floppy disk",null,"your boyfriend he jealous easy?"]
[null,null,null,null,null,null,null,null,null,null,"florida",null,"your boyfriend name?"]
[null,null,null,null,null,null,null,null,null,null,"flower",null,"your brother hair, color?"]
[null,null,null,null,null,null,null,null,null,null,"flunk",null,"your brother hair, color? (what color is your brother's hair?)"]
[null,null,null,null,null,null,null,null,null,null,"flunk, get an 'f'",null,"your cabinet what-color?"]
[null,null,null,null,null,null,null,null,null,null,"fly",null,"your cabinet-[cupboard], what-color?"]
[null,null,null,null,null,null,null,null,null,null,"fly-(insect)",null,"your car, gas, leave-[remaining] how-much-[volume]?"]
[null,null,null,null,null,null,null,null,null,null,"follow-[see with]",null,"your car, gas, remaining how-much?"]
[null,null,null,null,null,null,null,null,null,null,"food-[see eat]",null,"your cell phone cost how-much?"]
[null,null,null,null,null,null,null,null,null,null,"fool",null,"your chair green?"]
[null,null,null,null,null,null,null,null,null,null,"fooled",null,"your chair green? (is your chair green?)"]
[null,null,null,null,null,null,null,null,null,null,"foot",null,"your church send missionary?"]
[null,null,null,null,null,null,null,null,null,null,"football",null,"your church send missionary? (does your church send out missionaries?)"]
[null,null,null,null,null,null,null,null,null,null,"for",null,"your city have subway?"]
[null,null,null,null,null,null,null,null,null,null,"for-[what for]",null,"your city have subway? (is there a subway in your city?)"]
[null,null,null,null,null,null,null,null,null,null,"force",null,"your coffee, you like sugar?"]
[null,null,null,null,null,null,null,null,null,null,"foreclose",null,"your computer have web-cam?"]
[null,null,null,null,null,null,null,null,null,null,"forest",null,"your computer, shut-down every-night you?"]
[null,null,null,null,null,null,null,null,null,null,"forever",null,"your couch, color?"]
[null,null,null,null,null,null,null,null,null,null,"for-for, what-for",null,"your couch, color? (what color is your couch?)"]
[null,null,null,null,null,null,null,null,null,null,"forget",null,"your dad army before?"]
[null,null,null,null,null,null,null,null,null,null,"forget: \"finally! i can get that off my mind!\"",null,"your dad army before? (was your dad in the army?)"]
[null,null,null,null,null,null,null,null,null,null,"forgive",null,"your dad college?"]
[null,null,null,null,null,null,null,null,null,null,"fork",null,"your dad college? (did your dad go to college?)"]
[null,null,null,null,null,null,null,null,null,null,"fox",null,"your dad deaf?"]
[null,null,null,null,null,null,null,null,null,null,"fraction: 1/4",null,"your dad deaf? (\"is your dad deaf?\")"]
[null,null,null,null,null,null,null,null,null,null,"fractions-[see numbers]",null,"your dad eyes blue?"]
[null,null,null,null,null,null,null,null,null,null,"free",null,"your dad eyes blue? (does your dad have blue eyes?)"]
[null,null,null,null,null,null,null,null,null,null,"free-[independent, liberated, safe]",null,"your dad have beard?"]
[null,null,null,null,null,null,null,null,null,null,"freeway-[highway]",null,"your dad name, spell slow."]
[null,null,null,null,null,null,null,null,null,null,"freeze",null,"your dad name, spell slow. (\"spell your dad's name slowly.\")"]
[null,null,null,null,null,null,null,null,null,null,"freeze, ice",null,"your dad shave everyday?"]
[null,null,null,null,null,null,null,null,null,null,"french-fries",null,"your dad short?"]
[null,null,null,null,null,null,null,null,null,null,"french-toast",null,"your dad short? (is your dad short?)"]
[null,null,null,null,null,null,null,null,null,null,"freshman",null,"your dog, you feed everyday you?"]
[null,null,null,null,null,null,null,null,null,null,"friday",null,"your dog, you feed every-day you?"]
[null,null,null,null,null,null,null,null,null,null,"friday, every-friday",null,"your dryer, g-a-s, [bodyshift] electric which?"]
[null,null,null,null,null,null,null,null,null,null,"friend",null,"your dryer, g-a-s, [bodyshift] electric which? (is your clothes dryer gas or electric?)"]
[null,null,null,null,null,null,null,null,null,null,"friend-[good-friend, boy-friend, girl-friend] (4)",null,"your email address, what?"]
[null,null,null,null,null,null,null,null,null,null,"friendly, cheerful",null,"your exact address what?"]
[null,null,null,null,null,null,null,null,null,null,"friendly-[pleasant, cheerful]",null,"your family any deaf?"]
[null,null,null,null,null,null,null,null,null,null,"frisbee",null,"your family any library+person?"]
[null,null,null,null,null,null,null,null,null,null,"frog",null,"your family any library+person? (is anyone in your family a librarian?)"]
[null,null,null,null,null,null,null,null,null,null,"from",null,"your family any measure+agent-[engineer]?"]
[null,null,null,null,null,null,null,null,null,null,"from now on, from then on",null,"your family any measure+agent-[engineer]? (are there any engineers in your family?)"]
[null,null,null,null,null,null,null,null,null,null,"from-now-on",null,"your family, cook most who?"]
[null,null,null,null,null,null,null,null,null,null,"from-time-to-time",null,"your family, last child who?"]
[null,null,null,null,null,null,null,null,null,null,"front",null,"your family, last child who? (who was the last child in your family?)"]
[null,null,null,null,null,null,null,null,null,null,"frugal",null,"your family, who cook most? (who does most of the cooking in your family?)"]
[null,null,null,null,null,null,null,null,null,null,"fruit",null,"your family, who other-[else] sign?"]
[null,null,null,null,null,null,null,null,null,null,"frustrated",null,"your family, who wash-dishes?"]
[null,null,null,null,null,null,null,null,null,null,"full",null,"your father, how-many sons?"]
[null,null,null,null,null,null,null,null,null,null,"full, stuffed",null,"your favorite book, name?"]
[null,null,null,null,null,null,null,null,null,null,"fun",null,"your favorite book, name? (what is your favorite book?)"]
[null,null,null,null,null,null,null,null,null,null,"funny",null,"your favorite color, what?"]
[null,null,null,null,null,null,null,null,null,null,"furniture",null,"your favorite color, what? (what is your favorite color?)"]
[null,null,null,null,null,null,null,null,null,null,"future, will",null,"your favorite food what?"]
[null,null,null,null,null,null,null,null,null,null,"future-[later, will, someday, far in the future]",null,"your favorite food what? (what is your favorite food?)"]
[null,null,null,null,null,null,null,null,null,null,"gallaudet",null,"your favorite food, what?"]
[null,null,null,null,null,null,null,null,null,null,"gallon",null,"your favorite restaurant what?"]
[null,null,null,null,null,null,null,null,null,null,"game-[challenge]",null,"your favorite store, what?"]
[null,null,null,null,null,null,null,null,null,null,"garage",null,"your favorite time year what?"]
[null,null,null,null,null,null,null,null,null,null,"garbage",null,"your favorite time year what? (what is your favorite time of year?)"]
[null,null,null,null,null,null,null,null,null,null,"garlic",null,"your favorite towel, what color?"]
[null,null,null,null,null,null,null,null,null,null,"gas -[fart]",null,"your favorite vegetable what?"]
[null,null,null,null,null,null,null,null,null,null,"gas -[gasoline]",null,"your first car, what-color?"]
[null,null,null,null,null,null,null,null,null,null,"gas-station",null,"your first car, what-color? (what was the color of your first car?)"]
[null,null,null,null,null,null,null,null,null,null,"gay",null,"your first teacher, you remember his/her name?"]
[null,null,null,null,null,null,null,null,null,null,"gender",null,"your french-fries, you salt a-lot?"]
[null,null,null,null,null,null,null,null,null,null,"gentle",null,"your french-fries, you salt a-lot? (do you like a lot of salt on your french fries?)"]
[null,null,null,null,null,null,null,null,null,null,"geometry",null,"your grandma send-you money?"]
[null,null,null,null,null,null,null,null,null,null,"germany",null,"your grandpa bald?"]
[null,null,null,null,null,null,null,null,null,null,"get, receive",null,"your grandpa farmer?"]
[null,null,null,null,null,null,null,null,null,null,"get-[acquire]",null,"your grandpa farmer? (is [or was] your grandpa a farmer?)"]
[null,null,null,null,null,null,null,null,null,null,"get-along",null,"your grandpa skinny?"]
[null,null,null,null,null,null,null,null,null,null,"get-in",null,"your grandpa skinny? (is your grandpa skinny?)"]
[null,null,null,null,null,null,null,null,null,null,"get-on",null,"your hair, wow, do-what ?"]
[null,null,null,null,null,null,null,null,null,null,"ghost",null,"your hair, wow, do-what?"]
[null,null,null,null,null,null,null,null,null,null,"giant",null,"your hamburger want m-a-y-o you?"]
[null,null,null,null,null,null,null,null,null,null,"giraffe",null,"your hamburger want m-a-y-o you? (do you want mayonnaise on your hamburger?)"]
[null,null,null,null,null,null,null,null,null,null,"girl, female",null,"your hamburger, you like pickle?"]
[null,null,null,null,null,null,null,null,null,null,"girl-[woman, lady]",null,"your hamburger, you like pickle? (do you like pickles on your hamburger?)"]
[null,null,null,null,null,null,null,null,null,null,"girlfriend",null,"your hearing-aid, battery, what-kind?"]
[null,null,null,null,null,null,null,null,null,null,"give, give-you",null,"your hearing-aid, battery, what-kind? (what kind of hearing-aid battery do you use?)"]
[null,null,null,null,null,null,null,null,null,null,"give-[hand to]",null,"your home, where?"]
[null,null,null,null,null,null,null,null,null,null,"give-up, sacrifice",null,"your hotdog, want mustard you?"]
[null,null,null,null,null,null,null,null,null,null,"give-up-[sacrifice]",null,"your hotdog, want mustard you? (do you want mustard on your hotdog?)"]
[null,null,null,null,null,null,null,null,null,null,"glass-[see cup]",null,"your house big?"]
[null,null,null,null,null,null,null,null,null,null,"glasses, gallaudet",null,"your house how far?"]
[null,null,null,null,null,null,null,null,null,null,"glasses-[gallaudet]",null,"your house need paint?"]
[null,null,null,null,null,null,null,null,null,null,"go",null,"your house need paint? (does your house need painting?)"]
[null,null,null,null,null,null,null,null,null,null,"go, take-off",null,"your house pay low?"]
[null,null,null,null,null,null,null,null,null,null,"go: \"go over to\" / \"i go over there. she comes over here.\"",null,"your house small?"]
[null,null,null,null,null,null,null,null,null,null,"go: \"go to various places\"",null,"your house, clothes dirty, put-in basket who?"]
[null,null,null,null,null,null,null,null,null,null,"go: \"i go over to your house.\"",null,"your house, clothes dirty, who put-(in)++, basket? (who picks up dirty clothes at your house?)"]
[null,null,null,null,null,null,null,null,null,null,"go-[also see come]",null,"your house, front door, what-color?"]
[null,null,null,null,null,null,null,null,null,null,"go-ahead",null,"your house, front field-[yard] tree have?"]
[null,null,null,null,null,null,null,null,null,null,"goal",null,"your house, front yard tree have?"]
[null,null,null,null,null,null,null,null,null,null,"goat",null,"your house, furniture, what-color?"]
[null,null,null,null,null,null,null,null,null,null,"god",null,"your house, garbage, who \"throw out?\" [mime \"throw out\"] (who takes out the garbage in your house?)"]
[null,null,null,null,null,null,null,null,null,null,"god: \"god is awesome\"",null,"your house, garbage, who throw out?"]
[null,null,null,null,null,null,null,null,null,null,"gold",null,"your house, how-many bathroom?"]
[null,null,null,null,null,null,null,null,null,null,"gold/silver",null,"your house, how-many bathroom? (how many bathrooms are there in your house?)"]
[null,null,null,null,null,null,null,null,null,null,"gone-[absent, deplete, run- out- of]",null,"your house, street, what-name?"]
[null,null,null,null,null,null,null,null,null,null,"good",null,"your house, who manage?"]
[null,null,null,null,null,null,null,null,null,null,"goodbye",null,"your house, who manage? (who runs your house [apartment, dorm, etc.]?)"]
[null,null,null,null,null,null,null,null,null,null,"good-enough",null,"your keys, you lose before?"]
[null,null,null,null,null,null,null,null,null,null,"good-looking",null,"your last name, how spell?"]
[null,null,null,null,null,null,null,null,null,null,"good-night",null,"your major what?"]
[null,null,null,null,null,null,null,null,null,null,"good-night-moon",null,"your major what? (what are you majoring in?)"]
[null,null,null,null,null,null,null,null,null,null,"gorilla",null,"your major-[profession] what? (what is your major in school or your line of work?)"]
[null,null,null,null,null,null,null,null,null,null,"gossip",null,"your mom address what?"]
[null,null,null,null,null,null,null,null,null,null,"go-to-bed",null,"your mom eyes brown?"]
[null,null,null,null,null,null,null,null,null,null,"government",null,"your mom eyes brown? (does your mom have brown eyes?)"]
[null,null,null,null,null,null,null,null,null,null,"grace",null,"your mom name 'huh'? (\"what is your mom's name?\")"]
[null,null,null,null,null,null,null,null,null,null,"grade",null,"your mom name what?"]
[null,null,null,null,null,null,null,null,null,null,"graduate",null,"your mom sometimes skirt-short?"]
[null,null,null,null,null,null,null,null,null,null,"grain",null,"your mom what-do?"]
[null,null,null,null,null,null,null,null,null,null,"granddaughter",null,"your money, you keep where?"]
[null,null,null,null,null,null,null,null,null,null,"grandma",null,"your neighbor name, what?"]
[null,null,null,null,null,null,null,null,null,null,"grandpa",null,"your neighbor name, what? (what is your neighbor's name?)"]
[null,null,null,null,null,null,null,null,null,null,"grandson",null,"your next class what?"]
[null,null,null,null,null,null,null,null,null,null,"grant-give",null,"your next class what? (what class do you have next?)"]
[null,null,null,null,null,null,null,null,null,null,"grapes",null,"your pants, you put dresser, \"hang-up\" which? (do you keep your pants in a dresser or do you hang them up?) [mime \"hang up\" using an x-hand as the \"hanger\" and an index-finger as the \"bar.\"]"]
[null,null,null,null,null,null,null,null,null,null,"graph",null,"your pants, you put dresser, hang-up which?"]
[null,null,null,null,null,null,null,null,null,null,"grass, hay",null,"your paper, what color?"]
[null,null,null,null,null,null,null,null,null,null,"grass-[hay]",null,"your paper, what color? (what color is your paper?)"]
[null,null,null,null,null,null,null,null,null,null,"gratitude",null,"your parents divorce?"]
[null,null,null,null,null,null,null,null,null,null,"grave",null,"your parents divorce? (are your parents divorced?)"]
[null,null,null,null,null,null,null,null,null,null,"gravy",null,"your phone number, you post bathroom?"]
[null,null,null,null,null,null,null,null,null,null,"great, wonderful",null,"your refrigerator full?"]
[null,null,null,null,null,null,null,null,null,null,"great-[wonderful]",null,"your refrigerator full? (is your refrigerator full?)"]
[null,null,null,null,null,null,null,null,null,null,"greedy",null,"your refrigerator, orange juice remaining how-much?"]
[null,null,null,null,null,null,null,null,null,null,"green",null,"your refrigerator, orange-\"j\" leave-[remaining] how-much-[volume]?"]
[null,null,null,null,null,null,null,null,null,null,"grits",null,"your refrigerator, what color? (what color is your fridge?)"]
[null,null,null,null,null,null,null,null,null,null,"groovy",null,"your refrigerator, what-color?"]
[null,null,null,null,null,null,null,null,null,null,"group-[see family]",null,"your resume, how-many page?"]
[null,null,null,null,null,null,null,null,null,null,"grow",null,"your resume, how-many page? (how many pages is your resume?)"]
[null,null,null,null,null,null,null,null,null,null,"grow-up, raised",null,"your shirt, what-color?"]
[null,null,null,null,null,null,null,null,null,null,"guarded",null,"your shirt, what-color? (what color is your shirt?)"]
[null,null,null,null,null,null,null,null,null,null,"guest",null,"your signing, improve how?"]
[null,null,null,null,null,null,null,null,null,null,"guinea-pig",null,"your s-i-n-k what-color?"]
[null,null,null,null,null,null,null,null,null,null,"gym",null,"your s-i-n-k what-color? (what color is your sink?)"]
[null,null,null,null,null,null,null,null,null,null,"gymnastics",null,"your s-i-n-k, color?"]
[null,null,null,null,null,null,null,null,null,null,"habit",null,"your s-i-n-k, color? (what color is your sink?) [fingerspell \"s-i-n-k\"]"]
[null,null,null,null,null,null,null,null,null,null,"hair",null,"your sister fat?"]
[null,null,null,null,null,null,null,null,null,null,"hair- long, long-hair",null,"your sister fat? (is your sister fat?)"]
[null,null,null,null,null,null,null,null,null,null,"hair-buzz",null,"your sister like egg?"]
[null,null,null,null,null,null,null,null,null,null,"hair-buzz, buzz-cut",null,"your sister like egg? (does your sister like eggs?)"]
[null,null,null,null,null,null,null,null,null,null,"hair-curly, curly-hair",null,"your sister shy?"]
[null,null,null,null,null,null,null,null,null,null,"haircut",null,"your sister single?"]
[null,null,null,null,null,null,null,null,null,null,"hair-cut",null,"your sister single? (\"is your sister single?\")"]
[null,null,null,null,null,null,null,null,null,null,"hair-dryer",null,"your sock drawer, what-color?"]
[null,null,null,null,null,null,null,null,null,null,"hair-raising",null,"your socks, color? (what color are your socks?)"]
[null,null,null,null,null,null,null,null,null,null,"hair-short, short-hair",null,"your socks, what-color?"]
[null,null,null,null,null,null,null,null,null,null,"hair-straight, straight-hair",null,"your supervisor, who?"]
[null,null,null,null,null,null,null,null,null,null,"half",null,"your supervisor, who? (who is your supervisor?)"]
[null,null,null,null,null,null,null,null,null,null,"half-hour",null,"your tea, you want how-many sugar?"]
[null,null,null,null,null,null,null,null,null,null,"half-hour, ½ hour",null,"your teacher have aide?"]
[null,null,null,null,null,null,null,null,null,null,"hall",null,"your teacher have aide? (does you teacher have an aide?)"]
[null,null,null,null,null,null,null,null,null,null,"halloween",null,"your teacher name 'huh'?"]
[null,null,null,null,null,null,null,null,null,null,"ham",null,"your teacher, who?"]
[null,null,null,null,null,null,null,null,null,null,"hamburger",null,"your tv close-captioned?"]
[null,null,null,null,null,null,null,null,null,null,"hammer",null,"your tv close-captioned? (is your television close-captioned?)"]
[null,null,null,null,null,null,null,null,null,null,"hand",null,"your worst class what?"]
[null,null,null,null,null,null,null,null,null,null,"hands",null,"your worst class what? (what is your worst class?)"]
[null,null,null,null,null,null,null,null,null,null,"handshapes"]
[null,null,null,null,null,null,null,null,null,null,"handsome"]
[null,null,null,null,null,null,null,null,null,null,"hanukah(\"hanukkah or hanukah also chanukah.\")"]
[null,null,null,null,null,null,null,null,null,null,"happen"]
[null,null,null,null,null,null,null,null,null,null,"happen, when"]
[null,null,null,null,null,null,null,null,null,null,"happy"]
[null,null,null,null,null,null,null,null,null,null,"hard"]
[null,null,null,null,null,null,null,null,null,null,"hard-[tough, difficult, problem]"]
[null,null,null,null,null,null,null,null,null,null,"hard-of-hearing"]
[null,null,null,null,null,null,null,null,null,null,"harry-potter"]
[null,null,null,null,null,null,null,null,null,null,"hat"]
[null,null,null,null,null,null,null,null,null,null,"haunted-house"]
[null,null,null,null,null,null,null,null,null,null,"have"]
[null,null,null,null,null,null,null,null,null,null,"have, had"]
[null,null,null,null,null,null,null,null,null,null,"have-to [see need/must]"]
[null,null,null,null,null,null,null,null,null,null,"hawaii"]
[null,null,null,null,null,null,null,null,null,null,"he"]
[null,null,null,null,null,null,null,null,null,null,"he, she, it"]
[null,null,null,null,null,null,null,null,null,null,"head"]
[null,null,null,null,null,null,null,null,null,null,"head-cold"]
[null,null,null,null,null,null,null,null,null,null,"headphones"]
[null,null,null,null,null,null,null,null,null,null,"heal / healthy"]
[null,null,null,null,null,null,null,null,null,null,"health-[see body]"]
[null,null,null,null,null,null,null,null,null,null,"hear-[sound]"]
[null,null,null,null,null,null,null,null,null,null,"hearing"]
[null,null,null,null,null,null,null,null,null,null,"hearing-aid"]
[null,null,null,null,null,null,null,null,null,null,"heart"]
[null,null,null,null,null,null,null,null,null,null,"heart2"]
[null,null,null,null,null,null,null,null,null,null,"heart-attack"]
[null,null,null,null,null,null,null,null,null,null,"heavy"]
[null,null,null,null,null,null,null,null,null,null,"helen keller"]
[null,null,null,null,null,null,null,null,null,null,"helicopter"]
[null,null,null,null,null,null,null,null,null,null,"hello"]
[null,null,null,null,null,null,null,null,null,null,"help"]
[null,null,null,null,null,null,null,null,null,null,"here"]
[null,null,null,null,null,null,null,null,null,null,"hermit"]
[null,null,null,null,null,null,null,null,null,null,"hey"]
[null,null,null,null,null,null,null,null,null,null,"hi"]
[null,null,null,null,null,null,null,null,null,null,"hide"]
[null,null,null,null,null,null,null,null,null,null,"high"]
[null,null,null,null,null,null,null,null,null,null,"high, height"]
[null,null,null,null,null,null,null,null,null,null,"high-school"]
[null,null,null,null,null,null,null,null,null,null,"hike"]
[null,null,null,null,null,null,null,null,null,null,"hike-[see cl:v]"]
[null,null,null,null,null,null,null,null,null,null,"himself"]
[null,null,null,null,null,null,null,null,null,null,"hippie"]
[null,null,null,null,null,null,null,null,null,null,"hippopotamus"]
[null,null,null,null,null,null,null,null,null,null,"hire, invite"]
[null,null,null,null,null,null,null,null,null,null,"hire-[invite, introduce, welcome]"]
[null,null,null,null,null,null,null,null,null,null,"his, hers, its"]
[null,null,null,null,null,null,null,null,null,null,"his-[see possession]"]
[null,null,null,null,null,null,null,null,null,null,"history"]
[null,null,null,null,null,null,null,null,null,null,"hit"]
[null,null,null,null,null,null,null,null,null,null,"hit: \"occur / strike / commence\""]
[null,null,null,null,null,null,null,null,null,null,"hockey"]
[null,null,null,null,null,null,null,null,null,null,"hold: \"hey! just hold on that!\""]
[null,null,null,null,null,null,null,null,null,null,"hold: \"hold on / put that on hold\""]
[null,null,null,null,null,null,null,null,null,null,"holiday"]
[null,null,null,null,null,null,null,null,null,null,"holland"]
[null,null,null,null,null,null,null,null,null,null,"home"]
[null,null,null,null,null,null,null,null,null,null,"homework"]
[null,null,null,null,null,null,null,null,null,null,"honey-i-shrunk-the-audience"]
[null,null,null,null,null,null,null,null,null,null,"honor"]
[null,null,null,null,null,null,null,null,null,null,"horse"]
[null,null,null,null,null,null,null,null,null,null,"hospital"]
[null,null,null,null,null,null,null,null,null,null,"hot"]
[null,null,null,null,null,null,null,null,null,null,"hot-air-balloon"]
[null,null,null,null,null,null,null,null,null,null,"hotdog"]
[null,null,null,null,null,null,null,null,null,null,"hotdog, sausage"]
[null,null,null,null,null,null,null,null,null,null,"hotel"]
[null,null,null,null,null,null,null,null,null,null,"hour"]
[null,null,null,null,null,null,null,null,null,null,"hour-[1/2-hour, numerical incorporation]"]
[null,null,null,null,null,null,null,null,null,null,"house"]
[null,null,null,null,null,null,null,null,null,null,"houston"]
[null,null,null,null,null,null,null,null,null,null,"how"]
[null,null,null,null,null,null,null,null,null,null,"how was your day?"]
[null,null,null,null,null,null,null,null,null,null,"how-many"]
[null,null,null,null,null,null,null,null,null,null,"how-many-[many]"]
[null,null,null,null,null,null,null,null,null,null,"how-much"]
[null,null,null,null,null,null,null,null,null,null,"hug"]
[null,null,null,null,null,null,null,null,null,null,"huh?"]
[null,null,null,null,null,null,null,null,null,null,"human"]
[null,null,null,null,null,null,null,null,null,null,"humble"]
[null,null,null,null,null,null,null,null,null,null,"hummingbird"]
[null,null,null,null,null,null,null,null,null,null,"hump"]
[null,null,null,null,null,null,null,null,null,null,"hungry, wish"]
[null,null,null,null,null,null,null,null,null,null,"hungry-[wish]"]
[null,null,null,null,null,null,null,null,null,null,"hurry, rush"]
[null,null,null,null,null,null,null,null,null,null,"hurry-[rush]"]
[null,null,null,null,null,null,null,null,null,null,"hurt"]
[null,null,null,null,null,null,null,null,null,null,"hurt [pain, injury]"]
[null,null,null,null,null,null,null,null,null,null,"husband"]
[null,null,null,null,null,null,null,null,null,null,"husband-[see marriage]"]
[null,null,null,null,null,null,null,null,null,null,"hush"]
[null,null,null,null,null,null,null,null,null,null,"i am"]
[null,null,null,null,null,null,null,null,null,null,"i or \"me\""]
[null,null,null,null,null,null,null,null,null,null,"i, me"]
[null,null,null,null,null,null,null,null,null,null,"ice-[#ice-(lexicalized)]"]
[null,null,null,null,null,null,null,null,null,null,"ice-cream"]
[null,null,null,null,null,null,null,null,null,null,"ice-skate-[see roller-blade]"]
[null,null,null,null,null,null,null,null,null,null,"idea"]
[null,null,null,null,null,null,null,null,null,null,"idiot"]
[null,null,null,null,null,null,null,null,null,null,"if, suppose"]
[null,null,null,null,null,null,null,null,null,null,"if-[#if-(lexicalized)]"]
[null,null,null,null,null,null,null,null,null,null,"ignoramus"]
[null,null,null,null,null,null,null,null,null,null,"immigrant"]
[null,null,null,null,null,null,null,null,null,null,"important-[value, cost, worth]"]
[null,null,null,null,null,null,null,null,null,null,"impossible"]
[null,null,null,null,null,null,null,null,null,null,"impressed"]
[null,null,null,null,null,null,null,null,null,null,"improve"]
[null,null,null,null,null,null,null,null,null,null,"improve, get better"]
[null,null,null,null,null,null,null,null,null,null,"in"]
[null,null,null,null,null,null,null,null,null,null,"in, inside"]
[null,null,null,null,null,null,null,null,null,null,"inch"]
[null,null,null,null,null,null,null,null,null,null,"incompetent-[not-good-at, inept]"]
[null,null,null,null,null,null,null,null,null,null,"increase"]
[null,null,null,null,null,null,null,null,null,null,"increase, gain weight"]
[null,null,null,null,null,null,null,null,null,null,"indexing- [them, they, those, us, we, you-all, that]"]
[null,null,null,null,null,null,null,null,null,null,"indexing second of four"]
[null,null,null,null,null,null,null,null,null,null,"indexing: first of four"]
[null,null,null,null,null,null,null,null,null,null,"indexing: fourth of four"]
[null,null,null,null,null,null,null,null,null,null,"indexing: next month second week"]
[null,null,null,null,null,null,null,null,null,null,"indexing: the first and third week"]
[null,null,null,null,null,null,null,null,null,null,"indexing: the second and third weeks"]
[null,null,null,null,null,null,null,null,null,null,"indexing: third of four"]
[null,null,null,null,null,null,null,null,null,null,"india"]
[null,null,null,null,null,null,null,null,null,null,"indian"]
[null,null,null,null,null,null,null,null,null,null,"infection"]
[null,null,null,null,null,null,null,null,null,null,"inherit"]
[null,null,null,null,null,null,null,null,null,null,"ink"]
[null,null,null,null,null,null,null,null,null,null,"in-law"]
[null,null,null,null,null,null,null,null,null,null,"innocent"]
[null,null,null,null,null,null,null,null,null,null,"inspiration-[see fire]"]
[null,null,null,null,null,null,null,null,null,null,"inspire"]
[null,null,null,null,null,null,null,null,null,null,"installment payments"]
[null,null,null,null,null,null,null,null,null,null,"institute"]
[null,null,null,null,null,null,null,null,null,null,"instrument"]
[null,null,null,null,null,null,null,null,null,null,"insulin"]
[null,null,null,null,null,null,null,null,null,null,"insulin2"]
[null,null,null,null,null,null,null,null,null,null,"insulin3"]
[null,null,null,null,null,null,null,null,null,null,"insult"]
[null,null,null,null,null,null,null,null,null,null,"insurance"]
[null,null,null,null,null,null,null,null,null,null,"interest"]
[null,null,null,null,null,null,null,null,null,null,"interesting"]
[null,null,null,null,null,null,null,null,null,null,"interminable"]
[null,null,null,null,null,null,null,null,null,null,"intermission"]
[null,null,null,null,null,null,null,null,null,null,"intermission (version)"]
[null,null,null,null,null,null,null,null,null,null,"international"]
[null,null,null,null,null,null,null,null,null,null,"international-study"]
[null,null,null,null,null,null,null,null,null,null,"internet"]
[null,null,null,null,null,null,null,null,null,null,"interpreter"]
[null,null,null,null,null,null,null,null,null,null,"interrupt-[bother]"]
[null,null,null,null,null,null,null,null,null,null,"intersect-[graph]"]
[null,null,null,null,null,null,null,null,null,null,"intersection"]
[null,null,null,null,null,null,null,null,null,null,"intersection/crossroads-[see conflict page]"]
[null,null,null,null,null,null,null,null,null,null,"interview"]
[null,null,null,null,null,null,null,null,null,null,"intimacy"]
[null,null,null,null,null,null,null,null,null,null,"intrude"]
[null,null,null,null,null,null,null,null,null,null,"invent"]
[null,null,null,null,null,null,null,null,null,null,"invest"]
[null,null,null,null,null,null,null,null,null,null,"investigate-[research, check]"]
[null,null,null,null,null,null,null,null,null,null,"invisible"]
[null,null,null,null,null,null,null,null,null,null,"involved"]
[null,null,null,null,null,null,null,null,null,null,"i-pad"]
[null,null,null,null,null,null,null,null,null,null,"ireland"]
[null,null,null,null,null,null,null,null,null,null,"is-[how to handle \"be verbs\"]"]
[null,null,null,null,null,null,null,null,null,null,"ish (-ish)"]
[null,null,null,null,null,null,null,null,null,null,"island"]
[null,null,null,null,null,null,null,null,null,null,"israel"]
[null,null,null,null,null,null,null,null,null,null,"issues"]
[null,null,null,null,null,null,null,null,null,null,"it"]
[null,null,null,null,null,null,null,null,null,null,"italy"]
[null,null,null,null,null,null,null,null,null,null,"itch"]
[null,null,null,null,null,null,null,null,null,null,"its-[see possession]"]
[null,null,null,null,null,null,null,null,null,null,"jacket"]
[null,null,null,null,null,null,null,null,null,null,"jail"]
[null,null,null,null,null,null,null,null,null,null,"janitor"]
[null,null,null,null,null,null,null,null,null,null,"japan"]
[null,null,null,null,null,null,null,null,null,null,"jealous"]
[null,null,null,null,null,null,null,null,null,null,"jehovah's witnesses"]
[null,null,null,null,null,null,null,null,null,null,"jesus"]
[null,null,null,null,null,null,null,null,null,null,"jewish"]
[null,null,null,null,null,null,null,null,null,null,"job, #job"]
[null,null,null,null,null,null,null,null,null,null,"job-[#job-(lexicalized)]"]
[null,null,null,null,null,null,null,null,null,null,"join"]
[null,null,null,null,null,null,null,null,null,null,"joking"]
[null,null,null,null,null,null,null,null,null,null,"judge-[see if]"]
[null,null,null,null,null,null,null,null,null,null,"juice"]
[null,null,null,null,null,null,null,null,null,null,"jump"]
[null,null,null,null,null,null,null,null,null,null,"junior"]
[null,null,null,null,null,null,null,null,null,null,"just"]
[null,null,null,null,null,null,null,null,null,null,"keep"]
[null,null,null,null,null,null,null,null,null,null,"keep-[take-care-of, lend, borrow, type]"]
[null,null,null,null,null,null,null,null,null,null,"ketchup"]
[null,null,null,null,null,null,null,null,null,null,"keyboard"]
[null,null,null,null,null,null,null,null,null,null,"keys"]
[null,null,null,null,null,null,null,null,null,null,"kick back (relax)"]
[null,null,null,null,null,null,null,null,null,null,"kid (child)"]
[null,null,null,null,null,null,null,null,null,null,"kill"]
[null,null,null,null,null,null,null,null,null,null,"kind, type"]
[null,null,null,null,null,null,null,null,null,null,"kiss"]
[null,null,null,null,null,null,null,null,null,null,"kiss fist: \"fist smack\""]
[null,null,null,null,null,null,null,null,null,null,"kitchen"]
[null,null,null,null,null,null,null,null,null,null,"kite"]
[null,null,null,null,null,null,null,null,null,null,"kitten"]
[null,null,null,null,null,null,null,null,null,null,"knife"]
[null,null,null,null,null,null,null,null,null,null,"knit"]
[null,null,null,null,null,null,null,null,null,null,"knock it off"]
[null,null,null,null,null,null,null,null,null,null,"knock it off (finish)"]
[null,null,null,null,null,null,null,null,null,null,"know"]
[null,null,null,null,null,null,null,null,null,null,"know nothing"]
[null,null,null,null,null,null,null,null,null,null,"know-[don't know, know-that, know-nothing, familiar, aware]"]
[null,null,null,null,null,null,null,null,null,null,"koala"]
[null,null,null,null,null,null,null,null,null,null,"korea"]
[null,null,null,null,null,null,null,null,null,null,"kwanzaa"]
[null,null,null,null,null,null,null,null,null,null,"lab"]
[null,null,null,null,null,null,null,null,null,null,"labor-day"]
[null,null,null,null,null,null,null,null,null,null,"lady"]
[null,null,null,null,null,null,null,null,null,null,"laid-out"]
[null,null,null,null,null,null,null,null,null,null,"la-la-la"]
[null,null,null,null,null,null,null,null,null,null,"lame"]
[null,null,null,null,null,null,null,null,null,null,"language"]
[null,null,null,null,null,null,null,null,null,null,"large-[see big]"]
[null,null,null,null,null,null,null,null,null,null,"last"]
[null,null,null,null,null,null,null,null,null,null,"last minute"]
[null,null,null,null,null,null,null,null,null,null,"late"]
[null,null,null,null,null,null,null,null,null,null,"later"]
[null,null,null,null,null,null,null,null,null,null,"laugh"]
[null,null,null,null,null,null,null,null,null,null,"laundry"]
[null,null,null,null,null,null,null,null,null,null,"law - [legal, rule, principle]"]
[null,null,null,null,null,null,null,null,null,null,"law, in-law"]
[null,null,null,null,null,null,null,null,null,null,"law, legal"]
[null,null,null,null,null,null,null,null,null,null,"lawyer"]
[null,null,null,null,null,null,null,null,null,null,"lay [also see: cl:v]"]
[null,null,null,null,null,null,null,null,null,null,"layer"]
[null,null,null,null,null,null,null,null,null,null,"lazy"]
[null,null,null,null,null,null,null,null,null,null,"leap"]
[null,null,null,null,null,null,null,null,null,null,"learn"]
[null,null,null,null,null,null,null,null,null,null,"leather"]
[null,null,null,null,null,null,null,null,null,null,"leave, depart"]
[null,null,null,null,null,null,null,null,null,null,"leave-[depart] leave-[leave-behind, abandon]"]
[null,null,null,null,null,null,null,null,null,null,"leave-behind, abandon, remainder"]
[null,null,null,null,null,null,null,null,null,null,"leave-behind, see: abandon"]
[null,null,null,null,null,null,null,null,null,null,"lebanon"]
[null,null,null,null,null,null,null,null,null,null,"lecture-[speech, talk]"]
[null,null,null,null,null,null,null,null,null,null,"left"]
[null,null,null,null,null,null,null,null,null,null,"left-[right]"]
[null,null,null,null,null,null,null,null,null,null,"leg"]
[null,null,null,null,null,null,null,null,null,null,"legs spread: \"spread eagle\""]
[null,null,null,null,null,null,null,null,null,null,"lemon"]
[null,null,null,null,null,null,null,null,null,null,"lesbian"]
[null,null,null,null,null,null,null,null,null,null,"less, reduce"]
[null,null,null,null,null,null,null,null,null,null,"lesson-[course, list, make-list]"]
[null,null,null,null,null,null,null,null,null,null,"less-than"]
[null,null,null,null,null,null,null,null,null,null,"letter"]
[null,null,null,null,null,null,null,null,null,null,"letter lexicalized signs-workshop"]
[null,null,null,null,null,null,null,null,null,null,"library, librarian"]
[null,null,null,null,null,null,null,null,null,null,"library-[library+er]"]
[null,null,null,null,null,null,null,null,null,null,"license-expired"]
[null,null,null,null,null,null,null,null,null,null,"lie"]
[null,null,null,null,null,null,null,null,null,null,"lie down"]
[null,null,null,null,null,null,null,null,null,null,"lie-down"]
[null,null,null,null,null,null,null,null,null,null,"life, live, address"]
[null,null,null,null,null,null,null,null,null,null,"light-[lamp, lights-on, lights-off, headlights, bright, light-a-match, emergency vehicle, ambulance]"]
[null,null,null,null,null,null,null,null,null,null,"lights"]
[null,null,null,null,null,null,null,null,null,null,"lights, flashing lights"]
[null,null,null,null,null,null,null,null,null,null,"light-weight"]
[null,null,null,null,null,null,null,null,null,null,"like"]
[null,null,null,null,null,null,null,null,null,null,"like (emotion)"]
[null,null,null,null,null,null,null,null,null,null,"lime"]
[null,null,null,null,null,null,null,null,null,null,"limit"]
[null,null,null,null,null,null,null,null,null,null,"limousine"]
[null,null,null,null,null,null,null,null,null,null,"line of work-[see main]"]
[null,null,null,null,null,null,null,null,null,null,"linguistics"]
[null,null,null,null,null,null,null,null,null,null,"link"]
[null,null,null,null,null,null,null,null,null,null,"lion"]
[null,null,null,null,null,null,null,null,null,null,"lipread"]
[null,null,null,null,null,null,null,null,null,null,"list"]
[null,null,null,null,null,null,null,null,null,null,"little, little-bit"]
[null,null,null,null,null,null,null,null,null,null,"little-[little-bit]"]
[null,null,null,null,null,null,null,null,null,null,"live-[life, address]"]
[null,null,null,null,null,null,null,null,null,null,"llama"]
[null,null,null,null,null,null,null,null,null,null,"loan, lend, borrow"]
[null,null,null,null,null,null,null,null,null,null,"loan-[borrow, lend, keep]"]
[null,null,null,null,null,null,null,null,null,null,"local"]
[null,null,null,null,null,null,null,null,null,null,"located-at"]
[null,null,null,null,null,null,null,null,null,null,"locations: [top, bottom, side, beneath]"]
[null,null,null,null,null,null,null,null,null,null,"lonely"]
[null,null,null,null,null,null,null,null,null,null,"long"]
[null,null,null,null,null,null,null,null,null,null,"long: \"a long time ago.\""]
[null,null,null,null,null,null,null,null,null,null,"long-hair"]
[null,null,null,null,null,null,null,null,null,null,"look"]
[null,null,null,null,null,null,null,null,null,null,"look [see: see]"]
[null,null,null,null,null,null,null,null,null,null,"look around"]
[null,null,null,null,null,null,null,null,null,null,"look over"]
[null,null,null,null,null,null,null,null,null,null,"look-around"]
[null,null,null,null,null,null,null,null,null,null,"look-at"]
[null,null,null,null,null,null,null,null,null,null,"look-at-that"]
[null,null,null,null,null,null,null,null,null,null,"look-like"]
[null,null,null,null,null,null,null,null,null,null,"looks"]
[null,null,null,null,null,null,null,null,null,null,"look-up"]
[null,null,null,null,null,null,null,null,null,null,"los angeles"]
[null,null,null,null,null,null,null,null,null,null,"lose"]
[null,null,null,null,null,null,null,null,null,null,"lost"]
[null,null,null,null,null,null,null,null,null,null,"lost, lose"]
[null,null,null,null,null,null,null,null,null,null,"loud"]
[null,null,null,null,null,null,null,null,null,null,"lousy"]
[null,null,null,null,null,null,null,null,null,null,"love"]
[null,null,null,null,null,null,null,null,null,null,"love (4)"]
[null,null,null,null,null,null,null,null,null,null,"love: \"fall in love\""]
[null,null,null,null,null,null,null,null,null,null,"love: \"fall in love\" (b)"]
[null,null,null,null,null,null,null,null,null,null,"low"]
[null,null,null,null,null,null,null,null,null,null,"low-amount"]
[null,null,null,null,null,null,null,null,null,null,"low-height"]
[null,null,null,null,null,null,null,null,null,null,"luck"]
[null,null,null,null,null,null,null,null,null,null,"luck: \"good luck\""]
[null,null,null,null,null,null,null,null,null,null,"lunch"]
[null,null,null,null,null,null,null,null,null,null,"ma'am"]
[null,null,null,null,null,null,null,null,null,null,"machine, engine, factory"]
[null,null,null,null,null,null,null,null,null,null,"machine-[factory]"]
[null,null,null,null,null,null,null,null,null,null,"mad"]
[null,null,null,null,null,null,null,null,null,null,"mad (fuming)"]
[null,null,null,null,null,null,null,null,null,null,"mad-[angry]"]
[null,null,null,null,null,null,null,null,null,null,"magician"]
[null,null,null,null,null,null,null,null,null,null,"magnet"]
[null,null,null,null,null,null,null,null,null,null,"mail, letter"]
[null,null,null,null,null,null,null,null,null,null,"main-[profession, major]"]
[null,null,null,null,null,null,null,null,null,null,"major, profession"]
[null,null,null,null,null,null,null,null,null,null,"major-[see main]"]
[null,null,null,null,null,null,null,null,null,null,"make"]
[null,null,null,null,null,null,null,null,null,null,"make-out"]
[null,null,null,null,null,null,null,null,null,null,"man"]
[null,null,null,null,null,null,null,null,null,null,"manager, administrator"]
[null,null,null,null,null,null,null,null,null,null,"manager-[administration, rule-over, reign]"]
[null,null,null,null,null,null,null,null,null,null,"many"]
[null,null,null,null,null,null,null,null,null,null,"marines"]
[null,null,null,null,null,null,null,null,null,null,"marriage-[husband, wife, marry, married, spouse]"]
[null,null,null,null,null,null,null,null,null,null,"marry, marriage"]
[null,null,null,null,null,null,null,null,null,null,"marry: \"you mind if i marry your daughter?\""]
[null,null,null,null,null,null,null,null,null,null,"marshmallow"]
[null,null,null,null,null,null,null,null,null,null,"match, combine"]
[null,null,null,null,null,null,null,null,null,null,"match-[roommate, combine]"]
[null,null,null,null,null,null,null,null,null,null,"math"]
[null,null,null,null,null,null,null,null,null,null,"math-[algebra, calculus, trigonometry, geometry]"]
[null,null,null,null,null,null,null,null,null,null,"maybe-[may, might]"]
[null,null,null,null,null,null,null,null,null,null,"mayonnaise"]
[null,null,null,null,null,null,null,null,null,null,"me"]
[null,null,null,null,null,null,null,null,null,null,"mean-(meaning)-[what is the meaning of, purpose] (1)"]
[null,null,null,null,null,null,null,null,null,null,"mean, cruel"]
[null,null,null,null,null,null,null,null,null,null,"mean-[cruel, purpose]"]
[null,null,null,null,null,null,null,null,null,null,"meaning"]
[null,null,null,null,null,null,null,null,null,null,"meaning, purpose"]
[null,null,null,null,null,null,null,null,null,null,"measure"]
[null,null,null,null,null,null,null,null,null,null,"measure, size"]
[null,null,null,null,null,null,null,null,null,null,"measure-[engineer]"]
[null,null,null,null,null,null,null,null,null,null,"meat, steak"]
[null,null,null,null,null,null,null,null,null,null,"meat-[steak, beef, context]"]
[null,null,null,null,null,null,null,null,null,null,"mechanic, plumber"]
[null,null,null,null,null,null,null,null,null,null,"mechanic-[wrench]"]
[null,null,null,null,null,null,null,null,null,null,"medicine"]
[null,null,null,null,null,null,null,null,null,null,"medium"]
[null,null,null,null,null,null,null,null,null,null,"meet"]
[null,null,null,null,null,null,null,null,null,null,"meet-[meet-you] (1)"]
[null,null,null,null,null,null,null,null,null,null,"meeting"]
[null,null,null,null,null,null,null,null,null,null,"member-[congress, faculty, senate, staff]"]
[null,null,null,null,null,null,null,null,null,null,"member]"]
[null,null,null,null,null,null,null,null,null,null,"memorial day"]
[null,null,null,null,null,null,null,null,null,null,"memorize"]
[null,null,null,null,null,null,null,null,null,null,"mentally worn out"]
[null,null,null,null,null,null,null,null,null,null,"metal"]
[null,null,null,null,null,null,null,null,null,null,"method"]
[null,null,null,null,null,null,null,null,null,null,"mexico"]
[null,null,null,null,null,null,null,null,null,null,"michigan"]
[null,null,null,null,null,null,null,null,null,null,"microphone"]
[null,null,null,null,null,null,null,null,null,null,"microwave"]
[null,null,null,null,null,null,null,null,null,null,"middle, center"]
[null,null,null,null,null,null,null,null,null,null,"middle-[center]"]
[null,null,null,null,null,null,null,null,null,null,"midnight"]
[null,null,null,null,null,null,null,null,null,null,"mile"]
[null,null,null,null,null,null,null,null,null,null,"milk"]
[null,null,null,null,null,null,null,null,null,null,"mind -(\"do you mind\")"]
[null,null,null,null,null,null,null,null,null,null,"minus"]
[null,null,null,null,null,null,null,null,null,null,"minus, negative"]
[null,null,null,null,null,null,null,null,null,null,"minute"]
[null,null,null,null,null,null,null,null,null,null,"minute (one minute)"]
[null,null,null,null,null,null,null,null,null,null,"minute: \"1 minute, 2 minute, 3 minute\""]
[null,null,null,null,null,null,null,null,null,null,"mischievous"]
[null,null,null,null,null,null,null,null,null,null,"mischievous-[devil]"]
[null,null,null,null,null,null,null,null,null,null,"miss-(emotion)"]
[null,null,null,null,null,null,null,null,null,null,"missionary, preacher"]
[null,null,null,null,null,null,null,null,null,null,"missionary-[preacher, pastor]"]
[null,null,null,null,null,null,null,null,null,null,"miss-out-[guess]"]
[null,null,null,null,null,null,null,null,null,null,"mistake"]
[null,null,null,null,null,null,null,null,null,null,"mittens"]
[null,null,null,null,null,null,null,null,null,null,"mock"]
[null,null,null,null,null,null,null,null,null,null,"mole"]
[null,null,null,null,null,null,null,null,null,null,"mom [grandma]"]
[null,null,null,null,null,null,null,null,null,null,"mom, mother"]
[null,null,null,null,null,null,null,null,null,null,"monday"]
[null,null,null,null,null,null,null,null,null,null,"monday, every-monday"]
[null,null,null,null,null,null,null,null,null,null,"money"]
[null,null,null,null,null,null,null,null,null,null,"money-[buy, purchase, shopping]"]
[null,null,null,null,null,null,null,null,null,null,"monitor"]
[null,null,null,null,null,null,null,null,null,null,"monkey"]
[null,null,null,null,null,null,null,null,null,null,"monster"]
[null,null,null,null,null,null,null,null,null,null,"montana"]
[null,null,null,null,null,null,null,null,null,null,"month"]
[null,null,null,null,null,null,null,null,null,null,"month, last-month"]
[null,null,null,null,null,null,null,null,null,null,"month, next-month"]
[null,null,null,null,null,null,null,null,null,null,"month, six-months"]
[null,null,null,null,null,null,null,null,null,null,"month-[monthly, rent, month-next]"]
[null,null,null,null,null,null,null,null,null,null,"monthly, rent"]
[null,null,null,null,null,null,null,null,null,null,"mooch"]
[null,null,null,null,null,null,null,null,null,null,"moon"]
[null,null,null,null,null,null,null,null,null,null,"moose"]
[null,null,null,null,null,null,null,null,null,null,"more"]
[null,null,null,null,null,null,null,null,null,null,"more-than"]
[null,null,null,null,null,null,null,null,null,null,"morning"]
[null,null,null,null,null,null,null,null,null,null,"morning, all-morning"]
[null,null,null,null,null,null,null,null,null,null,"morning, every-morning,"]
[null,null,null,null,null,null,null,null,null,null,"morning-[every-morning, all-morning]"]
[null,null,null,null,null,null,null,null,null,null,"moron"]
[null,null,null,null,null,null,null,null,null,null,"mosquito"]
[null,null,null,null,null,null,null,null,null,null,"most"]
[null,null,null,null,null,null,null,null,null,null,"motivate"]
[null,null,null,null,null,null,null,null,null,null,"motor-[machine, engine]"]
[null,null,null,null,null,null,null,null,null,null,"motorcycle"]
[null,null,null,null,null,null,null,null,null,null,"mountain"]
[null,null,null,null,null,null,null,null,null,null,"mouse"]
[null,null,null,null,null,null,null,null,null,null,"mouse_pad"]
[null,null,null,null,null,null,null,null,null,null,"mouth"]
[null,null,null,null,null,null,null,null,null,null,"move"]
[null,null,null,null,null,null,null,null,null,null,"movie"]
[null,null,null,null,null,null,null,null,null,null,"mr."]
[null,null,null,null,null,null,null,null,null,null,"mrs."]
[null,null,null,null,null,null,null,null,null,null,"ms."]
[null,null,null,null,null,null,null,null,null,null,"much"]
[null,null,null,null,null,null,null,null,null,null,"multiply"]
[null,null,null,null,null,null,null,null,null,null,"murder"]
[null,null,null,null,null,null,null,null,null,null,"music, song"]
[null,null,null,null,null,null,null,null,null,null,"music-[song, sing, singer, poetry]"]
[null,null,null,null,null,null,null,null,null,null,"must-[see need]"]
[null,null,null,null,null,null,null,null,null,null,"mustache"]
[null,null,null,null,null,null,null,null,null,null,"mustard"]
[null,null,null,null,null,null,null,null,null,null,"mute"]
[null,null,null,null,null,null,null,null,null,null,"my, mine"]
[null,null,null,null,null,null,null,null,null,null,"myself, self"]
[null,null,null,null,null,null,null,null,null,null,"ñ"]
[null,null,null,null,null,null,null,null,null,null,"name"]
[null,null,null,null,null,null,null,null,null,null,"name-[called] (1)"]
[null,null,null,null,null,null,null,null,null,null,"nation"]
[null,null,null,null,null,null,null,null,null,null,"native-american [indian]"]
[null,null,null,null,null,null,null,null,null,null,"nature"]
[null,null,null,null,null,null,null,null,null,null,"near, close"]
[null,null,null,null,null,null,null,null,null,null,"near-[close]"]
[null,null,null,null,null,null,null,null,null,null,"necklace"]
[null,null,null,null,null,null,null,null,null,null,"need"]
[null,null,null,null,null,null,null,null,null,null,"need, must, should"]
[null,null,null,null,null,null,null,null,null,null,"need-[must, have-to, should, ought-to]"]
[null,null,null,null,null,null,null,null,null,null,"negation [not, don't, reversal of orientation]"]
[null,null,null,null,null,null,null,null,null,null,"negative"]
[null,null,null,null,null,null,null,null,null,null,"neighbor"]
[null,null,null,null,null,null,null,null,null,null,"neighbor- [next-to]"]
[null,null,null,null,null,null,null,null,null,null,"neighborhood"]
[null,null,null,null,null,null,null,null,null,null,"nephew"]
[null,null,null,null,null,null,null,null,null,null,"nervous"]
[null,null,null,null,null,null,null,null,null,null,"never"]
[null,null,null,null,null,null,null,null,null,null,"new"]
[null,null,null,null,null,null,null,null,null,null,"new orleans"]
[null,null,null,null,null,null,null,null,null,null,"new year's day"]
[null,null,null,null,null,null,null,null,null,null,"newspaper"]
[null,null,null,null,null,null,null,null,null,null,"newspaper-[see printer]"]
[null,null,null,null,null,null,null,null,null,null,"new-york"]
[null,null,null,null,null,null,null,null,null,null,"new-zealand"]
[null,null,null,null,null,null,null,null,null,null,"next"]
[null,null,null,null,null,null,null,null,null,null,"next-to"]
[null,null,null,null,null,null,null,null,null,null,"next-to/beside-[see neighbor]"]
[null,null,null,null,null,null,null,null,null,null,"nice, clean"]
[null,null,null,null,null,null,null,null,null,null,"nice-[clean] (1)"]
[null,null,null,null,null,null,null,null,null,null,"niece"]
[null,null,null,null,null,null,null,null,null,null,"night "]
[null,null,null,null,null,null,null,null,null,null,"night, all-night"]
[null,null,null,null,null,null,null,null,null,null,"night, every-night"]
[null,null,null,null,null,null,null,null,null,null,"night-[all-night, every-night, evening]"]
[null,null,null,null,null,null,null,null,null,null,"no"]
[null,null,null,null,null,null,null,null,null,null,"nobody"]
[null,null,null,null,null,null,null,null,null,null,"no-good"]
[null,null,null,null,null,null,null,null,null,null,"no-good-[#ng-(lexicalized)]"]
[null,null,null,null,null,null,null,null,null,null,"noise"]
[null,null,null,null,null,null,null,null,null,null,"none"]
[null,null,null,null,null,null,null,null,null,null,"none-(\"nuthin\")"]
[null,null,null,null,null,null,null,null,null,null,"nonexistent"]
[null,null,null,null,null,null,null,null,null,null,"nonsense / invented"]
[null,null,null,null,null,null,null,null,null,null,"noon"]
[null,null,null,null,null,null,null,null,null,null,"normal, of course"]
[null,null,null,null,null,null,null,null,null,null,"normal-[of-course, natural, ordinary]"]
[null,null,null,null,null,null,null,null,null,null,"north"]
[null,null,null,null,null,null,null,null,null,null,"nose"]
[null,null,null,null,null,null,null,null,null,null,"not"]
[null,null,null,null,null,null,null,null,null,null,"not bad"]
[null,null,null,null,null,null,null,null,null,null,"not, negation"]
[null,null,null,null,null,null,null,null,null,null,"note"]
[null,null,null,null,null,null,null,null,null,null,"note, note-taker"]
[null,null,null,null,null,null,null,null,null,null,"nothing"]
[null,null,null,null,null,null,null,null,null,null,"nothing-to-it"]
[null,null,null,null,null,null,null,null,null,null,"notice"]
[null,null,null,null,null,null,null,null,null,null,"not-matter"]
[null,null,null,null,null,null,null,null,null,null,"not-yet"]
[null,null,null,null,null,null,null,null,null,null,"noun"]
[null,null,null,null,null,null,null,null,null,null,"now"]
[null,null,null,null,null,null,null,null,null,null,"now-[present]"]
[null,null,null,null,null,null,null,null,null,null,"number"]
[null,null,null,null,null,null,null,null,null,null,"numbers"]
[null,null,null,null,null,null,null,null,null,null,"numerical incorporation"]
[null,null,null,null,null,null,null,null,null,null,"numerical- incorporation"]
[null,null,null,null,null,null,null,null,null,null,"nurse"]
[null,null,null,null,null,null,null,null,null,null,"nurse also see: doctor"]
[null,null,null,null,null,null,null,null,null,null,"nursing-home"]
[null,null,null,null,null,null,null,null,null,null,"obama"]
[null,null,null,null,null,null,null,null,null,null,"obtrusive"]
[null,null,null,null,null,null,null,null,null,null,"occupy-wall-street"]
[null,null,null,null,null,null,null,null,null,null,"ocean/sea"]
[null,null,null,null,null,null,null,null,null,null,"octopus"]
[null,null,null,null,null,null,null,null,null,null,"odd"]
[null,null,null,null,null,null,null,null,null,null,"of"]
[null,null,null,null,null,null,null,null,null,null,"off"]
[null,null,null,null,null,null,null,null,null,null,"office"]
[null,null,null,null,null,null,null,null,null,null,"official"]
[null,null,null,null,null,null,null,null,null,null,"often"]
[null,null,null,null,null,null,null,null,null,null,"oh, i see (version)"]
[null,null,null,null,null,null,null,null,null,null,"oh, i see."]
[null,null,null,null,null,null,null,null,null,null,"oh-gee"]
[null,null,null,null,null,null,null,null,null,null,"oh-i-see"]
[null,null,null,null,null,null,null,null,null,null,"okay"]
[null,null,null,null,null,null,null,null,null,null,"old"]
[null,null,null,null,null,null,null,null,null,null,"old, age"]
[null,null,null,null,null,null,null,null,null,null,"olympics"]
[null,null,null,null,null,null,null,null,null,null,"on"]
[null,null,null,null,null,null,null,null,null,null,"on/[off]"]
[null,null,null,null,null,null,null,null,null,null,"once"]
[null,null,null,null,null,null,null,null,null,null,"one, 1"]
[null,null,null,null,null,null,null,null,null,null,"one: the perfect one for me"]
[null,null,null,null,null,null,null,null,null,null,"one-more"]
[null,null,null,null,null,null,null,null,null,null,"only, something]"]
[null,null,null,null,null,null,null,null,null,null,"open"]
[null,null,null,null,null,null,null,null,null,null,"opportunity: \"take advantage of. capitalize on.\""]
[null,null,null,null,null,null,null,null,null,null,"opposite-[across from, allergic, agree, disagree, struggle]"]
[null,null,null,null,null,null,null,null,null,null,"or"]
[null,null,null,null,null,null,null,null,null,null,"orange"]
[null,null,null,null,null,null,null,null,null,null,"order"]
[null,null,null,null,null,null,null,null,null,null,"order-[see answer]"]
[null,null,null,null,null,null,null,null,null,null,"ordinary-[see regular, see normal]"]
[null,null,null,null,null,null,null,null,null,null,"organ"]
[null,null,null,null,null,null,null,null,null,null,"other"]
[null,null,null,null,null,null,null,null,null,null,"other, else"]
[null,null,null,null,null,null,null,null,null,null,"ounce"]
[null,null,null,null,null,null,null,null,null,null,"our"]
[null,null,null,null,null,null,null,null,null,null,"our-[also see possession]"]
[null,null,null,null,null,null,null,null,null,null,"out - also see [see in]"]
[null,null,null,null,null,null,null,null,null,null,"out, outside"]
[null,null,null,null,null,null,null,null,null,null,"outside"]
[null,null,null,null,null,null,null,null,null,null,"outside, out"]
[null,null,null,null,null,null,null,null,null,null,"oven"]
[null,null,null,null,null,null,null,null,null,null,"over-[across, cross]"]
[null,null,null,null,null,null,null,null,null,null,"over-acheiver"]
[null,null,null,null,null,null,null,null,null,null,"owe-[bill, due, debt]"]
[null,null,null,null,null,null,null,null,null,null,"owl"]
[null,null,null,null,null,null,null,null,null,null,"own"]
[null,null,null,null,null,null,null,null,null,null,"pacifier"]
[null,null,null,null,null,null,null,null,null,null,"page"]
[null,null,null,null,null,null,null,null,null,null,"pah!, finally"]
[null,null,null,null,null,null,null,null,null,null,"paid off"]
[null,null,null,null,null,null,null,null,null,null,"pain"]
[null,null,null,null,null,null,null,null,null,null,"paint "]
[null,null,null,null,null,null,null,null,null,null,"painter"]
[null,null,null,null,null,null,null,null,null,null,"painter-[paint]"]
[null,null,null,null,null,null,null,null,null,null,"pair"]
[null,null,null,null,null,null,null,null,null,null,"pale"]
[null,null,null,null,null,null,null,null,null,null,"pancake"]
[null,null,null,null,null,null,null,null,null,null,"panda"]
[null,null,null,null,null,null,null,null,null,null,"pantomime"]
[null,null,null,null,null,null,null,null,null,null,"pants"]
[null,null,null,null,null,null,null,null,null,null,"paper"]
[null,null,null,null,null,null,null,null,null,null,"paper-[page, look-up, dictionary]"]
[null,null,null,null,null,null,null,null,null,null,"paramedic"]
[null,null,null,null,null,null,null,null,null,null,"paranoid"]
[null,null,null,null,null,null,null,null,null,null,"pardon"]
[null,null,null,null,null,null,null,null,null,null,"parents"]
[null,null,null,null,null,null,null,null,null,null,"park"]
[null,null,null,null,null,null,null,null,null,null,"park, parking"]
[null,null,null,null,null,null,null,null,null,null,"park-car"]
[null,null,null,null,null,null,null,null,null,null,"parking- lot"]
[null,null,null,null,null,null,null,null,null,null,"parking permit"]
[null,null,null,null,null,null,null,null,null,null,"parking-lot"]
[null,null,null,null,null,null,null,null,null,null,"party"]
[null,null,null,null,null,null,null,null,null,null,"pass"]
[null,null,null,null,null,null,null,null,null,null,"past"]
[null,null,null,null,null,null,null,null,null,null,"past, before"]
[null,null,null,null,null,null,null,null,null,null,"past, long-ago"]
[null,null,null,null,null,null,null,null,null,null,"pastor"]
[null,null,null,null,null,null,null,null,null,null,"pastor, priest"]
[null,null,null,null,null,null,null,null,null,null,"patient"]
[null,null,null,null,null,null,null,null,null,null,"patronize-[frequent]"]
[null,null,null,null,null,null,null,null,null,null,"pay"]
[null,null,null,null,null,null,null,null,null,null,"pay off"]
[null,null,null,null,null,null,null,null,null,null,"pay-attention-[focus, concentrate]"]
[null,null,null,null,null,null,null,null,null,null,"peace/peaceful"]
[null,null,null,null,null,null,null,null,null,null,"peach"]
[null,null,null,null,null,null,null,null,null,null,"peanut-butter"]
[null,null,null,null,null,null,null,null,null,null,"pear"]
[null,null,null,null,null,null,null,null,null,null,"peas"]
[null,null,null,null,null,null,null,null,null,null,"pencil-[pen, write]"]
[null,null,null,null,null,null,null,null,null,null,"people"]
[null,null,null,null,null,null,null,null,null,null,"pepper"]
[null,null,null,null,null,null,null,null,null,null,"pepperoni"]
[null,null,null,null,null,null,null,null,null,null,"pepsi"]
[null,null,null,null,null,null,null,null,null,null,"percent"]
[null,null,null,null,null,null,null,null,null,null,"perfect"]
[null,null,null,null,null,null,null,null,null,null,"perfect-see [exact]"]
[null,null,null,null,null,null,null,null,null,null,"period-(menstruation)"]
[null,null,null,null,null,null,null,null,null,null,"period-(menstruation) (b)"]
[null,null,null,null,null,null,null,null,null,null,"permanent"]
[null,null,null,null,null,null,null,null,null,null,"permit-[see allow]"]
[null,null,null,null,null,null,null,null,null,null,"persecution"]
[null,null,null,null,null,null,null,null,null,null,"persecution2"]
[null,null,null,null,null,null,null,null,null,null,"person"]
[null,null,null,null,null,null,null,null,null,null,"person, agent"]
[null,null,null,null,null,null,null,null,null,null,"pet"]
[null,null,null,null,null,null,null,null,null,null,"phase"]
[null,null,null,null,null,null,null,null,null,null,"philadelphia"]
[null,null,null,null,null,null,null,null,null,null,"phone"]
[null,null,null,null,null,null,null,null,null,null,"photographer"]
[null,null,null,null,null,null,null,null,null,null,"photography"]
[null,null,null,null,null,null,null,null,null,null,"physics"]
[null,null,null,null,null,null,null,null,null,null,"pickle"]
[null,null,null,null,null,null,null,null,null,null,"pick-up"]
[null,null,null,null,null,null,null,null,null,null,"picture"]
[null,null,null,null,null,null,null,null,null,null,"picture-[photographer]"]
[null,null,null,null,null,null,null,null,null,null,"pie"]
[null,null,null,null,null,null,null,null,null,null,"pig"]
[null,null,null,null,null,null,null,null,null,null,"pig-out"]
[null,null,null,null,null,null,null,null,null,null,"pilgrim"]
[null,null,null,null,null,null,null,null,null,null,"pill-[take-pill]"]
[null,null,null,null,null,null,null,null,null,null,"pillar"]
[null,null,null,null,null,null,null,null,null,null,"pill-take-pill"]
[null,null,null,null,null,null,null,null,null,null,"pilot"]
[null,null,null,null,null,null,null,null,null,null,"pineapple"]
[null,null,null,null,null,null,null,null,null,null,"pipeline"]
[null,null,null,null,null,null,null,null,null,null,"pittsburgh"]
[null,null,null,null,null,null,null,null,null,null,"pizza"]
[null,null,null,null,null,null,null,null,null,null,"pizza-(deep_dish)"]
[null,null,null,null,null,null,null,null,null,null,"place-[see area]"]
[null,null,null,null,null,null,null,null,null,null,"places"]
[null,null,null,null,null,null,null,null,null,null,"plaid"]
[null,null,null,null,null,null,null,null,null,null,"plan"]
[null,null,null,null,null,null,null,null,null,null,"plant"]
[null,null,null,null,null,null,null,null,null,null,"plant, spring, garden"]
[null,null,null,null,null,null,null,null,null,null,"plate-[see dish]"]
[null,null,null,null,null,null,null,null,null,null,"play"]
[null,null,null,null,null,null,null,null,null,null,"play-(toys, party)"]
[null,null,null,null,null,null,null,null,null,null,"play-cards"]
[null,null,null,null,null,null,null,null,null,null,"play-cards-[card, check]"]
[null,null,null,null,null,null,null,null,null,null,"please (1)"]
[null,null,null,null,null,null,null,null,null,null,"pleasure (1)"]
[null,null,null,null,null,null,null,null,null,null,"plenty-[see enough]"]
[null,null,null,null,null,null,null,null,null,null,"pliers"]
[null,null,null,null,null,null,null,null,null,null,"plug-[plug-in, unplug]"]
[null,null,null,null,null,null,null,null,null,null,"plus, positive"]
[null,null,null,null,null,null,null,null,null,null,"plus-[positive]"]
[null,null,null,null,null,null,null,null,null,null,"poetry"]
[null,null,null,null,null,null,null,null,null,null,"point"]
[null,null,null,null,null,null,null,null,null,null,"point-of-view"]
[null,null,null,null,null,null,null,null,null,null,"pole"]
[null,null,null,null,null,null,null,null,null,null,"police, cop"]
[null,null,null,null,null,null,null,null,null,null,"police-[cop, sheriff, detective]"]
[null,null,null,null,null,null,null,null,null,null,"polite"]
[null,null,null,null,null,null,null,null,null,null,"poop"]
[null,null,null,null,null,null,null,null,null,null,"pop, soda"]
[null,null,null,null,null,null,null,null,null,null,"pop-[soda]"]
[null,null,null,null,null,null,null,null,null,null,"popcorn"]
[null,null,null,null,null,null,null,null,null,null,"possession: [have, own, her, his, its, mine, my, our, their, your, yours]"]
[null,null,null,null,null,null,null,null,null,null,"possible"]
[null,null,null,null,null,null,null,null,null,null,"post, put up a poster"]
[null,null,null,null,null,null,null,null,null,null,"post-[put up a poster, bulletin+board]"]
[null,null,null,null,null,null,null,null,null,null,"postal-worker"]
[null,null,null,null,null,null,null,null,null,null,"post-office"]
[null,null,null,null,null,null,null,null,null,null,"post-office, p.o."]
[null,null,null,null,null,null,null,null,null,null,"postpone-[put-off]"]
[null,null,null,null,null,null,null,null,null,null,"potato"]
[null,null,null,null,null,null,null,null,null,null,"pound, weight"]
[null,null,null,null,null,null,null,null,null,null,"pound-[lb, weight, weigh]"]
[null,null,null,null,null,null,null,null,null,null,"pour"]
[null,null,null,null,null,null,null,null,null,null,"practice"]
[null,null,null,null,null,null,null,null,null,null,"practice, training"]
[null,null,null,null,null,null,null,null,null,null,"practice-[training]"]
[null,null,null,null,null,null,null,null,null,null,"practice-what-you-preach"]
[null,null,null,null,null,null,null,null,null,null,"preach"]
[null,null,null,null,null,null,null,null,null,null,"preacher"]
[null,null,null,null,null,null,null,null,null,null,"preacher, missionary"]
[null,null,null,null,null,null,null,null,null,null,"prefer"]
[null,null,null,null,null,null,null,null,null,null,"prefer, favorite"]
[null,null,null,null,null,null,null,null,null,null,"pregnant"]
[null,null,null,null,null,null,null,null,null,null,"prescription"]
[null,null,null,null,null,null,null,null,null,null,"president, superintendent"]
[null,null,null,null,null,null,null,null,null,null,"president-[superintendent]"]
[null,null,null,null,null,null,null,null,null,null,"pressure-[stress]"]
[null,null,null,null,null,null,null,null,null,null,"pretty"]
[null,null,null,null,null,null,null,null,null,null,"pretty-[beautiful, handsome, good looking]"]
[null,null,null,null,null,null,null,null,null,null,"pretzel"]
[null,null,null,null,null,null,null,null,null,null,"prevent"]
[null,null,null,null,null,null,null,null,null,null,"priest"]
[null,null,null,null,null,null,null,null,null,null,"priest, pastor"]
[null,null,null,null,null,null,null,null,null,null,"principal"]
[null,null,null,null,null,null,null,null,null,null,"principle"]
[null,null,null,null,null,null,null,null,null,null,"print, publish"]
[null,null,null,null,null,null,null,null,null,null,"printer-[newspaper, publish, news]"]
[null,null,null,null,null,null,null,null,null,null,"priority"]
[null,null,null,null,null,null,null,null,null,null,"prior-to"]
[null,null,null,null,null,null,null,null,null,null,"prison-[jail, in-jail]"]
[null,null,null,null,null,null,null,null,null,null,"problem"]
[null,null,null,null,null,null,null,null,null,null,"proceed-[go-ahead-with, get-along, go-on]"]
[null,null,null,null,null,null,null,null,null,null,"profession or professional-[see main]"]
[null,null,null,null,null,null,null,null,null,null,"program"]
[null,null,null,null,null,null,null,null,null,null,"promise"]
[null,null,null,null,null,null,null,null,null,null,"pronominalization and indexing: [it, he, me, she, him, her, this, you]"]
[null,null,null,null,null,null,null,null,null,null,"proof"]
[null,null,null,null,null,null,null,null,null,null,"propaganda"]
[null,null,null,null,null,null,null,null,null,null,"proud"]
[null,null,null,null,null,null,null,null,null,null,"psychology"]
[null,null,null,null,null,null,null,null,null,null,"pudding"]
[null,null,null,null,null,null,null,null,null,null,"pull"]
[null,null,null,null,null,null,null,null,null,null,"pumpkin"]
[null,null,null,null,null,null,null,null,null,null,"punch"]
[null,null,null,null,null,null,null,null,null,null,"purple"]
[null,null,null,null,null,null,null,null,null,null,"purpose"]
[null,null,null,null,null,null,null,null,null,null,"purse"]
[null,null,null,null,null,null,null,null,null,null,"push"]
[null,null,null,null,null,null,null,null,null,null,"put"]
[null,null,null,null,null,null,null,null,null,null,"put-[put-on, put-away, move]"]
[null,null,null,null,null,null,null,null,null,null,"put-down"]
[null,null,null,null,null,null,null,null,null,null,"puzzle"]
[null,null,null,null,null,null,null,null,null,null,"quick"]
[null,null,null,null,null,null,null,null,null,null,"quiet"]
[null,null,null,null,null,null,null,null,null,null,"quit-[join, participate]"]
[null,null,null,null,null,null,null,null,null,null,"quiz"]
[null,null,null,null,null,null,null,null,null,null,"quote"]
[null,null,null,null,null,null,null,null,null,null,"rabbi"]
[null,null,null,null,null,null,null,null,null,null,"rabbit"]
[null,null,null,null,null,null,null,null,null,null,"raccoon"]
[null,null,null,null,null,null,null,null,null,null,"race/compete-[see with]"]
[null,null,null,null,null,null,null,null,null,null,"race-[compete]"]
[null,null,null,null,null,null,null,null,null,null,"radiate"]
[null,null,null,null,null,null,null,null,null,null,"rain"]
[null,null,null,null,null,null,null,null,null,null,"raised-[grow-up]"]
[null,null,null,null,null,null,null,null,null,null,"rat"]
[null,null,null,null,null,null,null,null,null,null,"read"]
[null,null,null,null,null,null,null,null,null,null,"ready"]
[null,null,null,null,null,null,null,null,null,null,"real"]
[null,null,null,null,null,null,null,null,null,null,"realize-[see reason]"]
[null,null,null,null,null,null,null,null,null,null,"really"]
[null,null,null,null,null,null,null,null,null,null,"reason-[realize]"]
[null,null,null,null,null,null,null,null,null,null,"rebel"]
[null,null,null,null,null,null,null,null,null,null,"recent"]
[null,null,null,null,null,null,null,null,null,null,"recipe"]
[null,null,null,null,null,null,null,null,null,null,"record"]
[null,null,null,null,null,null,null,null,null,null,"recovery"]
[null,null,null,null,null,null,null,null,null,null,"red"]
[null,null,null,null,null,null,null,null,null,null,"reflex"]
[null,null,null,null,null,null,null,null,null,null,"refrigerator"]
[null,null,null,null,null,null,null,null,null,null,"register"]
[null,null,null,null,null,null,null,null,null,null,"regular, righteous"]
[null,null,null,null,null,null,null,null,null,null,"regular-[ordinary, righteous]"]
[null,null,null,null,null,null,null,null,null,null,"relationship"]
[null,null,null,null,null,null,null,null,null,null,"relieve-[see satisfied]"]
[null,null,null,null,null,null,null,null,null,null,"relieved"]
[null,null,null,null,null,null,null,null,null,null,"remember"]
[null,null,null,null,null,null,null,null,null,null,"replace-[see trade]"]
[null,null,null,null,null,null,null,null,null,null,"request"]
[null,null,null,null,null,null,null,null,null,null,"research"]
[null,null,null,null,null,null,null,null,null,null,"reserve/reservation-[see appointment]"]
[null,null,null,null,null,null,null,null,null,null,"residential-(general)"]
[null,null,null,null,null,null,null,null,null,null,"residential-school-for-the-deaf"]
[null,null,null,null,null,null,null,null,null,null,"respect"]
[null,null,null,null,null,null,null,null,null,null,"responsibility: \"not my responsibility\" / \"not on my shoulders\""]
[null,null,null,null,null,null,null,null,null,null,"responsibility: \"not on my shoulders\" (version)"]
[null,null,null,null,null,null,null,null,null,null,"responsible"]
[null,null,null,null,null,null,null,null,null,null,"responsible-[fault]"]
[null,null,null,null,null,null,null,null,null,null,"rest"]
[null,null,null,null,null,null,null,null,null,null,"rest-[relax]"]
[null,null,null,null,null,null,null,null,null,null,"restaurant"]
[null,null,null,null,null,null,null,null,null,null,"restraint: \"quash\" / \"suppress\""]
[null,null,null,null,null,null,null,null,null,null,"restroom"]
[null,null,null,null,null,null,null,null,null,null,"result"]
[null,null,null,null,null,null,null,null,null,null,"resume"]
[null,null,null,null,null,null,null,null,null,null,"retire"]
[null,null,null,null,null,null,null,null,null,null,"reunion"]
[null,null,null,null,null,null,null,null,null,null,"review"]
[null,null,null,null,null,null,null,null,null,null,"rice"]
[null,null,null,null,null,null,null,null,null,null,"riddance: \"good riddance\""]
[null,null,null,null,null,null,null,null,null,null,"ride-bike"]
[null,null,null,null,null,null,null,null,null,null,"ride-in"]
[null,null,null,null,null,null,null,null,null,null,"ride-on"]
[null,null,null,null,null,null,null,null,null,null,"ride-on/in"]
[null,null,null,null,null,null,null,null,null,null,"right"]
[null,null,null,null,null,null,null,null,null,null,"right-[alright, right-(direction), right-(correct), rights-(societal)]"]
[null,null,null,null,null,null,null,null,null,null,"ringing"]
[null,null,null,null,null,null,null,null,null,null,"river"]
[null,null,null,null,null,null,null,null,null,null,"road"]
[null,null,null,null,null,null,null,null,null,null,"robot"]
[null,null,null,null,null,null,null,null,null,null,"rock"]
[null,null,null,null,null,null,null,null,null,null,"rocket"]
[null,null,null,null,null,null,null,null,null,null,"rodeo"]
[null,null,null,null,null,null,null,null,null,null,"roller-blade-[ice-skate, roller-skate]"]
[null,null,null,null,null,null,null,null,null,null,"roof"]
[null,null,null,null,null,null,null,null,null,null,"room"]
[null,null,null,null,null,null,null,null,null,null,"roommate"]
[null,null,null,null,null,null,null,null,null,null,"roommate, match"]
[null,null,null,null,null,null,null,null,null,null,"rooster"]
[null,null,null,null,null,null,null,null,null,null,"root beer"]
[null,null,null,null,null,null,null,null,null,null,"row"]
[null,null,null,null,null,null,null,null,null,null,"rubber"]
[null,null,null,null,null,null,null,null,null,null,"rude"]
[null,null,null,null,null,null,null,null,null,null,"ruin-[spoil]"]
[null,null,null,null,null,null,null,null,null,null,"ruined"]
[null,null,null,null,null,null,null,null,null,null,"rule"]
[null,null,null,null,null,null,null,null,null,null,"rule, law"]
[null,null,null,null,null,null,null,null,null,null,"rule-[see law]"]
[null,null,null,null,null,null,null,null,null,null,"run-[...]"]
[null,null,null,null,null,null,null,null,null,null,"rural (see country)"]
[null,null,null,null,null,null,null,null,null,null,"russia"]
[null,null,null,null,null,null,null,null,null,null,"s e x"]
[null,null,null,null,null,null,null,null,null,null,"sad"]
[null,null,null,null,null,null,null,null,null,null,"salad"]
[null,null,null,null,null,null,null,null,null,null,"salesperson"]
[null,null,null,null,null,null,null,null,null,null,"salt"]
[null,null,null,null,null,null,null,null,null,null,"same"]
[null,null,null,null,null,null,null,null,null,null,"same:-[me-same-as-you, me-too, similar]"]
[null,null,null,null,null,null,null,null,null,null,"sand"]
[null,null,null,null,null,null,null,null,null,null,"sandwich"]
[null,null,null,null,null,null,null,null,null,null,"santa claus"]
[null,null,null,null,null,null,null,null,null,null,"satisfied"]
[null,null,null,null,null,null,null,null,null,null,"saturday"]
[null,null,null,null,null,null,null,null,null,null,"saturday, every-saturday"]
[null,null,null,null,null,null,null,null,null,null,"save"]
[null,null,null,null,null,null,null,null,null,null,"saw"]
[null,null,null,null,null,null,null,null,null,null,"say"]
[null,null,null,null,null,null,null,null,null,null,"say-(\"i did not say that.\")"]
[null,null,null,null,null,null,null,null,null,null,"say-(\"i did not say that.\") (b)"]
[null,null,null,null,null,null,null,null,null,null,"scads"]
[null,null,null,null,null,null,null,null,null,null,"scan"]
[null,null,null,null,null,null,null,null,null,null,"scar"]
[null,null,null,null,null,null,null,null,null,null,"scarecrow"]
[null,null,null,null,null,null,null,null,null,null,"scared-[see afraid]"]
[null,null,null,null,null,null,null,null,null,null,"scarf"]
[null,null,null,null,null,null,null,null,null,null,"schedule"]
[null,null,null,null,null,null,null,null,null,null,"school"]
[null,null,null,null,null,null,null,null,null,null,"school-[academic]"]
[null,null,null,null,null,null,null,null,null,null,"scientist"]
[null,null,null,null,null,null,null,null,null,null,"scissors"]
[null,null,null,null,null,null,null,null,null,null,"scooter"]
[null,null,null,null,null,null,null,null,null,null,"scorpion"]
[null,null,null,null,null,null,null,null,null,null,"scotland"]
[null,null,null,null,null,null,null,null,null,null,"scotland, plaid"]
[null,null,null,null,null,null,null,null,null,null,"screwdriver"]
[null,null,null,null,null,null,null,null,null,null,"scuba"]
[null,null,null,null,null,null,null,null,null,null,"sea-horse"]
[null,null,null,null,null,null,null,null,null,null,"search, look-for"]
[null,null,null,null,null,null,null,null,null,null,"search-[look for, examine seek]"]
[null,null,null,null,null,null,null,null,null,null,"season"]
[null,null,null,null,null,null,null,null,null,null,"seasoning"]
[null,null,null,null,null,null,null,null,null,null,"second"]
[null,null,null,null,null,null,null,null,null,null,"second-hand"]
[null,null,null,null,null,null,null,null,null,null,"secret"]
[null,null,null,null,null,null,null,null,null,null,"secret: \"keep it a secret\""]
[null,null,null,null,null,null,null,null,null,null,"secretary"]
[null,null,null,null,null,null,null,null,null,null,"see"]
[null,null,null,null,null,null,null,null,null,null,"see you later"]
[null,null,null,null,null,null,null,null,null,null,"see: \"let me see\" (concerned version)"]
[null,null,null,null,null,null,null,null,null,null,"see-[look-at, watch, let's-see]"]
[null,null,null,null,null,null,null,null,null,null,"seed"]
[null,null,null,null,null,null,null,null,null,null,"seek"]
[null,null,null,null,null,null,null,null,null,null,"seek, search"]
[null,null,null,null,null,null,null,null,null,null,"seem"]
[null,null,null,null,null,null,null,null,null,null,"seem, appear, mirror"]
[null,null,null,null,null,null,null,null,null,null,"seize-[take-over, arrest]"]
[null,null,null,null,null,null,null,null,null,null,"seizure"]
[null,null,null,null,null,null,null,null,null,null,"self"]
[null,null,null,null,null,null,null,null,null,null,"self, himself, itself"]
[null,null,null,null,null,null,null,null,null,null,"self, myself"]
[null,null,null,null,null,null,null,null,null,null,"self, themselves"]
[null,null,null,null,null,null,null,null,null,null,"self, yourself"]
[null,null,null,null,null,null,null,null,null,null,"self-esteem"]
[null,null,null,null,null,null,null,null,null,null,"self-study"]
[null,null,null,null,null,null,null,null,null,null,"send, mail"]
[null,null,null,null,null,null,null,null,null,null,"send-[mail]"]
[null,null,null,null,null,null,null,null,null,null,"senior"]
[null,null,null,null,null,null,null,null,null,null,"sense"]
[null,null,null,null,null,null,null,null,null,null,"sentence"]
[null,null,null,null,null,null,null,null,null,null,"separate-[apart]"]
[null,null,null,null,null,null,null,null,null,null,"serendipity"]
[null,null,null,null,null,null,null,null,null,null,"serenity"]
[null,null,null,null,null,null,null,null,null,null,"serious"]
[null,null,null,null,null,null,null,null,null,null,"service"]
[null,null,null,null,null,null,null,null,null,null,"set or \"set up) see establish"]
[null,null,null,null,null,null,null,null,null,null,"several"]
[null,null,null,null,null,null,null,null,null,null,"sew"]
[null,null,null,null,null,null,null,null,null,null,"shape"]
[null,null,null,null,null,null,null,null,null,null,"share"]
[null,null,null,null,null,null,null,null,null,null,"shark"]
[null,null,null,null,null,null,null,null,null,null,"shave"]
[null,null,null,null,null,null,null,null,null,null,"she"]
[null,null,null,null,null,null,null,null,null,null,"sheep"]
[null,null,null,null,null,null,null,null,null,null,"shelf-[see cl:b]"]
[null,null,null,null,null,null,null,null,null,null,"shhh!"]
[null,null,null,null,null,null,null,null,null,null,"shine"]
[null,null,null,null,null,null,null,null,null,null,"shirt"]
[null,null,null,null,null,null,null,null,null,null,"shirt-[blouse]"]
[null,null,null,null,null,null,null,null,null,null,"shocked"]
[null,null,null,null,null,null,null,null,null,null,"shoes"]
[null,null,null,null,null,null,null,null,null,null,"shopping-[see money]"]
[null,null,null,null,null,null,null,null,null,null,"short, short-stature"]
[null,null,null,null,null,null,null,null,null,null,"short-[short-stature, short-duration, short-sleeve]"]
[null,null,null,null,null,null,null,null,null,null,"shortcomings"]
[null,null,null,null,null,null,null,null,null,null,"short-duration"]
[null,null,null,null,null,null,null,null,null,null,"short-hair"]
[null,null,null,null,null,null,null,null,null,null,"short-sleeve"]
[null,null,null,null,null,null,null,null,null,null,"should-[see need]"]
[null,null,null,null,null,null,null,null,null,null,"show"]
[null,null,null,null,null,null,null,null,null,null,"show-[example, demonstrate]"]
[null,null,null,null,null,null,null,null,null,null,"shower"]
[null,null,null,null,null,null,null,null,null,null,"show-up, appear"]
[null,null,null,null,null,null,null,null,null,null,"show-up-[appear, disappear, vanish]"]
[null,null,null,null,null,null,null,null,null,null,"shut-down, turn-off"]
[null,null,null,null,null,null,null,null,null,null,"shut-down-[power-outage, power-off, turn-off, blow-out]"]
[null,null,null,null,null,null,null,null,null,null,"shut-up"]
[null,null,null,null,null,null,null,null,null,null,"shy"]
[null,null,null,null,null,null,null,null,null,null,"sick"]
[null,null,null,null,null,null,null,null,null,null,"sick-(\"laid up\")"]
[null,null,null,null,null,null,null,null,null,null,"sick-(\"laid up\") (b)"]
[null,null,null,null,null,null,null,null,null,null,"sick: \"that is sick\""]
[null,null,null,null,null,null,null,null,null,null,"side-[see locations]"]
[null,null,null,null,null,null,null,null,null,null,"sidewalk"]
[null,null,null,null,null,null,null,null,null,null,"sign"]
[null,null,null,null,null,null,null,null,null,null,"sign (street)-(street sign)"]
[null,null,null,null,null,null,null,null,null,null,"sign-[sign language, signing] (1)"]
[null,null,null,null,null,null,null,null,null,null,"silly"]
[null,null,null,null,null,null,null,null,null,null,"silver"]
[null,null,null,null,null,null,null,null,null,null,"simple"]
[null,null,null,null,null,null,null,null,null,null,"since"]
[null,null,null,null,null,null,null,null,null,null,"singer"]
[null,null,null,null,null,null,null,null,null,null,"single"]
[null,null,null,null,null,null,null,null,null,null,"single, someone, something, alone"]
[null,null,null,null,null,null,null,null,null,null,"sink"]
[null,null,null,null,null,null,null,null,null,null,"sir"]
[null,null,null,null,null,null,null,null,null,null,"sister"]
[null,null,null,null,null,null,null,null,null,null,"sister [girl, female]"]
[null,null,null,null,null,null,null,null,null,null,"sit"]
[null,null,null,null,null,null,null,null,null,null,"s-i-t-e (fingerspell the word)"]
[null,null,null,null,null,null,null,null,null,null,"six, 6"]
[null,null,null,null,null,null,null,null,null,null,"skateboarding"]
[null,null,null,null,null,null,null,null,null,null,"skating-[ice-skating, rollerblading]"]
[null,null,null,null,null,null,null,null,null,null,"ski"]
[null,null,null,null,null,null,null,null,null,null,"skill-[good-at, talent, expert]"]
[null,null,null,null,null,null,null,null,null,null,"skilled"]
[null,null,null,null,null,null,null,null,null,null,"skin"]
[null,null,null,null,null,null,null,null,null,null,"skinned"]
[null,null,null,null,null,null,null,null,null,null,"skinny"]
[null,null,null,null,null,null,null,null,null,null,"skirt"]
[null,null,null,null,null,null,null,null,null,null,"skunk"]
[null,null,null,null,null,null,null,null,null,null,"sky"]
[null,null,null,null,null,null,null,null,null,null,"skyscraper"]
[null,null,null,null,null,null,null,null,null,null,"sleep"]
[null,null,null,null,null,null,null,null,null,null,"sleep-[sleepy, over-sleep, sunrise]"]
[null,null,null,null,null,null,null,null,null,null,"sleep-in"]
[null,null,null,null,null,null,null,null,null,null,"slide"]
[null,null,null,null,null,null,null,null,null,null,"slipped"]
[null,null,null,null,null,null,null,null,null,null,"slipped-my-mind"]
[null,null,null,null,null,null,null,null,null,null,"sloppy"]
[null,null,null,null,null,null,null,null,null,null,"slow"]
[null,null,null,null,null,null,null,null,null,null,"small"]
[null,null,null,null,null,null,null,null,null,null,"smart"]
[null,null,null,null,null,null,null,null,null,null,"smell"]
[null,null,null,null,null,null,null,null,null,null,"smoke"]
[null,null,null,null,null,null,null,null,null,null,"smoke-second-hand"]
[null,null,null,null,null,null,null,null,null,null,"smooth"]
[null,null,null,null,null,null,null,null,null,null,"snack"]
[null,null,null,null,null,null,null,null,null,null,"snake"]
[null,null,null,null,null,null,null,null,null,null,"snob"]
[null,null,null,null,null,null,null,null,null,null,"snow"]
[null,null,null,null,null,null,null,null,null,null,"snow, snowman"]
[null,null,null,null,null,null,null,null,null,null,"snowboard"]
[null,null,null,null,null,null,null,null,null,null,"so"]
[null,null,null,null,null,null,null,null,null,null,"soap"]
[null,null,null,null,null,null,null,null,null,null,"soccer"]
[null,null,null,null,null,null,null,null,null,null,"socialize"]
[null,null,null,null,null,null,null,null,null,null,"sociopath"]
[null,null,null,null,null,null,null,null,null,null,"socks"]
[null,null,null,null,null,null,null,null,null,null,"soft-[wet, humid]"]
[null,null,null,null,null,null,null,null,null,null,"softball"]
[null,null,null,null,null,null,null,null,null,null,"software"]
[null,null,null,null,null,null,null,null,null,null,"some"]
[null,null,null,null,null,null,null,null,null,null,"some, part"]
[null,null,null,null,null,null,null,null,null,null,"someday"]
[null,null,null,null,null,null,null,null,null,null,"someone"]
[null,null,null,null,null,null,null,null,null,null,"something"]
[null,null,null,null,null,null,null,null,null,null,"sometimes"]
[null,null,null,null,null,null,null,null,null,null,"son"]
[null,null,null,null,null,null,null,null,null,null,"son also see [baby]"]
[null,null,null,null,null,null,null,null,null,null,"soon"]
[null,null,null,null,null,null,null,null,null,null,"sophomore"]
[null,null,null,null,null,null,null,null,null,null,"sore-throat"]
[null,null,null,null,null,null,null,null,null,null,"sore-throat2"]
[null,null,null,null,null,null,null,null,null,null,"sorry"]
[null,null,null,null,null,null,null,null,null,null,"sorry-[apologize, regret]"]
[null,null,null,null,null,null,null,null,null,null,"so-so, sort-of"]
[null,null,null,null,null,null,null,null,null,null,"so-so-[sort-of]"]
[null,null,null,null,null,null,null,null,null,null,"sound-[see hear]"]
[null,null,null,null,null,null,null,null,null,null,"soup"]
[null,null,null,null,null,null,null,null,null,null,"south"]
[null,null,null,null,null,null,null,null,null,null,"spaghetti"]
[null,null,null,null,null,null,null,null,null,null,"spain"]
[null,null,null,null,null,null,null,null,null,null,"spanish"]
[null,null,null,null,null,null,null,null,null,null,"sparkle"]
[null,null,null,null,null,null,null,null,null,null,"specialize"]
[null,null,null,null,null,null,null,null,null,null,"speech-impaired"]
[null,null,null,null,null,null,null,null,null,null,"spell"]
[null,null,null,null,null,null,null,null,null,null,"spell, fingerspell"]
[null,null,null,null,null,null,null,null,null,null,"spend"]
[null,null,null,null,null,null,null,null,null,null,"spend-[see feed]"]
[null,null,null,null,null,null,null,null,null,null,"spider"]
[null,null,null,null,null,null,null,null,null,null,"spill/spread"]
[null,null,null,null,null,null,null,null,null,null,"spine"]
[null,null,null,null,null,null,null,null,null,null,"spirit / soul / spiritual / ghost"]
[null,null,null,null,null,null,null,null,null,null,"spit"]
[null,null,null,null,null,null,null,null,null,null,"spoil-[see ruin]"]
[null,null,null,null,null,null,null,null,null,null,"spoiled"]
[null,null,null,null,null,null,null,null,null,null,"spoiled2"]
[null,null,null,null,null,null,null,null,null,null,"spoon-[soup}"]
[null,null,null,null,null,null,null,null,null,null,"spring, grow, plant"]
[null,null,null,null,null,null,null,null,null,null,"spring-[grow, plant, bush]"]
[null,null,null,null,null,null,null,null,null,null,"square, board"]
[null,null,null,null,null,null,null,null,null,null,"square-[sign, black+board, perimeter]"]
[null,null,null,null,null,null,null,null,null,null,"squash"]
[null,null,null,null,null,null,null,null,null,null,"squirrel"]
[null,null,null,null,null,null,null,null,null,null,"stage"]
[null,null,null,null,null,null,null,null,null,null,"stairs"]
[null,null,null,null,null,null,null,null,null,null,"stand"]
[null,null,null,null,null,null,null,null,null,null,"stand [also see cl:v]"]
[null,null,null,null,null,null,null,null,null,null,"star"]
[null,null,null,null,null,null,null,null,null,null,"start, begin"]
[null,null,null,null,null,null,null,null,null,null,"start-[begin, initiate]"]
[null,null,null,null,null,null,null,null,null,null,"state"]
[null,null,null,null,null,null,null,null,null,null,"stationery"]
[null,null,null,null,null,null,null,null,null,null,"stay"]
[null,null,null,null,null,null,null,null,null,null,"steal"]
[null,null,null,null,null,null,null,null,null,null,"stepfather"]
[null,null,null,null,null,null,null,null,null,null,"stepmother"]
[null,null,null,null,null,null,null,null,null,null,"still"]
[null,null,null,null,null,null,null,null,null,null,"sting"]
[null,null,null,null,null,null,null,null,null,null,"stink"]
[null,null,null,null,null,null,null,null,null,null,"stomach"]
[null,null,null,null,null,null,null,null,null,null,"stop"]
[null,null,null,null,null,null,null,null,null,null,"stop (4)"]
[null,null,null,null,null,null,null,null,null,null,"storage"]
[null,null,null,null,null,null,null,null,null,null,"store"]
[null,null,null,null,null,null,null,null,null,null,"store, sell"]
[null,null,null,null,null,null,null,null,null,null,"storm"]
[null,null,null,null,null,null,null,null,null,null,"stove"]
[null,null,null,null,null,null,null,null,null,null,"straight"]
[null,null,null,null,null,null,null,null,null,null,"straight-hair"]
[null,null,null,null,null,null,null,null,null,null,"strange"]
[null,null,null,null,null,null,null,null,null,null,"strange, odd"]
[null,null,null,null,null,null,null,null,null,null,"strawberry"]
[null,null,null,null,null,null,null,null,null,null,"street"]
[null,null,null,null,null,null,null,null,null,null,"strict"]
[null,null,null,null,null,null,null,null,null,null,"stripes"]
[null,null,null,null,null,null,null,null,null,null,"stroke"]
[null,null,null,null,null,null,null,null,null,null,"strong"]
[null,null,null,null,null,null,null,null,null,null,"strong-[well, brave, courageous, recover]"]
[null,null,null,null,null,null,null,null,null,null,"struggle"]
[null,null,null,null,null,null,null,null,null,null,"struggle-[see opposite]"]
[null,null,null,null,null,null,null,null,null,null,"stubborn -[donkey]"]
[null,null,null,null,null,null,null,null,null,null,"stuck"]
[null,null,null,null,null,null,null,null,null,null,"stuck-up"]
[null,null,null,null,null,null,null,null,null,null,"stuck-up, snob"]
[null,null,null,null,null,null,null,null,null,null,"student"]
[null,null,null,null,null,null,null,null,null,null,"study"]
[null,null,null,null,null,null,null,null,null,null,"stupid"]
[null,null,null,null,null,null,null,null,null,null,"stupid (variation)"]
[null,null,null,null,null,null,null,null,null,null,"stupid-[dumb]"]
[null,null,null,null,null,null,null,null,null,null,"stupor"]
[null,null,null,null,null,null,null,null,null,null,"subordinate-[see with]"]
[null,null,null,null,null,null,null,null,null,null,"subscribe "]
[null,null,null,null,null,null,null,null,null,null,"subscribe-[get-regularly, ssi, welfare]"]
[null,null,null,null,null,null,null,null,null,null,"subtract"]
[null,null,null,null,null,null,null,null,null,null,"subway"]
[null,null,null,null,null,null,null,null,null,null,"succeed, success"]
[null,null,null,null,null,null,null,null,null,null,"succeed-[finally, success, famous, pah!]"]
[null,null,null,null,null,null,null,null,null,null,"sugar, cute"]
[null,null,null,null,null,null,null,null,null,null,"sugar-[see cute]"]
[null,null,null,null,null,null,null,null,null,null,"suggest-[offer, propose]"]
[null,null,null,null,null,null,null,null,null,null,"suitcase"]
[null,null,null,null,null,null,null,null,null,null,"summer"]
[null,null,null,null,null,null,null,null,null,null,"sun"]
[null,null,null,null,null,null,null,null,null,null,"sunday"]
[null,null,null,null,null,null,null,null,null,null,"sunday, every-sunday"]
[null,null,null,null,null,null,null,null,null,null,"sunrise"]
[null,null,null,null,null,null,null,null,null,null,"supervisor"]
[null,null,null,null,null,null,null,null,null,null,"support-[pro, loyal]"]
[null,null,null,null,null,null,null,null,null,null,"suppose-[see idea]"]
[null,null,null,null,null,null,null,null,null,null,"sure-[see true]"]
[null,null,null,null,null,null,null,null,null,null,"surf"]
[null,null,null,null,null,null,null,null,null,null,"surgery"]
[null,null,null,null,null,null,null,null,null,null,"surprise"]
[null,null,null,null,null,null,null,null,null,null,"surprise, wake-up"]
[null,null,null,null,null,null,null,null,null,null,"suspect"]
[null,null,null,null,null,null,null,null,null,null,"suspend"]
[null,null,null,null,null,null,null,null,null,null,"swell (good)"]
[null,null,null,null,null,null,null,null,null,null,"sweep"]
[null,null,null,null,null,null,null,null,null,null,"sweet"]
[null,null,null,null,null,null,null,null,null,null,"sweetheart"]
[null,null,null,null,null,null,null,null,null,null,"swim"]
[null,null,null,null,null,null,null,null,null,null,"swing"]
[null,null,null,null,null,null,null,null,null,null,"symbol"]
[null,null,null,null,null,null,null,null,null,null,"sympathy [poor-baby, sympathize-with, grace, compassion]"]
[null,null,null,null,null,null,null,null,null,null,"table, desk"]
[null,null,null,null,null,null,null,null,null,null,"table-[desk]"]
[null,null,null,null,null,null,null,null,null,null,"tablespoon"]
[null,null,null,null,null,null,null,null,null,null,"take"]
[null,null,null,null,null,null,null,null,null,null,"take-away"]
[null,null,null,null,null,null,null,null,null,null,"take-away, subtract"]
[null,null,null,null,null,null,null,null,null,null,"take-care-of"]
[null,null,null,null,null,null,null,null,null,null,"take-easy"]
[null,null,null,null,null,null,null,null,null,null,"take-over"]
[null,null,null,null,null,null,null,null,null,null,"take-turns"]
[null,null,null,null,null,null,null,null,null,null,"take-up, adopt"]
[null,null,null,null,null,null,null,null,null,null,"talent"]
[null,null,null,null,null,null,null,null,null,null,"talk"]
[null,null,null,null,null,null,null,null,null,null,"talk with"]
[null,null,null,null,null,null,null,null,null,null,"talk-to-yourself-(hermit)"]
[null,null,null,null,null,null,null,null,null,null,"talk-with"]
[null,null,null,null,null,null,null,null,null,null,"tall"]
[null,null,null,null,null,null,null,null,null,null,"tape"]
[null,null,null,null,null,null,null,null,null,null,"taste"]
[null,null,null,null,null,null,null,null,null,null,"taste "]
[null,null,null,null,null,null,null,null,null,null,"tattle/squeal"]
[null,null,null,null,null,null,null,null,null,null,"tea"]
[null,null,null,null,null,null,null,null,null,null,"teach"]
[null,null,null,null,null,null,null,null,null,null,"teacher"]
[null,null,null,null,null,null,null,null,null,null,"teacher [teach, agent]-[-er]-[professor, educate]"]
[null,null,null,null,null,null,null,null,null,null,"team-[see family]"]
[null,null,null,null,null,null,null,null,null,null,"tease"]
[null,null,null,null,null,null,null,null,null,null,"teaspoon"]
[null,null,null,null,null,null,null,null,null,null,"technical-[method, technique]"]
[null,null,null,null,null,null,null,null,null,null,"technology"]
[null,null,null,null,null,null,null,null,null,null,"teenager"]
[null,null,null,null,null,null,null,null,null,null,"teeth"]
[null,null,null,null,null,null,null,null,null,null,"telephone"]
[null,null,null,null,null,null,null,null,null,null,"television"]
[null,null,null,null,null,null,null,null,null,null,"tell"]
[null,null,null,null,null,null,null,null,null,null,"teller"]
[null,null,null,null,null,null,null,null,null,null,"teller-fs"]
[null,null,null,null,null,null,null,null,null,null,"temper: \"blow your top\""]
[null,null,null,null,null,null,null,null,null,null,"temperature"]
[null,null,null,null,null,null,null,null,null,null,"temple"]
[null,null,null,null,null,null,null,null,null,null,"temptation"]
[null,null,null,null,null,null,null,null,null,null,"ten, 10"]
[null,null,null,null,null,null,null,null,null,null,"tend-to"]
[null,null,null,null,null,null,null,null,null,null,"terrible"]
[null,null,null,null,null,null,null,null,null,null,"terrorist"]
[null,null,null,null,null,null,null,null,null,null,"test"]
[null,null,null,null,null,null,null,null,null,null,"test-[exam, quiz]"]
[null,null,null,null,null,null,null,null,null,null,"texas"]
[null,null,null,null,null,null,null,null,null,null,"than"]
[null,null,null,null,null,null,null,null,null,null,"thanks, thank-you"]
[null,null,null,null,null,null,null,null,null,null,"thanksgiving"]
[null,null,null,null,null,null,null,null,null,null,"thank-you [good] (1)"]
[null,null,null,null,null,null,null,null,null,null,"that"]
[null,null,null,null,null,null,null,null,null,null,"that-[see indexing]"]
[null,null,null,null,null,null,null,null,null,null,"that's-life-[#tl-(lexicalized)]"]
[null,null,null,null,null,null,null,null,null,null,"the"]
[null,null,null,null,null,null,null,null,null,null,"theater-[act, actor, drama, play, show]"]
[null,null,null,null,null,null,null,null,null,null,"their"]
[null,null,null,null,null,null,null,null,null,null,"their, theirs"]
[null,null,null,null,null,null,null,null,null,null,"their-[see possession]"]
[null,null,null,null,null,null,null,null,null,null,"there"]
[null,null,null,null,null,null,null,null,null,null,"thereabouts"]
[null,null,null,null,null,null,null,null,null,null,"thereabouts, around"]
[null,null,null,null,null,null,null,null,null,null,"they"]
[null,null,null,null,null,null,null,null,null,null,"they, them, those"]
[null,null,null,null,null,null,null,null,null,null,"thick"]
[null,null,null,null,null,null,null,null,null,null,"thief"]
[null,null,null,null,null,null,null,null,null,null,"thin"]
[null,null,null,null,null,null,null,null,null,null,"thin-[cl:g]"]
[null,null,null,null,null,null,null,null,null,null,"thing"]
[null,null,null,null,null,null,null,null,null,null,"think"]
[null,null,null,null,null,null,null,null,null,null,"think-(\"can't think straight\")"]
[null,null,null,null,null,null,null,null,null,null,"think-(\"dwell on\")"]
[null,null,null,null,null,null,null,null,null,null,"think-(\"mull over\")"]
[null,null,null,null,null,null,null,null,null,null,"think-(\"throw thought from mind\")"]
[null,null,null,null,null,null,null,null,null,null,"think-(wonder)"]
[null,null,null,null,null,null,null,null,null,null,"think-[brain, mind, think-about, wonder]"]
[null,null,null,null,null,null,null,null,null,null,"think-same-[agree]"]
[null,null,null,null,null,null,null,null,null,null,"thirsty-[crave]"]
[null,null,null,null,null,null,null,null,null,null,"this"]
[null,null,null,null,null,null,null,null,null,null,"thorn"]
[null,null,null,null,null,null,null,null,null,null,"thousand, 1,000"]
[null,null,null,null,null,null,null,null,null,null,"three"]
[null,null,null,null,null,null,null,null,null,null,"three, 3"]
[null,null,null,null,null,null,null,null,null,null,"throat"]
[null,null,null,null,null,null,null,null,null,null,"throne"]
[null,null,null,null,null,null,null,null,null,null,"through"]
[null,null,null,null,null,null,null,null,null,null,"throw-[throw-away]"]
[null,null,null,null,null,null,null,null,null,null,"thursday"]
[null,null,null,null,null,null,null,null,null,null,"thursday, every-thursday"]
[null,null,null,null,null,null,null,null,null,null,"ticket, give-ticket"]
[null,null,null,null,null,null,null,null,null,null,"ticket-[give-ticket]"]
[null,null,null,null,null,null,null,null,null,null,"tickle"]
[null,null,null,null,null,null,null,null,null,null,"tie"]
[null,null,null,null,null,null,null,null,null,null,"tiger"]
[null,null,null,null,null,null,null,null,null,null,"time, o'clock"]
[null,null,null,null,null,null,null,null,null,null,"time: take a long time"]
[null,null,null,null,null,null,null,null,null,null,"time-[general]"]
[null,null,null,null,null,null,null,null,null,null,"time_\"from_time_to_time\""]
[null,null,null,null,null,null,null,null,null,null,"time_\"time-period\""]
[null,null,null,null,null,null,null,null,null,null,"times (multiply)"]
[null,null,null,null,null,null,null,null,null,null,"times, multiply, worse"]
[null,null,null,null,null,null,null,null,null,null,"tired"]
[null,null,null,null,null,null,null,null,null,null,"tired-(\"baggy eyed\")"]
[null,null,null,null,null,null,null,null,null,null,"tired-[exhausted]"]
[null,null,null,null,null,null,null,null,null,null,"tit for tat"]
[null,null,null,null,null,null,null,null,null,null,"title-[see quote]"]
[null,null,null,null,null,null,null,null,null,null,"to"]
[null,null,null,null,null,null,null,null,null,null,"toast"]
[null,null,null,null,null,null,null,null,null,null,"today"]
[null,null,null,null,null,null,null,null,null,null,"together, go-steady"]
[null,null,null,null,null,null,null,null,null,null,"together-[see with]"]
[null,null,null,null,null,null,null,null,null,null,"toilet"]
[null,null,null,null,null,null,null,null,null,null,"tomorrow"]
[null,null,null,null,null,null,null,null,null,null,"tomorrow-[daily, everyday]"]
[null,null,null,null,null,null,null,null,null,null,"tool"]
[null,null,null,null,null,null,null,null,null,null,"too-much"]
[null,null,null,null,null,null,null,null,null,null,"tooth"]
[null,null,null,null,null,null,null,null,null,null,"toothpaste"]
[null,null,null,null,null,null,null,null,null,null,"top-[see locations]"]
[null,null,null,null,null,null,null,null,null,null,"topic"]
[null,null,null,null,null,null,null,null,null,null,"topic, subject"]
[null,null,null,null,null,null,null,null,null,null,"toss-and-turn"]
[null,null,null,null,null,null,null,null,null,null,"total-[sum]"]
[null,null,null,null,null,null,null,null,null,null,"touch, been to"]
[null,null,null,null,null,null,null,null,null,null,"touch-[dwell-on]"]
[null,null,null,null,null,null,null,null,null,null,"tough"]
[null,null,null,null,null,null,null,null,null,null,"tough (gang)"]
[null,null,null,null,null,null,null,null,null,null,"towel"]
[null,null,null,null,null,null,null,null,null,null,"toy"]
[null,null,null,null,null,null,null,null,null,null,"trade-[replace, exchange]"]
[null,null,null,null,null,null,null,null,null,null,"traffic"]
[null,null,null,null,null,null,null,null,null,null,"train"]
[null,null,null,null,null,null,null,null,null,null,"train-gone"]
[null,null,null,null,null,null,null,null,null,null,"training-[see practice]"]
[null,null,null,null,null,null,null,null,null,null,"transfer"]
[null,null,null,null,null,null,null,null,null,null,"transfer-[switch-over]"]
[null,null,null,null,null,null,null,null,null,null,"travel, trip"]
[null,null,null,null,null,null,null,null,null,null,"travel-[trip]"]
[null,null,null,null,null,null,null,null,null,null,"treat"]
[null,null,null,null,null,null,null,null,null,null,"tree"]
[null,null,null,null,null,null,null,null,null,null,"tree-[park, forest]"]
[null,null,null,null,null,null,null,null,null,null,"trial"]
[null,null,null,null,null,null,null,null,null,null,"trick-or-treat"]
[null,null,null,null,null,null,null,null,null,null,"trigonometry"]
[null,null,null,null,null,null,null,null,null,null,"trip-[see travel]"]
[null,null,null,null,null,null,null,null,null,null,"truck"]
[null,null,null,null,null,null,null,null,null,null,"true work: (\"indeed\")."]
[null,null,null,null,null,null,null,null,null,null,"true. real"]
[null,null,null,null,null,null,null,null,null,null,"true-[sure, really, real]"]
[null,null,null,null,null,null,null,null,null,null,"trust"]
[null,null,null,null,null,null,null,null,null,null,"trust-not"]
[null,null,null,null,null,null,null,null,null,null,"try"]
[null,null,null,null,null,null,null,null,null,null,"tty-[teletypewriter]"]
[null,null,null,null,null,null,null,null,null,null,"tuesday"]
[null,null,null,null,null,null,null,null,null,null,"tuesday, every-tuesday"]
[null,null,null,null,null,null,null,null,null,null,"turkey"]
[null,null,null,null,null,null,null,null,null,null,"turn-(\"me next\")"]
[null,null,null,null,null,null,null,null,null,null,"turn-[turn-on, turn-of, knob/switch]"]
[null,null,null,null,null,null,null,null,null,null,"turn-taking-alternating"]
[null,null,null,null,null,null,null,null,null,null,"turtle"]
[null,null,null,null,null,null,null,null,null,null,"tv"]
[null,null,null,null,null,null,null,null,null,null,"twelve, 12"]
[null,null,null,null,null,null,null,null,null,null,"two"]
[null,null,null,null,null,null,null,null,null,null,"two-hundred, 200"]
[null,null,null,null,null,null,null,null,null,null,"type-[keyboard, typewriter]"]
[null,null,null,null,null,null,null,null,null,null,"ugly"]
[null,null,null,null,null,null,null,null,null,null,"um"]
[null,null,null,null,null,null,null,null,null,null,"umbrella"]
[null,null,null,null,null,null,null,null,null,null,"uncle"]
[null,null,null,null,null,null,null,null,null,null,"uncle (4)underestimate"]
[null,null,null,null,null,null,null,null,null,null,"understand"]
[null,null,null,null,null,null,null,null,null,null,"understand (1)"]
[null,null,null,null,null,null,null,null,null,null,"underwear"]
[null,null,null,null,null,null,null,null,null,null,"unicorn"]
[null,null,null,null,null,null,null,null,null,null,"up"]
[null,null,null,null,null,null,null,null,null,null,"up to you: \"it is up to you to decide\""]
[null,null,null,null,null,null,null,null,null,null,"up, upstairs"]
[null,null,null,null,null,null,null,null,null,null,"up-[upstairs]"]
[null,null,null,null,null,null,null,null,null,null,"upset"]
[null,null,null,null,null,null,null,null,null,null,"up-to-now"]
[null,null,null,null,null,null,null,null,null,null,"up-to-now, since, have been"]
[null,null,null,null,null,null,null,null,null,null,"urinate"]
[null,null,null,null,null,null,null,null,null,null,"usb_drive"]
[null,null,null,null,null,null,null,null,null,null,"use"]
[null,null,null,null,null,null,null,null,null,null,"use, wear"]
[null,null,null,null,null,null,null,null,null,null,"used-(second_hand)"]
[null,null,null,null,null,null,null,null,null,null,"utah"]
[null,null,null,null,null,null,null,null,null,null,"vacation, off work"]
[null,null,null,null,null,null,null,null,null,null,"vacation-[off work, holiday]"]
[null,null,null,null,null,null,null,null,null,null,"vacuum"]
[null,null,null,null,null,null,null,null,null,null,"various"]
[null,null,null,null,null,null,null,null,null,null,"vegetable"]
[null,null,null,null,null,null,null,null,null,null,"vegetables"]
[null,null,null,null,null,null,null,null,null,null,"vegetarian"]
[null,null,null,null,null,null,null,null,null,null,"very"]
[null,null,null,null,null,null,null,null,null,null,"vet"]
[null,null,null,null,null,null,null,null,null,null,"veteran"]
[null,null,null,null,null,null,null,null,null,null,"vice-president"]
[null,null,null,null,null,null,null,null,null,null,"video"]
[null,null,null,null,null,null,null,null,null,null,"video, movie"]
[null,null,null,null,null,null,null,null,null,null,"video-game"]
[null,null,null,null,null,null,null,null,null,null,"video-phone"]
[null,null,null,null,null,null,null,null,null,null,"video-record"]
[null,null,null,null,null,null,null,null,null,null,"video-tape"]
[null,null,null,null,null,null,null,null,null,null,"viewpoint"]
[null,null,null,null,null,null,null,null,null,null,"view"]
[null,null,null,null,null,null,null,null,null,null,"violence"]
[null,null,null,null,null,null,null,null,null,null,"visit"]
[null,null,null,null,null,null,null,null,null,null,"vitamin"]
[null,null,null,null,null,null,null,null,null,null,"voice"]
[null,null,null,null,null,null,null,null,null,null,"volleyball"]
[null,null,null,null,null,null,null,null,null,null,"volunteer"]
[null,null,null,null,null,null,null,null,null,null,"volunteer-[see apply]"]
[null,null,null,null,null,null,null,null,null,null,"vomit"]
[null,null,null,null,null,null,null,null,null,null,"vomit-[detest]"]
[null,null,null,null,null,null,null,null,null,null,"vote"]
[null,null,null,null,null,null,null,null,null,null,"waddle"]
[null,null,null,null,null,null,null,null,null,null,"wagon-[discussion]"]
[null,null,null,null,null,null,null,null,null,null,"waist"]
[null,null,null,null,null,null,null,null,null,null,"wait"]
[null,null,null,null,null,null,null,null,null,null,"waiter, waitress"]
[null,null,null,null,null,null,null,null,null,null,"waiter/waitress-[serve, servant]"]
[null,null,null,null,null,null,null,null,null,null,"wake-up"]
[null,null,null,null,null,null,null,null,null,null,"wake-up-[see surprise]"]
[null,null,null,null,null,null,null,null,null,null,"walk"]
[null,null,null,null,null,null,null,null,null,null,"walk-to-[walk]"]
[null,null,null,null,null,null,null,null,null,null,"wall"]
[null,null,null,null,null,null,null,null,null,null,"wall-[see cl:b]"]
[null,null,null,null,null,null,null,null,null,null,"want"]
[null,null,null,null,null,null,null,null,null,null,"want-[don't-want, desire](4)"]
[null,null,null,null,null,null,null,null,null,null,"warm"]
[null,null,null,null,null,null,null,null,null,null,"warn/caution"]
[null,null,null,null,null,null,null,null,null,null,"was"]
[null,null,null,null,null,null,null,null,null,null,"wash"]
[null,null,null,null,null,null,null,null,null,null,"wash (4)"]
[null,null,null,null,null,null,null,null,null,null,"wash-dishes"]
[null,null,null,null,null,null,null,null,null,null,"washing-machine"]
[null,null,null,null,null,null,null,null,null,null,"washing-machine, laundry"]
[null,null,null,null,null,null,null,null,null,null,"washington"]
[null,null,null,null,null,null,null,null,null,null,"washington-dc"]
[null,null,null,null,null,null,null,null,null,null,"watch"]
[null,null,null,null,null,null,null,null,null,null,"watch, observe"]
[null,null,null,null,null,null,null,null,null,null,"watch, wristwatch"]
[null,null,null,null,null,null,null,null,null,null,"watch-[wristwatch, bracelet]"]
[null,null,null,null,null,null,null,null,null,null,"water"]
[null,null,null,null,null,null,null,null,null,null,"water-fountain"]
[null,null,null,null,null,null,null,null,null,null,"wave-no"]
[null,null,null,null,null,null,null,null,null,null,"way"]
[null,null,null,null,null,null,null,null,null,null,"way, street, road, avenue"]
[null,null,null,null,null,null,null,null,null,null,"way-[hall, street, road, avenue]"]
[null,null,null,null,null,null,null,null,null,null,"we"]
[null,null,null,null,null,null,null,null,null,null,"we, us"]
[null,null,null,null,null,null,null,null,null,null,"we/us-[see indexing]"]
[null,null,null,null,null,null,null,null,null,null,"weak"]
[null,null,null,null,null,null,null,null,null,null,"weak-[vulnerable]"]
[null,null,null,null,null,null,null,null,null,null,"wear-out-[burnout, fall-apart]"]
[null,null,null,null,null,null,null,null,null,null,"weather"]
[null,null,null,null,null,null,null,null,null,null,"weather-[wind, breeze]"]
[null,null,null,null,null,null,null,null,null,null,"web"]
[null,null,null,null,null,null,null,null,null,null,"webcam"]
[null,null,null,null,null,null,null,null,null,null,"web-cam"]
[null,null,null,null,null,null,null,null,null,null,"wednesday"]
[null,null,null,null,null,null,null,null,null,null,"wednesday, every-wednesday"]
[null,null,null,null,null,null,null,null,null,null,"week"]
[null,null,null,null,null,null,null,null,null,null,"week-(\"second week\")"]
[null,null,null,null,null,null,null,null,null,null,"week-(advanced)"]
[null,null,null,null,null,null,null,null,null,null,"week, every-week"]
[null,null,null,null,null,null,null,null,null,null,"week, next-week"]
[null,null,null,null,null,null,null,null,null,null,"weekend"]
[null,null,null,null,null,null,null,null,null,null,"week-next"]
[null,null,null,null,null,null,null,null,null,null,"weigh"]
[null,null,null,null,null,null,null,null,null,null,"welcome"]
[null,null,null,null,null,null,null,null,null,null,"weld-[welder]"]
[null,null,null,null,null,null,null,null,null,null,"were"]
[null,null,null,null,null,null,null,null,null,null,"west"]
[null,null,null,null,null,null,null,null,null,null,"wet-wipes"]
[null,null,null,null,null,null,null,null,null,null,"whale"]
[null,null,null,null,null,null,null,null,null,null,"what"]
[null,null,null,null,null,null,null,null,null,null,"what, huh?"]
[null,null,null,null,null,null,null,null,null,null,"what-do"]
[null,null,null,null,null,null,null,null,null,null,"what-do, do-what?"]
[null,null,null,null,null,null,null,null,null,null,"what-kind-[type, style]"]
[null,null,null,null,null,null,null,null,null,null,"when"]
[null,null,null,null,null,null,null,null,null,null,"where"]
[null,null,null,null,null,null,null,null,null,null,"which"]
[null,null,null,null,null,null,null,null,null,null,"whisper"]
[null,null,null,null,null,null,null,null,null,null,"white"]
[null,null,null,null,null,null,null,null,null,null,"white-faced, pale"]
[null,null,null,null,null,null,null,null,null,null,"white-person"]
[null,null,null,null,null,null,null,null,null,null,"who"]
[null,null,null,null,null,null,null,null,null,null,"why"]
[null,null,null,null,null,null,null,null,null,null,"wicca"]
[null,null,null,null,null,null,null,null,null,null,"widow"]
[null,null,null,null,null,null,null,null,null,null,"wife"]
[null,null,null,null,null,null,null,null,null,null,"wilderness"]
[null,null,null,null,null,null,null,null,null,null,"will-[see future]"]
[null,null,null,null,null,null,null,null,null,null,"win"]
[null,null,null,null,null,null,null,null,null,null,"wind"]
[null,null,null,null,null,null,null,null,null,null,"wind, breeze"]
[null,null,null,null,null,null,null,null,null,null,"window"]
[null,null,null,null,null,null,null,null,null,null,"window-[open-window, close-window]"]
[null,null,null,null,null,null,null,null,null,null,"wine"]
[null,null,null,null,null,null,null,null,null,null,"wine-[beer]"]
[null,null,null,null,null,null,null,null,null,null,"winter"]
[null,null,null,null,null,null,null,null,null,null,"wish"]
[null,null,null,null,null,null,null,null,null,null,"witch"]
[null,null,null,null,null,null,null,null,null,null,"with"]
[null,null,null,null,null,null,null,null,null,null,"with- advanced discussion: [in-front-of, behind, follow, catch-up, chase, fall-behind, accompany, together, go-with, go-steady, race, compete, subordinate]"]
[null,null,null,null,null,null,null,null,null,null,"without"]
[null,null,null,null,null,null,null,null,null,null,"wolf"]
[null,null,null,null,null,null,null,null,null,null,"wolf-down"]
[null,null,null,null,null,null,null,null,null,null,"woman"]
[null,null,null,null,null,null,null,null,null,null,"womb"]
[null,null,null,null,null,null,null,null,null,null,"wonder-[see think]"]
[null,null,null,null,null,null,null,null,null,null,"wonderful"]
[null,null,null,null,null,null,null,null,null,null,"won't-[refuse]"]
[null,null,null,null,null,null,null,null,null,null,"wood"]
[null,null,null,null,null,null,null,null,null,null,"word"]
[null,null,null,null,null,null,null,null,null,null,"work"]
[null,null,null,null,null,null,null,null,null,null,"world"]
[null,null,null,null,null,null,null,null,null,null,"world wide web"]
[null,null,null,null,null,null,null,null,null,null,"worm"]
[null,null,null,null,null,null,null,null,null,null,"worry"]
[null,null,null,null,null,null,null,null,null,null,"worse, times, multiply"]
[null,null,null,null,null,null,null,null,null,null,"worse-[figure, times]"]
[null,null,null,null,null,null,null,null,null,null,"would"]
[null,null,null,null,null,null,null,null,null,null,"wow"]
[null,null,null,null,null,null,null,null,null,null,"wrench, tool"]
[null,null,null,null,null,null,null,null,null,null,"write"]
[null,null,null,null,null,null,null,null,null,null,"wrong"]
[null,null,null,null,null,null,null,null,null,null,"www"]
[null,null,null,null,null,null,null,null,null,null,"wyoming"]
[null,null,null,null,null,null,null,null,null,null,"x-ray"]
[null,null,null,null,null,null,null,null,null,null,"year"]
[null,null,null,null,null,null,null,null,null,null,"year-\"3 years ago\""]
[null,null,null,null,null,null,null,null,null,null,"year, every-year"]
[null,null,null,null,null,null,null,null,null,null,"year, last-year"]
[null,null,null,null,null,null,null,null,null,null,"year, next-year"]
[null,null,null,null,null,null,null,null,null,null,"year-[annually, last-year, next-year, numerical incorporation]"]
[null,null,null,null,null,null,null,null,null,null,"year-round"]
[null,null,null,null,null,null,null,null,null,null,"yell"]
[null,null,null,null,null,null,null,null,null,null,"yellow"]
[null,null,null,null,null,null,null,null,null,null,"yes"]
[null,null,null,null,null,null,null,null,null,null,"yes/no"]
[null,null,null,null,null,null,null,null,null,null,"yesterday"]
[null,null,null,null,null,null,null,null,null,null,"yogurt"]
[null,null,null,null,null,null,null,null,null,null,"you"]
[null,null,null,null,null,null,null,null,null,null,"you-[see indexing]"]
[null,null,null,null,null,null,null,null,null,null,"you-all"]
[null,null,null,null,null,null,null,null,null,null,"young"]
[null,null,null,null,null,null,null,null,null,null,"your [also see possession]"]
[null,null,null,null,null,null,null,null,null,null,"your, yours"]
[null,null,null,null,null,null,null,null,null,null,"youtube"]
[null,null,null,null,null,null,null,null,null,null,"zebra"]
[null,null,null,null,null,null,null,null,null,null,"zero"]
[null,null,null,null,null,null,null,null,null,null,"zilch"]
[null,null,null,null,null,null,null,null,null,null,"zinger \"got you\""]
[null,null,null,null,null,null,null,null,null,null,"zip"]
[null,null,null,null,null,null,null,null,null,null,"zombie"]
[null,null,null,null,null,null,null,null,null,null,"zz"]